﻿Department family,Entity,Date of payment,Expense type,Expense area,Supplier,Transaction number,Amount in Sterling,Supplier VAT Registration Number
Department of Health,Guys and St Thomas NHS Foundation Trust,30/01/2020,(55040) Admin & Clerical,(id:2002419) Cancer Supportive Services and R&D,KINGS COLLEGE LONDON:03529700,id:12551763   ,2408.08
Department of Health,Guys and St Thomas NHS Foundation Trust,30/01/2020,(50200) Consultants,(id:4060419) Cancer Supportive Services and R&D,KINGS COLLEGE LONDON:03529700,id:12551763   ,3076.04
Department of Health,Guys and St Thomas NHS Foundation Trust,10/01/2020,(84600) Establishment,(id:42276) Cancer Supportive Services and R&D,WATERLOO CAR SERVICE LTD,id:12735022   ,4677.75
Department of Health,Guys and St Thomas NHS Foundation Trust,24/01/2020,(84600) Establishment,(id:42276) Cancer Supportive Services and R&D,WATERLOO CAR SERVICE LTD,id:12760403   ,4050.05
Department of Health,Guys and St Thomas NHS Foundation Trust,10/01/2020,(50200) Consultants,(id:42277) Cancer Supportive Services and R&D,SOUTH LONDON AND MAUDSLEY NHS FOUNDATION TRUST,id:12715596   ,3594.00
Department of Health,Guys and St Thomas NHS Foundation Trust,03/01/2020,(81200) Medical Surgical Supplies & Equipment,(id:42270) Haematology,NHS SUPPLY CHAIN (MAIDSTONE),id:12706389   ,1652.74
Department of Health,Guys and St Thomas NHS Foundation Trust,17/01/2020,(81275) Medical Surgical Supplies & Equipment,(id:42270) Haematology,NHS SUPPLY CHAIN (MAIDSTONE),id:12723603   , 194.40
Department of Health,Guys and St Thomas NHS Foundation Trust,30/01/2020,(84600) Establishment,(id:42270) Haematology,REDLAND CONSTRUCTION LIMITED,id:12746161  ,1442.00
Department of Health,Guys and St Thomas NHS Foundation Trust,03/01/2020,(83610) IT Costs,(id:42267) Haematology,OFFICE DEPOT UK LTD,id:12700981 , 396.36
Department of Health,Guys and St Thomas NHS Foundation Trust,03/01/2020,(82600) Uniforms & Clothing,(id:42265) Haematology,NHS SUPPLY CHAIN (MAIDSTONE),id:12694241 , 338.86
Department of Health,Guys and St Thomas NHS Foundation Trust,17/01/2020,(82800) Bedding & Linen,(id:42265) Haematology,NHS SUPPLY CHAIN (MAIDSTONE),id:12723603,  91.27
Department of Health,Guys and St Thomas NHS Foundation Trust,03/01/2020,(81200) Medical Surgical Supplies & Equipment,(id:42265) Haematology,BARD LTD,id:12709055   , 531.00
Department of Health,Guys and St Thomas NHS Foundation Trust,30/01/2020,(50522) Unqualified Nursing Staff,(id:42265) Haematology,MSI GROUP LTD,id:12781113, 246.36
Department of Health,Guys and St Thomas NHS Foundation Trust,03/01/2020,(81200) Medical Surgical Supplies & Equipment,(id:42272) Haematology,NHS SUPPLY CHAIN (MAIDSTONE),id:12694241   , 968.52
Department of Health,Guys and St Thomas NHS Foundation Trust,17/01/2020,(81200) Medical Surgical Supplies & Equipment,(id:42272) Haematology,NHS SUPPLY CHAIN (MAIDSTONE),id:12723603   , 140.04
Department of Health,Guys and St Thomas NHS Foundation Trust,24/01/2020,(81000) Surgical Appliances,(id:42272) Haematology,MEDI UK LTD,id:12760383   ,  52.03
Department of Health,Guys and St Thomas NHS Foundation Trust,03/01/2020,(80205) Drug Costs,(id:42273) Haematology,HEALTHCARE AT HOME LTD,id:12723759 ,7125.00
Department of Health,Guys and St Thomas NHS Foundation Trust,24/01/2020,(80205) Drug Costs,(id:42273) Haematology,HEALTHCARE AT HOME LTD,id:12760184 ,7370.00
Department of Health,Guys and St Thomas NHS Foundation Trust,24/01/2020,(80205) Drug Costs,(id:42273) Haematology,HEALTHCARE AT HOME LTD,id:12760082 ,9125.00
Department of Health,Guys and St Thomas NHS Foundation Trust,24/01/2020,(80205) Drug Costs,(id:42273) Haematology,HEALTHCARE AT HOME LTD,id:12760125 ,    17585.00
Department of Health,Guys and St Thomas NHS Foundation Trust,24/01/2020,(80205) Drug Costs,(id:42273) Haematology,HEALTHCARE AT HOME LTD,id:12760217 , 750.00
Department of Health,Guys and St Thomas NHS Foundation Trust,24/01/2020,(80205) Drug Costs,(id:42273) Haematology,HEALTHCARE AT HOME LTD,id:12759819 ,1091.00
Department of Health,Guys and St Thomas NHS Foundation Trust,24/01/2020,(80205) Drug Costs,(id:42273) Haematology,HEALTHCARE AT HOME LTD,id:12760123 ,2125.00
Department of Health,Guys and St Thomas NHS Foundation Trust,24/01/2020,(80205) Drug Costs,(id:42273) Haematology,HEALTHCARE AT HOME LTD,id:12760208 ,3641.80
Department of Health,Guys and St Thomas NHS Foundation Trust,24/01/2020,(80205) Drug Costs,(id:42273) Haematology,HEALTHCARE AT HOME LTD,id:12760105 ,3875.00
Department of Health,Guys and St Thomas NHS Foundation Trust,24/01/2020,(80205) Drug Costs,(id:42273) Haematology,HEALTHCARE AT HOME LTD,id:12760112 ,4125.00
Department of Health,Guys and St Thomas NHS Foundation Trust,24/01/2020,(80205) Drug Costs,(id:42273) Haematology,HEALTHCARE AT HOME LTD,id:12760118 ,4125.00
Department of Health,Guys and St Thomas NHS Foundation Trust,24/01/2020,(80205) Drug Costs,(id:42273) Haematology,HEALTHCARE AT HOME LTD,id:12760225 ,4272.50
Department of Health,Guys and St Thomas NHS Foundation Trust,24/01/2020,(80205) Drug Costs,(id:42273) Haematology,HEALTHCARE AT HOME LTD,id:12760095 ,4925.00
Department of Health,Guys and St Thomas NHS Foundation Trust,10/01/2020,(83610) IT Costs,(id:202405) Haematology,OFFICE DEPOT UK LTD,id:12714712, 536.47
Department of Health,Guys and St Thomas NHS Foundation Trust,03/01/2020,(81100) Dressings,(id:42128) Haematology,NHS SUPPLY CHAIN (MAIDSTONE),id:12706389 ,  91.20
Department of Health,Guys and St Thomas NHS Foundation Trust,30/01/2020,(81100) Dressings,(id:42128) Haematology,NHS SUPPLY CHAIN (MAIDSTONE),id:12732483 ,  35.02
Department of Health,Guys and St Thomas NHS Foundation Trust,03/01/2020,(54052) Technical Officers,(id:42128) Haematology,TOTAL ASSIST RECRUITMENT LTD,id:12716655  ,1233.90
Department of Health,Guys and St Thomas NHS Foundation Trust,24/01/2020,(81700) Lab Equipment Purchase,(id:42128) Haematology,SHEFFIELD CHILDREN'S NHS FOUNDATION TRUST,id:12761936,1252.44
Department of Health,Guys and St Thomas NHS Foundation Trust,24/01/2020,(81700) Lab Equipment Purchase,(id:42128) Haematology,CHEMSOL LIMITED,id:12765170 ,7788.00
Department of Health,Guys and St Thomas NHS Foundation Trust,30/01/2020,(83500) Furniture & Fittings,(id:42258) Oncology Services,SUNFLOWER MEDICAL LTD,id:12776575 , 693.60
Department of Health,Guys and St Thomas NHS Foundation Trust,03/01/2020,(81500) X Ray Equipment Purchase,(id:42258) Oncology Services,ELEKTA LTD (CIS5),id:12724745 ,3235.33
Department of Health,Guys and St Thomas NHS Foundation Trust,24/01/2020,(81000) Surgical Appliances,(id:42257) Oncology Services,MEDI UK LTD,id:12760492  ,  11.64
Department of Health,Guys and St Thomas NHS Foundation Trust,10/01/2020,(81700) Lab Equipment Purchase,(id:42261) Oncology Services,GENOMIC HEALTH UK LTD,id:12700024    ,8100.00
Department of Health,Guys and St Thomas NHS Foundation Trust,30/01/2020,(83610) IT Costs,(id:42261) Oncology Services,OFFICE DEPOT UK LTD,id:12746915, 470.82
Department of Health,Guys and St Thomas NHS Foundation Trust,03/01/2020,(81900) Lab Equipment Purchase,(id:42261) Oncology Services,VIAPATH SERVICES LLP,id:12724036,1750.00
Department of Health,Guys and St Thomas NHS Foundation Trust,03/01/2020,(81900) Lab Equipment Purchase,(id:42261) Oncology Services,VIAPATH ANALYTICS LLP,id:12723896    ,    15739.43
Department of Health,Guys and St Thomas NHS Foundation Trust,24/01/2020,(81000) Surgical Appliances,(id:42261) Oncology Services,TALAR MADE ORTHOTICS LTD,id:12757617    ,  93.00
Department of Health,Guys and St Thomas NHS Foundation Trust,24/01/2020,(84400) Transport,(id:42262) Oncology Services,CITYSPRINT (UK) LTD,id:12744527    ,2173.61
Department of Health,Guys and St Thomas NHS Foundation Trust,24/01/2020,(84400) Transport,(id:42262) Oncology Services,CITYSPRINT (UK) LTD,id:12515981    ,2304.14
Department of Health,Guys and St Thomas NHS Foundation Trust,17/01/2020,(81200) Medical Surgical Supplies & Equipment,(id:42260) Oncology Services,VYGON (UK) LTD,id:12702593 , 788.64
Department of Health,Guys and St Thomas NHS Foundation Trust,03/01/2020,(82800) Bedding & Linen,(id:42260) Oncology Services,NHS SUPPLY CHAIN (MAIDSTONE),id:12694241    ,  85.17
Department of Health,Guys and St Thomas NHS Foundation Trust,17/01/2020,(81100) Dressings,(id:42260) Oncology Services,NHS SUPPLY CHAIN (MAIDSTONE),id:12723603,3566.69
Department of Health,Guys and St Thomas NHS Foundation Trust,03/01/2020,(81100) Dressings,(id:42259) Oncology Services,NHS SUPPLY CHAIN (MAIDSTONE),id:12706389, 208.23
Department of Health,Guys and St Thomas NHS Foundation Trust,10/01/2020,(50522) Unqualified Nursing Staff,(id:42259) Oncology Services,MSI GROUP LTD,id:12739066    , 269.06
Department of Health,Guys and St Thomas NHS Foundation Trust,17/01/2020,(50522) Unqualified Nursing Staff,(id:42259) Oncology Services,GLOBE LOCUMS LTD,id:12750985 , 219.68
Department of Health,Guys and St Thomas NHS Foundation Trust,03/01/2020,(83400) Office Equipment,(id:42259) Oncology Services,NHS SUPPLY CHAIN (MAIDSTONE),id:12694241   , 236.15
Department of Health,Guys and St Thomas NHS Foundation Trust,03/01/2020,(81225) Medical Surgical Supplies & Equipment,(id:42259) Oncology Services,NHS SUPPLY CHAIN (MAIDSTONE),id:12694241  ,  45.23
Department of Health,Guys and St Thomas NHS Foundation Trust,03/01/2020,(82800) Bedding & Linen,(id:42280) Surgical Oncology,NHS SUPPLY CHAIN (MAIDSTONE),id:12706389    , 125.86
Department of Health,Guys and St Thomas NHS Foundation Trust,17/01/2020,(81100) Dressings,(id:42280) Surgical Oncology,SQUADRON MEDICAL LTD,id:12725202   , 400.80
Department of Health,Guys and St Thomas NHS Foundation Trust,17/01/2020,(81200) Medical Surgical Supplies & Equipment,(id:42280) Surgical Oncology,Q MEDICAL TECHNOLOGIES LTD,id:12743007    ,1242.60
Department of Health,Guys and St Thomas NHS Foundation Trust,30/01/2020,(81200) Medical Surgical Supplies & Equipment,(id:42280) Surgical Oncology,PFM MEDICAL UK LTD,id:12780317  ,3552.17
Department of Health,Guys and St Thomas NHS Foundation Trust,03/01/2020,(81200) Medical Surgical Supplies & Equipment,(id:42280) Surgical Oncology,Q MEDICAL TECHNOLOGIES LTD,id:12723530    ,3078.60
Department of Health,Guys and St Thomas NHS Foundation Trust,24/01/2020,(81200) Medical Surgical Supplies & Equipment,(id:42280) Surgical Oncology,Q MEDICAL TECHNOLOGIES LTD,id:12761436    ,2550.00
Department of Health,Guys and St Thomas NHS Foundation Trust,24/01/2020,(81200) Medical Surgical Supplies & Equipment,(id:42280) Surgical Oncology,SEBBIN UK LTD,id:12747764  ,3180.00
Department of Health,Guys and St Thomas NHS Foundation Trust,30/01/2020,(83400) Office Equipment,(id:42280) Surgical Oncology,NHS SUPPLY CHAIN (MAIDSTONE),id:12732483   ,   3.85
Department of Health,Guys and St Thomas NHS Foundation Trust,24/01/2020,(81000) Surgical Appliances,(id:42280) Surgical Oncology,MEDI UK LTD,id:12760277  , 232.90
Department of Health,Guys and St Thomas NHS Foundation Trust,03/01/2020,(81200) Medical Surgical Supplies & Equipment,(id:243406) Surgical Oncology,NHS SUPPLY CHAIN (MAIDSTONE),id:12706389 , 413.23
Department of Health,Guys and St Thomas NHS Foundation Trust,03/01/2020,(81100) Dressings,(id:243406) Surgical Oncology,NHS SUPPLY CHAIN (MAIDSTONE),id:12706389    , 176.25
Department of Health,Guys and St Thomas NHS Foundation Trust,17/01/2020,(82800) Bedding & Linen,(id:243406) Surgical Oncology,NHS SUPPLY CHAIN (MAIDSTONE),id:12723603   ,   6.94
Department of Health,Guys and St Thomas NHS Foundation Trust,30/01/2020,(82000) Provisions & Kitchens,(id:243406) Surgical Oncology,NHS SUPPLY CHAIN (MAIDSTONE),id:12732483  ,  32.04
Department of Health,Guys and St Thomas NHS Foundation Trust,03/01/2020,(81100) Dressings,(id:42474) Surgical Oncology,NHS SUPPLY CHAIN (MAIDSTONE),id:12706389,  27.90
Department of Health,Guys and St Thomas NHS Foundation Trust,03/01/2020,(81225) Medical Surgical Supplies & Equipment,(id:42474) Surgical Oncology,NHS SUPPLY CHAIN (MAIDSTONE),id:12694241  ,  77.11
Department of Health,Guys and St Thomas NHS Foundation Trust,03/01/2020,(81100) Dressings,(id:42473) Surgical Oncology,JEWEL MANAGEMENT LTD T/A GENERAL MEDICAL,id:12721436   , 571.48
Department of Health,Guys and St Thomas NHS Foundation Trust,10/01/2020,(81200) Medical Surgical Supplies & Equipment,(id:42473) Surgical Oncology,DELTA SURGICAL LTD,id:12724849  ,1328.40
Department of Health,Guys and St Thomas NHS Foundation Trust,17/01/2020,(81200) Medical Surgical Supplies & Equipment,(id:42473) Surgical Oncology,MERCIAN SURGICAL SUPPLY CO LTD,id:12741256,2088.00
Department of Health,Guys and St Thomas NHS Foundation Trust,17/01/2020,(81200) Medical Surgical Supplies & Equipment,(id:42473) Surgical Oncology,SQUADRON MEDICAL LTD,id:12724731, 626.28
Department of Health,Guys and St Thomas NHS Foundation Trust,17/01/2020,(81200) Medical Surgical Supplies & Equipment,(id:42473) Surgical Oncology,SQUADRON MEDICAL LTD,id:12708900, 626.28
Department of Health,Guys and St Thomas NHS Foundation Trust,03/01/2020,(81200) Medical Surgical Supplies & Equipment,(id:42473) Surgical Oncology,SQUADRON MEDICAL LTD,id:12708474, 667.67
Department of Health,Guys and St Thomas NHS Foundation Trust,03/01/2020,(81200) Medical Surgical Supplies & Equipment,(id:42473) Surgical Oncology,KARL STORZ ENDOSCOPY UK LTD,id:12722916   ,5056.80
Department of Health,Guys and St Thomas NHS Foundation Trust,24/01/2020,(81200) Medical Surgical Supplies & Equipment,(id:42473) Surgical Oncology,SQUADRON MEDICAL LTD,id:12739356, 162.01
Department of Health,Guys and St Thomas NHS Foundation Trust,30/01/2020,(81200) Medical Surgical Supplies & Equipment,(id:42473) Surgical Oncology,KARL STORZ ENDOSCOPY UK LTD,id:12780727   ,1410.00
Department of Health,Guys and St Thomas NHS Foundation Trust,10/01/2020,(81400) Medical Surgical Supplies & Equipment,(id:42473) Surgical Oncology,KARL STORZ ENDOSCOPY UK LTD,id:12740472   , 419.05
Department of Health,Guys and St Thomas NHS Foundation Trust,10/01/2020,(81400) Medical Surgical Supplies & Equipment,(id:42473) Surgical Oncology,KARL STORZ ENDOSCOPY UK LTD,id:12734441   , 825.10
Department of Health,Guys and St Thomas NHS Foundation Trust,27/01/2020,(54052) Technical Officers,(id:42475) Surgical Oncology,PRICEWATERHOUSECOOPERS LLP,id:12775755   , 654.63
Department of Health,Guys and St Thomas NHS Foundation Trust,03/01/2020,(81215) Medical Surgical Supplies & Equipment,(id:42475) Surgical Oncology,ADVANCED BIONICS SARL (AND UK LTD),id:12699297 ,4680.00
Department of Health,Guys and St Thomas NHS Foundation Trust,10/01/2020,(81215) Medical Surgical Supplies & Equipment,(id:42475) Surgical Oncology,COCHLEAR EUROPE LTD,id:12728856 ,  43.20
Department of Health,Guys and St Thomas NHS Foundation Trust,03/01/2020,(81225) Medical Surgical Supplies & Equipment,(id:42475) Surgical Oncology,NHS SUPPLY CHAIN (MAIDSTONE),id:12706389  ,5836.26
Department of Health,Guys and St Thomas NHS Foundation Trust,03/01/2020,(81225) Medical Surgical Supplies & Equipment,(id:42475) Surgical Oncology,COCHLEAR EUROPE LTD,id:12725496 ,5994.00
Department of Health,Guys and St Thomas NHS Foundation Trust,10/01/2020,(81225) Medical Surgical Supplies & Equipment,(id:42475) Surgical Oncology,STARKEY LABS LTD,id:12732455    ,  20.52
Department of Health,Guys and St Thomas NHS Foundation Trust,10/01/2020,(81225) Medical Surgical Supplies & Equipment,(id:42475) Surgical Oncology,COCHLEAR EUROPE LTD,id:12729176 ,7168.80
Department of Health,Guys and St Thomas NHS Foundation Trust,10/01/2020,(81225) Medical Surgical Supplies & Equipment,(id:42475) Surgical Oncology,COCHLEAR EUROPE LTD,id:12740619 ,5394.00
Department of Health,Guys and St Thomas NHS Foundation Trust,30/01/2020,(81225) Medical Surgical Supplies & Equipment,(id:42475) Surgical Oncology,MED-EL UK LTD,id:12778326  , 837.10
Department of Health,Guys and St Thomas NHS Foundation Trust,27/01/2020,(54072) Technical Officers,(id:42475) Surgical Oncology,PRICEWATERHOUSECOOPERS LLP,id:12775755   , 164.99
Department of Health,Guys and St Thomas NHS Foundation Trust,27/01/2020,(54072) Technical Officers,(id:42475) Surgical Oncology,PRICEWATERHOUSECOOPERS LLP,id:12775803   , 276.68
Department of Health,Guys and St Thomas NHS Foundation Trust,17/01/2020,(89000) Other - Training courses and conferences,(id:42472) Surgical Oncology,KINGS COLLEGE LONDON:03529700,id:12745877   ,    -6468.03
Department of Health,Guys and St Thomas NHS Foundation Trust,24/01/2020,(81100) Dressings,(id:42286) Surgical Oncology,SQUADRON MEDICAL LTD,id:12735274   ,  88.54
Department of Health,Guys and St Thomas NHS Foundation Trust,03/01/2020,(81200) Medical Surgical Supplies & Equipment,(id:42286) Surgical Oncology,MEDTRONIC LTD,id:12725796  ,4333.10
Department of Health,Guys and St Thomas NHS Foundation Trust,17/01/2020,(81200) Medical Surgical Supplies & Equipment,(id:42286) Surgical Oncology,MEDTRONIC LTD,id:12725451  , 986.54
Department of Health,Guys and St Thomas NHS Foundation Trust,17/01/2020,(81200) Medical Surgical Supplies & Equipment,(id:42286) Surgical Oncology,MEDTRONIC LTD,id:12742523  ,2458.51
Department of Health,Guys and St Thomas NHS Foundation Trust,30/01/2020,(81200) Medical Surgical Supplies & Equipment,(id:42286) Surgical Oncology,JOHNSON & JOHNSON MEDICAL LTD,id:12741753 ,4862.05
Department of Health,Guys and St Thomas NHS Foundation Trust,30/01/2020,(81200) Medical Surgical Supplies & Equipment,(id:42286) Surgical Oncology,INTUITIVE SURGICAL LTD,id:12765444   ,    -1733.04
Department of Health,Guys and St Thomas NHS Foundation Trust,30/01/2020,(81200) Medical Surgical Supplies & Equipment,(id:42286) Surgical Oncology,JOHNSON & JOHNSON MEDICAL LTD,id:12747000 ,1638.00
Department of Health,Guys and St Thomas NHS Foundation Trust,03/01/2020,(81100) Dressings,(id:42284) Surgical Oncology,NHS SUPPLY CHAIN (MAIDSTONE),id:12706389, 353.54
Department of Health,Guys and St Thomas NHS Foundation Trust,30/01/2020,(81200) Medical Surgical Supplies & Equipment,(id:42284) Surgical Oncology,FISHER & PAYKEL HEALTHCARE LTD,id:12779588, 712.80
Department of Health,Guys and St Thomas NHS Foundation Trust,03/01/2020,(83400) Office Equipment,(id:42284) Surgical Oncology,NHS SUPPLY CHAIN (MAIDSTONE),id:12694241   , 164.54
Department of Health,Guys and St Thomas NHS Foundation Trust,03/01/2020,(81700) Lab Equipment Purchase,(id:42284) Surgical Oncology,NHS SUPPLY CHAIN (MAIDSTONE),id:12706389  ,  65.42
Department of Health,Guys and St Thomas NHS Foundation Trust,30/01/2020,(82700) Uniforms & Clothing,(id:42470) Surgical Oncology,NHS SUPPLY CHAIN (MAIDSTONE),id:12732483,  31.68
Department of Health,Guys and St Thomas NHS Foundation Trust,30/01/2020,(82600) Uniforms & Clothing,(id:42470) Surgical Oncology,NHS SUPPLY CHAIN (MAIDSTONE),id:12732483, 195.48
Department of Health,Guys and St Thomas NHS Foundation Trust,30/01/2020,(83400) Office Equipment,(id:42470) Surgical Oncology,NHS SUPPLY CHAIN (MAIDSTONE),id:12732483   , 157.34
Department of Health,Guys and St Thomas NHS Foundation Trust,03/01/2020,(81700) Lab Equipment Purchase,(id:42470) Surgical Oncology,NHS SUPPLY CHAIN (MAIDSTONE),id:12694241  ,  64.69
Department of Health,Guys and St Thomas NHS Foundation Trust,30/01/2020,(84600) Establishment,(id:42115) Integrated Therapies and Medicine,CLARITY TRAVEL MANAGEMENT,id:12776401   , 955.28
Department of Health,Guys and St Thomas NHS Foundation Trust,03/01/2020,(81200) Medical Surgical Supplies & Equipment,(id:42232) Integrated Therapies and Medicine,NHS SUPPLY CHAIN (MAIDSTONE),id:12706389 ,1618.86
Department of Health,Guys and St Thomas NHS Foundation Trust,03/01/2020,(51862) Physiotherapists,(id:42232) Integrated Therapies and Medicine,YOUR WORLD RECRUITMENT LIMITED(YOUR WORLD HEALTHCARE),id:12694956  , 152.35
Department of Health,Guys and St Thomas NHS Foundation Trust,09/01/2020,(51862) Physiotherapists,(id:42232) Integrated Therapies and Medicine,PRICEWATERHOUSECOOPERS LLP,id:12735930    , 802.08
Department of Health,Guys and St Thomas NHS Foundation Trust,27/01/2020,(51862) Physiotherapists,(id:42232) Integrated Therapies and Medicine,PRICEWATERHOUSECOOPERS LLP,id:12775803    ,3281.58
Department of Health,Guys and St Thomas NHS Foundation Trust,30/01/2020,(81200) Medical Surgical Supplies & Equipment,(id:42231) Integrated Therapies and Medicine,NHS SUPPLY CHAIN (MAIDSTONE),id:12732483 , 235.20
Department of Health,Guys and St Thomas NHS Foundation Trust,27/01/2020,(51862) Physiotherapists,(id:42230) Integrated Therapies and Medicine,PRICEWATERHOUSECOOPERS LLP,id:12775755    ,3603.76
Department of Health,Guys and St Thomas NHS Foundation Trust,17/01/2020,(83400) Office Equipment,(id:42230) Integrated Therapies and Medicine,NHS SUPPLY CHAIN (MAIDSTONE),id:12723603  ,   4.80
Department of Health,Guys and St Thomas NHS Foundation Trust,03/01/2020,(83400) Office Equipment,(id:42230) Integrated Therapies and Medicine,NHS SUPPLY CHAIN (MAIDSTONE),id:12706389  ,  15.36
Department of Health,Guys and St Thomas NHS Foundation Trust,03/01/2020,(82000) Provisions & Kitchens,(id:42230) Integrated Therapies and Medicine,NHS SUPPLY CHAIN (MAIDSTONE),id:12694241  ,  28.20
Department of Health,Guys and St Thomas NHS Foundation Trust,30/01/2020,(81225) Medical Surgical Supplies & Equipment,(id:42239) Integrated Therapies and Medicine,PERFORMANCE HEALTH INTERNATIONAL LTD (PATTERSON),id:12743300 , 193.72
Department of Health,Guys and St Thomas NHS Foundation Trust,03/01/2020,(81700) Lab Equipment Purchase,(id:590566) Integrated Therapies and Medicine,NHS SUPPLY CHAIN (MAIDSTONE),id:12694241,  11.86
Department of Health,Guys and St Thomas NHS Foundation Trust,17/01/2020,(82600) Uniforms & Clothing,(id:590530) Integrated Therapies and Medicine,DISPOSABLE MEDICAL INSTRUMENTS LTD,id:12751090  , 738.00
Department of Health,Guys and St Thomas NHS Foundation Trust,24/01/2020,(81200) Medical Surgical Supplies & Equipment,(id:590499) Integrated Therapies and Medicine,INVACARE LTD,id:12755456 , 661.20
Department of Health,Guys and St Thomas NHS Foundation Trust,24/01/2020,(81225) Medical Surgical Supplies & Equipment,(id:590499) Integrated Therapies and Medicine,SUNRISE MEDICAL LIMITED,id:12756036, 510.84
Department of Health,Guys and St Thomas NHS Foundation Trust,28/01/2020,(51462) Occupational Therapists,(id:590499) Integrated Therapies and Medicine,PRICEWATERHOUSECOOPERS LLP,id:12777253 ,1259.08
Department of Health,Guys and St Thomas NHS Foundation Trust,24/01/2020,(81225) Medical Surgical Supplies & Equipment,(id:590498) Integrated Therapies and Medicine,JANE SAUNDERS & MANNING LTD,id:12756396 , 554.45
Department of Health,Guys and St Thomas NHS Foundation Trust,24/01/2020,(81000) Surgical Appliances,(id:590498) Integrated Therapies and Medicine,KENWARD ORTHOPAEDIC LTD,id:12757541   , 552.86
Department of Health,Guys and St Thomas NHS Foundation Trust,24/01/2020,(81000) Surgical Appliances,(id:590498) Integrated Therapies and Medicine,CHRIS HANLEY & PARTNERS,id:12757459   , 623.14
Department of Health,Guys and St Thomas NHS Foundation Trust,24/01/2020,(81000) Surgical Appliances,(id:590498) Integrated Therapies and Medicine,KENWARD ORTHOPAEDIC LTD,id:12757555   , 891.52
Department of Health,Guys and St Thomas NHS Foundation Trust,24/01/2020,(81400) Medical Surgical Supplies & Equipment,(id:590498) Integrated Therapies and Medicine,NPD ORTHOTICS LTD,id:12762096 , 534.87
Department of Health,Guys and St Thomas NHS Foundation Trust,03/01/2020,(81100) Dressings,(id:590496) Integrated Therapies and Medicine,NHS SUPPLY CHAIN (MAIDSTONE),id:12694241   ,  23.35
Department of Health,Guys and St Thomas NHS Foundation Trust,30/01/2020,(81100) Dressings,(id:590496) Integrated Therapies and Medicine,NHS SUPPLY CHAIN (MAIDSTONE),id:12732483   , 203.76
Department of Health,Guys and St Thomas NHS Foundation Trust,30/01/2020,(82800) Bedding & Linen,(id:590496) Integrated Therapies and Medicine,NHS SUPPLY CHAIN (MAIDSTONE),id:12732483  ,  27.41
Department of Health,Guys and St Thomas NHS Foundation Trust,30/01/2020,(81200) Medical Surgical Supplies & Equipment,(id:1042419) Integrated Therapies and Medicine,NHS SUPPLY CHAIN (MAIDSTONE),id:12732483    , 297.29
Department of Health,Guys and St Thomas NHS Foundation Trust,03/01/2020,(82000) Provisions & Kitchens,(id:1042419) Integrated Therapies and Medicine,NHS SUPPLY CHAIN (MAIDSTONE),id:12694241,  48.64
Department of Health,Guys and St Thomas NHS Foundation Trust,17/01/2020,(82000) Provisions & Kitchens,(id:1042419) Integrated Therapies and Medicine,NHS SUPPLY CHAIN (MAIDSTONE),id:12723603,  19.40
Department of Health,Guys and St Thomas NHS Foundation Trust,30/01/2020,(81275) Medical Surgical Supplies & Equipment,(id:2182419) Integrated Therapies and Medicine,NHS SUPPLY CHAIN (MAIDSTONE),id:12732483    ,  55.50
Department of Health,Guys and St Thomas NHS Foundation Trust,03/01/2020,(81255) Medical Surgical Supplies & Equipment,(id:2182419) Integrated Therapies and Medicine,NHS SUPPLY CHAIN (MAIDSTONE),id:12706389    ,  13.53
Department of Health,Guys and St Thomas NHS Foundation Trust,17/01/2020,(81200) Medical Surgical Supplies & Equipment,(id:2182419) Integrated Therapies and Medicine,NHS SUPPLY CHAIN (MAIDSTONE),id:12723603    ,2906.02
Department of Health,Guys and St Thomas NHS Foundation Trust,17/01/2020,(81200) Medical Surgical Supplies & Equipment,(id:2182419) Integrated Therapies and Medicine,FISHER & PAYKEL HEALTHCARE LTD,id:12748655  ,2970.00
Department of Health,Guys and St Thomas NHS Foundation Trust,30/01/2020,(50552) Qualified Nursing Staff,(id:2182419) Integrated Therapies and Medicine,CARE PROVIDERS HEALTHCARE,id:12781006 , 673.25
Department of Health,Guys and St Thomas NHS Foundation Trust,30/01/2020,(50552) Qualified Nursing Staff,(id:2182419) Integrated Therapies and Medicine,CARE PROVIDERS HEALTHCARE,id:12781203 , 679.88
Department of Health,Guys and St Thomas NHS Foundation Trust,03/01/2020,(50552) Qualified Nursing Staff,(id:2182419) Integrated Therapies and Medicine,CARE PROVIDERS HEALTHCARE,id:12719964 , 641.21
Department of Health,Guys and St Thomas NHS Foundation Trust,30/01/2020,(50522) Unqualified Nursing Staff,(id:2182419) Integrated Therapies and Medicine,MSI GROUP LTD,id:12779023 , 262.52
Department of Health,Guys and St Thomas NHS Foundation Trust,17/01/2020,(50522) Unqualified Nursing Staff,(id:2182419) Integrated Therapies and Medicine,GLOBE LOCUMS LTD,id:12745608   , 256.30
Department of Health,Guys and St Thomas NHS Foundation Trust,17/01/2020,(50522) Unqualified Nursing Staff,(id:2182419) Integrated Therapies and Medicine,MSI GROUP LTD,id:12746621 , 276.36
Department of Health,Guys and St Thomas NHS Foundation Trust,24/01/2020,(50522) Unqualified Nursing Staff,(id:2182419) Integrated Therapies and Medicine,MSI GROUP LTD,id:12763100 , 278.11
Department of Health,Guys and St Thomas NHS Foundation Trust,03/01/2020,(81100) Dressings,(id:2182419) Integrated Therapies and Medicine,NHS SUPPLY CHAIN (MAIDSTONE),id:12706389  , 829.33
Department of Health,Guys and St Thomas NHS Foundation Trust,30/01/2020,(81100) Dressings,(id:2182419) Integrated Therapies and Medicine,KCI MEDICAL LTD,id:12776660, 547.67
Department of Health,Guys and St Thomas NHS Foundation Trust,03/01/2020,(82700) Uniforms & Clothing,(id:41860) Integrated Therapies and Medicine,NHS SUPPLY CHAIN (MAIDSTONE),id:12706389    ,  76.49
Department of Health,Guys and St Thomas NHS Foundation Trust,03/01/2020,(83400) Office Equipment,(id:41860) Integrated Therapies and Medicine,NHS SUPPLY CHAIN (MAIDSTONE),id:12706389  , 207.08
Department of Health,Guys and St Thomas NHS Foundation Trust,10/01/2020,(50552) Qualified Nursing Staff,(id:41860) Integrated Therapies and Medicine,MSI GROUP LTD,id:12738972, 609.04
Department of Health,Guys and St Thomas NHS Foundation Trust,17/01/2020,(50552) Qualified Nursing Staff,(id:41860) Integrated Therapies and Medicine,GLOBE LOCUMS LTD,id:12745582  , 261.17
Department of Health,Guys and St Thomas NHS Foundation Trust,30/01/2020,(50552) Qualified Nursing Staff,(id:41860) Integrated Therapies and Medicine,MSI GROUP LTD,id:12781318, 677.32
Department of Health,Guys and St Thomas NHS Foundation Trust,30/01/2020,(50522) Unqualified Nursing Staff,(id:41860) Integrated Therapies and Medicine,MSI GROUP LTD,id:12780994   , 208.93
Department of Health,Guys and St Thomas NHS Foundation Trust,30/01/2020,(81225) Medical Surgical Supplies & Equipment,(id:41860) Integrated Therapies and Medicine,NHS SUPPLY CHAIN (MAIDSTONE),id:12732483 ,  29.02
Department of Health,Guys and St Thomas NHS Foundation Trust,03/01/2020,(82700) Uniforms & Clothing,(id:41859) Integrated Therapies and Medicine,NHS SUPPLY CHAIN (MAIDSTONE),id:12694241    ,  31.68
Department of Health,Guys and St Thomas NHS Foundation Trust,30/01/2020,(82000) Provisions & Kitchens,(id:41859) Integrated Therapies and Medicine,NHS SUPPLY CHAIN (MAIDSTONE),id:12732483  , 139.46
Department of Health,Guys and St Thomas NHS Foundation Trust,03/01/2020,(82800) Bedding & Linen,(id:41859) Integrated Therapies and Medicine,NHS SUPPLY CHAIN (MAIDSTONE),id:12694241   , 100.06
Department of Health,Guys and St Thomas NHS Foundation Trust,30/01/2020,(81255) Medical Surgical Supplies & Equipment,(id:41859) Integrated Therapies and Medicine,NHS SUPPLY CHAIN (MAIDSTONE),id:12732483 ,   3.12
Department of Health,Guys and St Thomas NHS Foundation Trust,17/01/2020,(81255) Medical Surgical Supplies & Equipment,(id:41859) Integrated Therapies and Medicine,NHS SUPPLY CHAIN (MAIDSTONE),id:12723603 ,   2.19
Department of Health,Guys and St Thomas NHS Foundation Trust,10/01/2020,(50522) Unqualified Nursing Staff,(id:41859) Integrated Therapies and Medicine,MSI GROUP LTD,id:12738808   , 269.21
Department of Health,Guys and St Thomas NHS Foundation Trust,30/01/2020,(50522) Unqualified Nursing Staff,(id:41859) Integrated Therapies and Medicine,MSI GROUP LTD,id:12779175   , 218.22
Department of Health,Guys and St Thomas NHS Foundation Trust,03/01/2020,(50522) Unqualified Nursing Staff,(id:41859) Integrated Therapies and Medicine,CARE PROVIDERS HEALTHCARE,id:12719983 , 613.09
Department of Health,Guys and St Thomas NHS Foundation Trust,03/01/2020,(81200) Medical Surgical Supplies & Equipment,(id:41859) Integrated Therapies and Medicine,NHS SUPPLY CHAIN (MAIDSTONE),id:12694241 , 595.92
Department of Health,Guys and St Thomas NHS Foundation Trust,03/01/2020,(82000) Provisions & Kitchens,(id:41858) Integrated Therapies and Medicine,NHS SUPPLY CHAIN (MAIDSTONE),id:12706389  ,  93.55
Department of Health,Guys and St Thomas NHS Foundation Trust,03/01/2020,(81100) Dressings,(id:41858) Integrated Therapies and Medicine,NHS SUPPLY CHAIN (MAIDSTONE),id:12694241    ,5640.61
Department of Health,Guys and St Thomas NHS Foundation Trust,03/01/2020,(81100) Dressings,(id:41858) Integrated Therapies and Medicine,NHS SUPPLY CHAIN (MAIDSTONE),id:12706389    , 159.60
Department of Health,Guys and St Thomas NHS Foundation Trust,17/01/2020,(81100) Dressings,(id:41858) Integrated Therapies and Medicine,NHS SUPPLY CHAIN (MAIDSTONE),id:12723603    , 114.54
Department of Health,Guys and St Thomas NHS Foundation Trust,03/01/2020,(81255) Medical Surgical Supplies & Equipment,(id:41858) Integrated Therapies and Medicine,NHS SUPPLY CHAIN (MAIDSTONE),id:12694241 ,   1.24
Department of Health,Guys and St Thomas NHS Foundation Trust,17/01/2020,(50522) Unqualified Nursing Staff,(id:41858) Integrated Therapies and Medicine,MSI GROUP LTD,id:12749140   , 270.54
Department of Health,Guys and St Thomas NHS Foundation Trust,03/01/2020,(81200) Medical Surgical Supplies & Equipment,(id:41858) Integrated Therapies and Medicine,NHS SUPPLY CHAIN (MAIDSTONE),id:12694241 , 874.48
Department of Health,Guys and St Thomas NHS Foundation Trust,24/01/2020,(83610) IT Costs,(id:41873) Integrated Therapies and Medicine,SCC PLC)SPECIALIST COMPUTER CENTRES,id:12761408   , 608.00
Department of Health,Guys and St Thomas NHS Foundation Trust,17/01/2020,(50532) Unqualified Nursing Staff,(id:41872) Integrated Therapies and Medicine,MSI GROUP LTD,id:12745808   , 287.22
Department of Health,Guys and St Thomas NHS Foundation Trust,30/01/2020,(50532) Unqualified Nursing Staff,(id:41872) Integrated Therapies and Medicine,CARE PROVIDERS HEALTHCARE,id:12781143 , 504.12
Department of Health,Guys and St Thomas NHS Foundation Trust,24/01/2020,(81000) Surgical Appliances,(id:41872) Integrated Therapies and Medicine,TALAR MADE ORTHOTICS LTD,id:12757756   , 114.00
Department of Health,Guys and St Thomas NHS Foundation Trust,24/01/2020,(50552) Qualified Nursing Staff,(id:41872) Integrated Therapies and Medicine,CONTINENTAL NURSE LTD,id:12763275  ,2483.96
Department of Health,Guys and St Thomas NHS Foundation Trust,30/01/2020,(50552) Qualified Nursing Staff,(id:41872) Integrated Therapies and Medicine,MSI GROUP LTD,id:12781062, 236.46
Department of Health,Guys and St Thomas NHS Foundation Trust,10/01/2020,(50552) Qualified Nursing Staff,(id:41872) Integrated Therapies and Medicine,CONTINENTAL NURSE LTD,id:12736700  ,2056.38
Department of Health,Guys and St Thomas NHS Foundation Trust,10/01/2020,(50552) Qualified Nursing Staff,(id:41872) Integrated Therapies and Medicine,FIRSTPOINT HEALTHCARE LTD,id:12736506   , 704.51
Department of Health,Guys and St Thomas NHS Foundation Trust,10/01/2020,(50552) Qualified Nursing Staff,(id:41872) Integrated Therapies and Medicine,FIRSTPOINT HEALTHCARE LTD,id:12736684   , 725.51
Department of Health,Guys and St Thomas NHS Foundation Trust,17/01/2020,(50522) Unqualified Nursing Staff,(id:41872) Integrated Therapies and Medicine,GLOBE LOCUMS LTD,id:12745683, 222.62
Department of Health,Guys and St Thomas NHS Foundation Trust,17/01/2020,(50522) Unqualified Nursing Staff,(id:41872) Integrated Therapies and Medicine,MSI GROUP LTD,id:12746759   , 256.74
Department of Health,Guys and St Thomas NHS Foundation Trust,24/01/2020,(50552) Qualified Nursing Staff,(id:41870) Integrated Therapies and Medicine,CARE PROVIDERS HEALTHCARE,id:12759145   , 673.26
Department of Health,Guys and St Thomas NHS Foundation Trust,17/01/2020,(50522) Unqualified Nursing Staff,(id:41870) Integrated Therapies and Medicine,MSI GROUP LTD,id:12745627   , 251.32
Department of Health,Guys and St Thomas NHS Foundation Trust,17/01/2020,(50522) Unqualified Nursing Staff,(id:41870) Integrated Therapies and Medicine,MSI GROUP LTD,id:12746621   , 276.37
Department of Health,Guys and St Thomas NHS Foundation Trust,03/01/2020,(83400) Office Equipment,(id:41869) Integrated Therapies and Medicine,SQUADRON MEDICAL LTD,id:12702691, 235.68
Department of Health,Guys and St Thomas NHS Foundation Trust,24/01/2020,(83400) Office Equipment,(id:41869) Integrated Therapies and Medicine,SQUADRON MEDICAL LTD,id:12735254, 256.27
Department of Health,Guys and St Thomas NHS Foundation Trust,30/01/2020,(83400) Office Equipment,(id:41869) Integrated Therapies and Medicine,NHS SUPPLY CHAIN (MAIDSTONE),id:12732483  , 338.61
Department of Health,Guys and St Thomas NHS Foundation Trust,03/01/2020,(81200) Medical Surgical Supplies & Equipment,(id:41869) Integrated Therapies and Medicine,SQUADRON MEDICAL LTD,id:12701122    ,1828.77
Department of Health,Guys and St Thomas NHS Foundation Trust,10/01/2020,(81200) Medical Surgical Supplies & Equipment,(id:41869) Integrated Therapies and Medicine,SQUADRON MEDICAL LTD,id:12715373    ,1613.62
Department of Health,Guys and St Thomas NHS Foundation Trust,17/01/2020,(81200) Medical Surgical Supplies & Equipment,(id:41869) Integrated Therapies and Medicine,SQUADRON MEDICAL LTD,id:12720608    , 419.56
Department of Health,Guys and St Thomas NHS Foundation Trust,17/01/2020,(81200) Medical Surgical Supplies & Equipment,(id:41869) Integrated Therapies and Medicine,SQUADRON MEDICAL LTD,id:12725214    , 776.10
Department of Health,Guys and St Thomas NHS Foundation Trust,30/01/2020,(81200) Medical Surgical Supplies & Equipment,(id:41869) Integrated Therapies and Medicine,SQUADRON MEDICAL LTD,id:12745108    ,2317.57
Department of Health,Guys and St Thomas NHS Foundation Trust,03/01/2020,(81100) Dressings,(id:41869) Integrated Therapies and Medicine,SQUADRON MEDICAL LTD,id:12692798  ,  38.65
Department of Health,Guys and St Thomas NHS Foundation Trust,03/01/2020,(81225) Medical Surgical Supplies & Equipment,(id:41869) Integrated Therapies and Medicine,NHS SUPPLY CHAIN (MAIDSTONE),id:12694241 , 848.29
Department of Health,Guys and St Thomas NHS Foundation Trust,17/01/2020,(81700) Lab Equipment Purchase,(id:41869) Integrated Therapies and Medicine,SQUADRON MEDICAL LTD,id:12720491    ,   9.65
Department of Health,Guys and St Thomas NHS Foundation Trust,03/01/2020,(81700) Lab Equipment Purchase,(id:41869) Integrated Therapies and Medicine,SQUADRON MEDICAL LTD,id:12692845    ,  48.24
Department of Health,Guys and St Thomas NHS Foundation Trust,03/01/2020,(81700) Lab Equipment Purchase,(id:41869) Integrated Therapies and Medicine,SQUADRON MEDICAL LTD,id:12708884    ,  53.06
Department of Health,Guys and St Thomas NHS Foundation Trust,03/01/2020,(81700) Lab Equipment Purchase,(id:41869) Integrated Therapies and Medicine,SQUADRON MEDICAL LTD,id:12708431    ,  72.36
Department of Health,Guys and St Thomas NHS Foundation Trust,03/01/2020,(82800) Bedding & Linen,(id:41868) Integrated Therapies and Medicine,NHS SUPPLY CHAIN (MAIDSTONE),id:12694241   ,  20.85
Department of Health,Guys and St Thomas NHS Foundation Trust,03/01/2020,(81100) Dressings,(id:41868) Integrated Therapies and Medicine,NHS SUPPLY CHAIN (MAIDSTONE),id:12694241    , 836.88
Department of Health,Guys and St Thomas NHS Foundation Trust,17/01/2020,(81200) Medical Surgical Supplies & Equipment,(id:41868) Integrated Therapies and Medicine,SQUADRON MEDICAL LTD,id:12725465    , 485.31
Department of Health,Guys and St Thomas NHS Foundation Trust,30/01/2020,(82000) Provisions & Kitchens,(id:41868) Integrated Therapies and Medicine,NHS SUPPLY CHAIN (MAIDSTONE),id:12732483  ,  24.36
Department of Health,Guys and St Thomas NHS Foundation Trust,17/01/2020,(81700) Lab Equipment Purchase,(id:41868) Integrated Therapies and Medicine,SQUADRON MEDICAL LTD,id:12725465    ,  14.47
Department of Health,Guys and St Thomas NHS Foundation Trust,03/01/2020,(81255) Medical Surgical Supplies & Equipment,(id:41868) Integrated Therapies and Medicine,NHS SUPPLY CHAIN (MAIDSTONE),id:12706389 ,   5.52
Department of Health,Guys and St Thomas NHS Foundation Trust,03/01/2020,(83400) Office Equipment,(id:41882) Integrated Therapies and Medicine,NHS SUPPLY CHAIN (MAIDSTONE),id:12706389  , 134.98
Department of Health,Guys and St Thomas NHS Foundation Trust,03/01/2020,(82800) Bedding & Linen,(id:41882) Integrated Therapies and Medicine,NHS SUPPLY CHAIN (MAIDSTONE),id:12706389   , 106.50
Department of Health,Guys and St Thomas NHS Foundation Trust,17/01/2020,(82000) Provisions & Kitchens,(id:41880) Integrated Therapies and Medicine,NHS SUPPLY CHAIN (MAIDSTONE),id:12723603  ,   1.86
Department of Health,Guys and St Thomas NHS Foundation Trust,17/01/2020,(83400) Office Equipment,(id:41880) Integrated Therapies and Medicine,NHS SUPPLY CHAIN (MAIDSTONE),id:12723603  ,  36.11
Department of Health,Guys and St Thomas NHS Foundation Trust,30/01/2020,(83400) Office Equipment,(id:41880) Integrated Therapies and Medicine,NHS SUPPLY CHAIN (MAIDSTONE),id:12732483  , 108.83
Department of Health,Guys and St Thomas NHS Foundation Trust,17/01/2020,(50552) Qualified Nursing Staff,(id:41880) Integrated Therapies and Medicine,MSI GROUP LTD,id:12749372, 350.23
Department of Health,Guys and St Thomas NHS Foundation Trust,03/01/2020,(81200) Medical Surgical Supplies & Equipment,(id:41880) Integrated Therapies and Medicine,NHS SUPPLY CHAIN (MAIDSTONE),id:12706389 , 923.73
Department of Health,Guys and St Thomas NHS Foundation Trust,03/01/2020,(81700) Lab Equipment Purchase,(id:41880) Integrated Therapies and Medicine,NHS SUPPLY CHAIN (MAIDSTONE),id:12694241 ,   9.03
Department of Health,Guys and St Thomas NHS Foundation Trust,24/01/2020,(50522) Unqualified Nursing Staff,(id:41880) Integrated Therapies and Medicine,FIRSTPOINT HEALTHCARE LTD,id:12763120 , 464.75
Department of Health,Guys and St Thomas NHS Foundation Trust,03/01/2020,(82000) Provisions & Kitchens,(id:41879) Integrated Therapies and Medicine,NHS SUPPLY CHAIN (MAIDSTONE),id:12694241  ,  89.50
Department of Health,Guys and St Thomas NHS Foundation Trust,17/01/2020,(82000) Provisions & Kitchens,(id:41879) Integrated Therapies and Medicine,NHS SUPPLY CHAIN (MAIDSTONE),id:12723603  ,  37.50
Department of Health,Guys and St Thomas NHS Foundation Trust,03/01/2020,(82800) Bedding & Linen,(id:41879) Integrated Therapies and Medicine,NHS SUPPLY CHAIN (MAIDSTONE),id:12694241   ,  79.78
Department of Health,Guys and St Thomas NHS Foundation Trust,03/01/2020,(81100) Dressings,(id:41879) Integrated Therapies and Medicine,NHS SUPPLY CHAIN (MAIDSTONE),id:12694241    ,  73.41
Department of Health,Guys and St Thomas NHS Foundation Trust,17/01/2020,(50522) Unqualified Nursing Staff,(id:41879) Integrated Therapies and Medicine,MSI GROUP LTD,id:12745578   , 419.72
Department of Health,Guys and St Thomas NHS Foundation Trust,24/01/2020,(50522) Unqualified Nursing Staff,(id:41879) Integrated Therapies and Medicine,CARE PROVIDERS HEALTHCARE,id:12759041 , 621.04
Department of Health,Guys and St Thomas NHS Foundation Trust,24/01/2020,(50522) Unqualified Nursing Staff,(id:41879) Integrated Therapies and Medicine,GLOBE LOCUMS LTD,id:12759037, 490.76
Department of Health,Guys and St Thomas NHS Foundation Trust,10/01/2020,(81200) Medical Surgical Supplies & Equipment,(id:41879) Integrated Therapies and Medicine,ARJO UK LIMITED,id:12730118    , 685.20
Department of Health,Guys and St Thomas NHS Foundation Trust,30/01/2020,(50552) Qualified Nursing Staff,(id:41879) Integrated Therapies and Medicine,CONTINENTAL NURSE LTD,id:12779156  ,2218.98
Department of Health,Guys and St Thomas NHS Foundation Trust,30/01/2020,(50552) Qualified Nursing Staff,(id:41879) Integrated Therapies and Medicine,GLOBE LOCUMS LTD,id:12779176  , 343.27
Department of Health,Guys and St Thomas NHS Foundation Trust,30/01/2020,(83400) Office Equipment,(id:41878) Integrated Therapies and Medicine,NHS SUPPLY CHAIN (MAIDSTONE),id:12732483  , 120.33
Department of Health,Guys and St Thomas NHS Foundation Trust,03/01/2020,(50522) Unqualified Nursing Staff,(id:41878) Integrated Therapies and Medicine,MSI GROUP LTD,id:12726767   , 218.77
Department of Health,Guys and St Thomas NHS Foundation Trust,17/01/2020,(50522) Unqualified Nursing Staff,(id:41878) Integrated Therapies and Medicine,MSI GROUP LTD,id:12745493   , 599.39
Department of Health,Guys and St Thomas NHS Foundation Trust,24/01/2020,(50522) Unqualified Nursing Staff,(id:41878) Integrated Therapies and Medicine,CARE PROVIDERS HEALTHCARE,id:12759104 , 798.69
Department of Health,Guys and St Thomas NHS Foundation Trust,24/01/2020,(50522) Unqualified Nursing Staff,(id:41878) Integrated Therapies and Medicine,MSI GROUP LTD,id:12762971   , 270.53
Department of Health,Guys and St Thomas NHS Foundation Trust,30/01/2020,(50522) Unqualified Nursing Staff,(id:41878) Integrated Therapies and Medicine,MSI GROUP LTD,id:12780993   , 244.83
Department of Health,Guys and St Thomas NHS Foundation Trust,17/01/2020,(81225) Medical Surgical Supplies & Equipment,(id:41878) Integrated Therapies and Medicine,NHS SUPPLY CHAIN (MAIDSTONE),id:12723603 ,  24.89
Department of Health,Guys and St Thomas NHS Foundation Trust,24/01/2020,(81000) Surgical Appliances,(id:41876) Integrated Therapies and Medicine,TALAR MADE ORTHOTICS LTD,id:12757514   ,  75.30
Department of Health,Guys and St Thomas NHS Foundation Trust,03/01/2020,(82000) Provisions & Kitchens,(id:41881) Integrated Therapies and Medicine,NHS SUPPLY CHAIN (MAIDSTONE),id:12706389  ,  88.80
Department of Health,Guys and St Thomas NHS Foundation Trust,30/01/2020,(82800) Bedding & Linen,(id:41881) Integrated Therapies and Medicine,NHS SUPPLY CHAIN (MAIDSTONE),id:12732483   , 166.53
Department of Health,Guys and St Thomas NHS Foundation Trust,17/01/2020,(50552) Qualified Nursing Staff,(id:41881) Integrated Therapies and Medicine,GLOBE LOCUMS LTD,id:12745631  , 336.09
Department of Health,Guys and St Thomas NHS Foundation Trust,03/01/2020,(50522) Unqualified Nursing Staff,(id:41881) Integrated Therapies and Medicine,MSI GROUP LTD,id:12726826   , 462.84
Department of Health,Guys and St Thomas NHS Foundation Trust,10/01/2020,(50522) Unqualified Nursing Staff,(id:41881) Integrated Therapies and Medicine,MSI GROUP LTD,id:12739065   , 208.96
Department of Health,Guys and St Thomas NHS Foundation Trust,24/01/2020,(50522) Unqualified Nursing Staff,(id:41881) Integrated Therapies and Medicine,CARE PROVIDERS HEALTHCARE,id:12759110 , 204.36
Department of Health,Guys and St Thomas NHS Foundation Trust,24/01/2020,(50522) Unqualified Nursing Staff,(id:41881) Integrated Therapies and Medicine,MSI GROUP LTD,id:12763512   ,1015.90
Department of Health,Guys and St Thomas NHS Foundation Trust,03/01/2020,(81700) Lab Equipment Purchase,(id:41881) Integrated Therapies and Medicine,NHS SUPPLY CHAIN (MAIDSTONE),id:12694241 ,   9.07
Department of Health,Guys and St Thomas NHS Foundation Trust,03/01/2020,(83400) Office Equipment,(id:42255) Integrated Local Services,NHS SUPPLY CHAIN (MAIDSTONE),id:12706389,  22.56
Department of Health,Guys and St Thomas NHS Foundation Trust,30/01/2020,(84400) Transport,(id:590579) Integrated Local Services,CITYSPRINT (UK) LTD,id:12744573, 458.15
Department of Health,Guys and St Thomas NHS Foundation Trust,03/01/2020,(82800) Bedding & Linen,(id:590579) Integrated Local Services,NHS SUPPLY CHAIN (MAIDSTONE),id:12694241,  16.48
Department of Health,Guys and St Thomas NHS Foundation Trust,03/01/2020,(83400) Office Equipment,(id:1885422) Integrated Local Services,NHS SUPPLY CHAIN (MAIDSTONE),id:12694241   , 116.78
Department of Health,Guys and St Thomas NHS Foundation Trust,27/01/2020,(51872) Physiotherapists,(id:1371419) Integrated Local Services,PRICEWATERHOUSECOOPERS LLP,id:12775803,2865.87
Department of Health,Guys and St Thomas NHS Foundation Trust,10/01/2020,(50562) Qualified Nursing Staff,(id:699422) Integrated Local Services,CARE PROVIDERS HEALTHCARE,id:12739165, 642.08
Department of Health,Guys and St Thomas NHS Foundation Trust,24/01/2020,(50562) Qualified Nursing Staff,(id:699422) Integrated Local Services,CARE PROVIDERS HEALTHCARE,id:12759141,1111.05
Department of Health,Guys and St Thomas NHS Foundation Trust,30/01/2020,(50562) Qualified Nursing Staff,(id:699422) Integrated Local Services,CARE PROVIDERS HEALTHCARE,id:12779109, 842.73
Department of Health,Guys and St Thomas NHS Foundation Trust,03/01/2020,(50572) Qualified Nursing Staff,(id:699422) Integrated Local Services,MSI GROUP LTD,id:12726814  ,1511.51
Department of Health,Guys and St Thomas NHS Foundation Trust,10/01/2020,(51832) Physiotherapists,(id:699422) Integrated Local Services,YOUR WORLD RECRUITMENT LIMITED(YOUR WORLD HEALTHCARE),id:12736487    , 889.84
Department of Health,Guys and St Thomas NHS Foundation Trust,10/01/2020,(51832) Physiotherapists,(id:699422) Integrated Local Services,PSL RECRUITMENT SERVICES LTD,id:12736413    , 994.36
Department of Health,Guys and St Thomas NHS Foundation Trust,17/01/2020,(51832) Physiotherapists,(id:699422) Integrated Local Services,YOUR WORLD RECRUITMENT LIMITED(YOUR WORLD HEALTHCARE),id:12745570    , 511.12
Department of Health,Guys and St Thomas NHS Foundation Trust,27/01/2020,(51472) Occupational Therapists,(id:699422) Integrated Local Services,PRICEWATERHOUSECOOPERS LLP,id:12775755    ,1554.70
Department of Health,Guys and St Thomas NHS Foundation Trust,17/01/2020,(81700) Lab Equipment Purchase,(id:699422) Integrated Local Services,NHS SUPPLY CHAIN (MAIDSTONE),id:12723603   ,  50.54
Department of Health,Guys and St Thomas NHS Foundation Trust,03/01/2020,(81200) Medical Surgical Supplies & Equipment,(id:590523) Integrated Local Services,NHS SUPPLY CHAIN (MAIDSTONE),id:12706389   ,  80.00
Department of Health,Guys and St Thomas NHS Foundation Trust,03/01/2020,(81200) Medical Surgical Supplies & Equipment,(id:590492) Integrated Local Services,NHS SUPPLY CHAIN (MAIDSTONE),id:12706389   , 330.00
Department of Health,Guys and St Thomas NHS Foundation Trust,03/01/2020,(50200) Consultants,(id:590492) Integrated Local Services,KING'S COLLEGE HOSPITAL NHS FOUNDATION TRUST,id:12076311   ,3323.19
Department of Health,Guys and St Thomas NHS Foundation Trust,27/01/2020,(51862) Physiotherapists,(id:684420) Integrated Local Services,PRICEWATERHOUSECOOPERS LLP,id:12775803 ,1259.08
Department of Health,Guys and St Thomas NHS Foundation Trust,09/01/2020,(51462) Occupational Therapists,(id:590504) Integrated Local Services,PRICEWATERHOUSECOOPERS LLP,id:12735930    , 705.91
Department of Health,Guys and St Thomas NHS Foundation Trust,28/01/2020,(51462) Occupational Therapists,(id:590504) Integrated Local Services,PRICEWATERHOUSECOOPERS LLP,id:12777253    ,1192.25
Department of Health,Guys and St Thomas NHS Foundation Trust,27/01/2020,(51862) Physiotherapists,(id:590504) Integrated Local Services,PRICEWATERHOUSECOOPERS LLP,id:12775803 ,1422.43
Department of Health,Guys and St Thomas NHS Foundation Trust,27/01/2020,(51462) Occupational Therapists,(id:684419) Integrated Local Services,PRICEWATERHOUSECOOPERS LLP,id:12775755    ,1217.37
Department of Health,Guys and St Thomas NHS Foundation Trust,27/01/2020,(51842) Physiotherapists,(id:684419) Integrated Local Services,PRICEWATERHOUSECOOPERS LLP,id:12775803 , 771.70
Department of Health,Guys and St Thomas NHS Foundation Trust,17/01/2020,(51842) Physiotherapists,(id:684419) Integrated Local Services,PERTEMPS MEDICAL PROFESSIONALS LIMITED,id:12749337    ,1078.03
Department of Health,Guys and St Thomas NHS Foundation Trust,03/01/2020,(50552) Qualified Nursing Staff,(id:4460419) Integrated Local Services,YOUR WORLD RECRUITMENT LIMITED(YOUR WORLD HEALTHCARE),id:12720193 ,1079.93
Department of Health,Guys and St Thomas NHS Foundation Trust,30/01/2020,(50552) Qualified Nursing Staff,(id:4460419) Integrated Local Services,MSI GROUP LTD,id:12781061 ,1085.67
Department of Health,Guys and St Thomas NHS Foundation Trust,24/01/2020,(50552) Qualified Nursing Staff,(id:4460419) Integrated Local Services,YOUR WORLD RECRUITMENT LIMITED(YOUR WORLD HEALTHCARE),id:12759089 ,1093.12
Department of Health,Guys and St Thomas NHS Foundation Trust,24/01/2020,(50552) Qualified Nursing Staff,(id:4460419) Integrated Local Services,YOUR WORLD RECRUITMENT LIMITED(YOUR WORLD HEALTHCARE),id:12762999 , 500.45
Department of Health,Guys and St Thomas NHS Foundation Trust,24/01/2020,(50552) Qualified Nursing Staff,(id:3200419) Integrated Local Services,NURSING 2000 LTD,id:12763603   ,1099.48
Department of Health,Guys and St Thomas NHS Foundation Trust,17/01/2020,(83400) Office Equipment,(id:590522) Integrated Local Services,NHS SUPPLY CHAIN (MAIDSTONE),id:12723603    ,  49.27
Department of Health,Guys and St Thomas NHS Foundation Trust,03/01/2020,(82000) Provisions & Kitchens,(id:590522) Integrated Local Services,NHS SUPPLY CHAIN (MAIDSTONE),id:12694241    ,   3.22
Department of Health,Guys and St Thomas NHS Foundation Trust,30/01/2020,(83400) Office Equipment,(id:590521) Integrated Local Services,NHS SUPPLY CHAIN (MAIDSTONE),id:12732483    ,  12.96
Department of Health,Guys and St Thomas NHS Foundation Trust,03/01/2020,(50552) Qualified Nursing Staff,(id:590521) Integrated Local Services,NURSING 2000 LTD,id:12720027    ,1707.15
Department of Health,Guys and St Thomas NHS Foundation Trust,10/01/2020,(50552) Qualified Nursing Staff,(id:590521) Integrated Local Services,MSI GROUP LTD,id:12739123  , 794.40
Department of Health,Guys and St Thomas NHS Foundation Trust,17/01/2020,(50552) Qualified Nursing Staff,(id:590521) Integrated Local Services,NURSING 2000 LTD,id:12745597    , 502.42
Department of Health,Guys and St Thomas NHS Foundation Trust,24/01/2020,(50552) Qualified Nursing Staff,(id:590521) Integrated Local Services,MSI GROUP LTD,id:12762970  , 491.94
Department of Health,Guys and St Thomas NHS Foundation Trust,24/01/2020,(50552) Qualified Nursing Staff,(id:590521) Integrated Local Services,NURSING 2000 LTD,id:12749144    , 890.13
Department of Health,Guys and St Thomas NHS Foundation Trust,24/01/2020,(50552) Qualified Nursing Staff,(id:590521) Integrated Local Services,NURSING 2000 LTD,id:12763364    , 993.23
Department of Health,Guys and St Thomas NHS Foundation Trust,03/01/2020,(50552) Qualified Nursing Staff,(id:590520) Integrated Local Services,YOUR WORLD RECRUITMENT LIMITED(YOUR WORLD HEALTHCARE),id:12720078  ,1224.81
Department of Health,Guys and St Thomas NHS Foundation Trust,17/01/2020,(50552) Qualified Nursing Staff,(id:590520) Integrated Local Services,MSI GROUP LTD,id:12749174  , 581.62
Department of Health,Guys and St Thomas NHS Foundation Trust,17/01/2020,(50552) Qualified Nursing Staff,(id:590520) Integrated Local Services,CARE PROVIDERS HEALTHCARE,id:12746770, 795.00
Department of Health,Guys and St Thomas NHS Foundation Trust,17/01/2020,(81100) Dressings,(id:590473) Integrated Local Services,NHS SUPPLY CHAIN (MAIDSTONE),id:12723603 , 779.45
Department of Health,Guys and St Thomas NHS Foundation Trust,30/01/2020,(81200) Medical Surgical Supplies & Equipment,(id:590473) Integrated Local Services,NHS SUPPLY CHAIN (MAIDSTONE),id:12732483   , 108.55
Department of Health,Guys and St Thomas NHS Foundation Trust,10/01/2020,(50552) Qualified Nursing Staff,(id:590473) Integrated Local Services,MSI GROUP LTD,id:12736522  ,1762.30
Department of Health,Guys and St Thomas NHS Foundation Trust,17/01/2020,(82800) Bedding & Linen,(id:590473) Integrated Local Services,NHS SUPPLY CHAIN (MAIDSTONE),id:12723603,  62.21
Department of Health,Guys and St Thomas NHS Foundation Trust,03/01/2020,(81100) Dressings,(id:590471) Integrated Local Services,NHS SUPPLY CHAIN (MAIDSTONE),id:12706389 ,  28.86
Department of Health,Guys and St Thomas NHS Foundation Trust,03/01/2020,(81200) Medical Surgical Supplies & Equipment,(id:590471) Integrated Local Services,NHS SUPPLY CHAIN (MAIDSTONE),id:12706389   , 449.59
Department of Health,Guys and St Thomas NHS Foundation Trust,03/01/2020,(81200) Medical Surgical Supplies & Equipment,(id:590470) Integrated Local Services,NHS SUPPLY CHAIN (MAIDSTONE),id:12706389   ,  63.12
Department of Health,Guys and St Thomas NHS Foundation Trust,24/01/2020,(50552) Qualified Nursing Staff,(id:590470) Integrated Local Services,MSI GROUP LTD,id:12759146  ,1776.54
Department of Health,Guys and St Thomas NHS Foundation Trust,03/01/2020,(81200) Medical Surgical Supplies & Equipment,(id:590463) Integrated Local Services,NHS SUPPLY CHAIN (MAIDSTONE),id:12706389   , 330.46
Department of Health,Guys and St Thomas NHS Foundation Trust,03/01/2020,(82000) Provisions & Kitchens,(id:590527) Integrated Local Services,NHS SUPPLY CHAIN (MAIDSTONE),id:12706389    ,  84.09
Department of Health,Guys and St Thomas NHS Foundation Trust,17/01/2020,(81200) Medical Surgical Supplies & Equipment,(id:590527) Integrated Local Services,NHS SUPPLY CHAIN (MAIDSTONE),id:12723603   , 193.20
Department of Health,Guys and St Thomas NHS Foundation Trust,03/01/2020,(82700) Uniforms & Clothing,(id:590527) Integrated Local Services,NHS SUPPLY CHAIN (MAIDSTONE),id:12706389 , 187.11
Department of Health,Guys and St Thomas NHS Foundation Trust,03/01/2020,(81100) Dressings,(id:590527) Integrated Local Services,NHS SUPPLY CHAIN (MAIDSTONE),id:12706389 , 318.08
Department of Health,Guys and St Thomas NHS Foundation Trust,03/01/2020,(81700) Lab Equipment Purchase,(id:590527) Integrated Local Services,NHS SUPPLY CHAIN (MAIDSTONE),id:12706389   ,  16.61
Department of Health,Guys and St Thomas NHS Foundation Trust,10/01/2020,(50522) Unqualified Nursing Staff,(id:590526) Integrated Local Services,CARE PROVIDERS HEALTHCARE,id:12736552   , 687.69
Department of Health,Guys and St Thomas NHS Foundation Trust,24/01/2020,(50522) Unqualified Nursing Staff,(id:590526) Integrated Local Services,GLOBE LOCUMS LTD,id:12759115  , 246.42
Department of Health,Guys and St Thomas NHS Foundation Trust,17/01/2020,(50552) Qualified Nursing Staff,(id:590526) Integrated Local Services,CARE PROVIDERS HEALTHCARE,id:12749362, 679.88
Department of Health,Guys and St Thomas NHS Foundation Trust,24/01/2020,(50552) Qualified Nursing Staff,(id:590526) Integrated Local Services,GLOBE LOCUMS LTD,id:12759080    ,1570.07
Department of Health,Guys and St Thomas NHS Foundation Trust,03/01/2020,(82800) Bedding & Linen,(id:1379419) Integrated Local Services,NHS SUPPLY CHAIN (MAIDSTONE),id:12694241    ,  41.47
Department of Health,Guys and St Thomas NHS Foundation Trust,30/01/2020,(84400) Transport,(id:903421) Integrated Local Services,CITYSPRINT (UK) LTD,id:12744570,2154.18
Department of Health,Guys and St Thomas NHS Foundation Trust,17/01/2020,(80040) Drug Costs,(id:590491) Integrated Local Services,NHS BUSINESS SERVICES AUTHORITY,id:12751241  ,    91035.89
Department of Health,Guys and St Thomas NHS Foundation Trust,17/01/2020,(82000) Provisions & Kitchens,(id:42348) Evelina Central R&D and Charity,NHS SUPPLY CHAIN (MAIDSTONE),id:12723603    ,  64.14
Department of Health,Guys and St Thomas NHS Foundation Trust,30/01/2020,(82800) Bedding & Linen,(id:42348) Evelina Central R&D and Charity,NHS SUPPLY CHAIN (MAIDSTONE),id:12732483, 119.57
Department of Health,Guys and St Thomas NHS Foundation Trust,30/01/2020,(81200) Medical Surgical Supplies & Equipment,(id:42348) Evelina Central R&D and Charity,NHS SUPPLY CHAIN (MAIDSTONE),id:12732483   , 250.39
Department of Health,Guys and St Thomas NHS Foundation Trust,03/01/2020,(81700) Lab Equipment Purchase,(id:42348) Evelina Central R&D and Charity,NHS SUPPLY CHAIN (MAIDSTONE),id:12706389   ,  61.15
Department of Health,Guys and St Thomas NHS Foundation Trust,03/01/2020,(82700) Uniforms & Clothing,(id:42331) Evelina Central R&D and Charity,NHS SUPPLY CHAIN (MAIDSTONE),id:12694241 ,  43.60
Department of Health,Guys and St Thomas NHS Foundation Trust,03/01/2020,(81255) Medical Surgical Supplies & Equipment,(id:42325) Evelina Central R&D and Charity,NHS SUPPLY CHAIN (MAIDSTONE),id:12706389   , 305.28
Department of Health,Guys and St Thomas NHS Foundation Trust,30/01/2020,(82000) Provisions & Kitchens,(id:2965419) Evelina Central R&D and Charity,NHS SUPPLY CHAIN (MAIDSTONE),id:12732483  ,  46.86
Department of Health,Guys and St Thomas NHS Foundation Trust,20/01/2020,(83500) Furniture & Fittings,(id:2964419) Evelina Central R&D and Charity,GSTT PROCUREMENT CARD,id:12757533, 270.00
Department of Health,Guys and St Thomas NHS Foundation Trust,20/01/2020,(89200) Other - Patient travel,(id:2964419) Evelina Central R&D and Charity,GSTT PROCUREMENT CARD,id:12757384   , 186.00
Department of Health,Guys and St Thomas NHS Foundation Trust,30/01/2020,(84600) Establishment,(id:4199419) Evelina Central R&D and Charity,CLARITY TRAVEL MANAGEMENT,id:12776401   , 104.74
Department of Health,Guys and St Thomas NHS Foundation Trust,30/01/2020,(89000) Other - Training courses and conferences,(id:4400419) Evelina Central R&D and Charity,KINGS COLLEGE LONDON:03529700,id:12777353  ,1665.00
Department of Health,Guys and St Thomas NHS Foundation Trust,10/01/2020,(81700) Lab Equipment Purchase,(id:3805419) Evelina Central R&D and Charity,THE DOCTORS LABORATORY LTD,id:12740376   ,2010.00
Department of Health,Guys and St Thomas NHS Foundation Trust,03/01/2020,(81700) Lab Equipment Purchase,(id:3156419) Evelina Central R&D and Charity,NHS SUPPLY CHAIN (MAIDSTONE),id:12706389 ,  21.02
Department of Health,Guys and St Thomas NHS Foundation Trust,10/01/2020,(81200) Medical Surgical Supplies & Equipment,(id:2399419) Evelina Central R&D and Charity,UK COMPUTER GROUP LTD T/A MISCO,id:12492161   , 537.50
Department of Health,Guys and St Thomas NHS Foundation Trust,03/01/2020,(81700) Lab Equipment Purchase,(id:1622419) Evelina Central R&D and Charity,BECTON DICKINSON UK LTD,id:12703355 , 902.40
Department of Health,Guys and St Thomas NHS Foundation Trust,20/01/2020,(80010) Drug Costs,(id:43176) Evelina Central R&D and Charity,GSTT PROCUREMENT CARD,id:12757384  , 185.00
Department of Health,Guys and St Thomas NHS Foundation Trust,03/01/2020,(89270) Establishment,(id:2634419) Evelina Central R&D and Charity,SOUTH LONDON AND MAUDSLEY NHS FOUNDATION TRUST,id:12705216  ,1369.38
Department of Health,Guys and St Thomas NHS Foundation Trust,10/01/2020,(89270) Establishment,(id:2634419) Evelina Central R&D and Charity,IMPROVING HEALTH LTD,id:12561998   ,5038.84
Department of Health,Guys and St Thomas NHS Foundation Trust,30/01/2020,(83640) IT Costs,(id:2634419) Evelina Central R&D and Charity,EMIS(EGTON MEDICAL INFORMATION SYSTEMS LTD),id:12761617,9269.80
Department of Health,Guys and St Thomas NHS Foundation Trust,03/01/2020,(82000) Provisions & Kitchens,(id:590541) Evelina Community Services,NHS SUPPLY CHAIN (MAIDSTONE),id:12706389   , 209.28
Department of Health,Guys and St Thomas NHS Foundation Trust,17/01/2020,(50562) Qualified Nursing Staff,(id:590418) Evelina Community Services,MSI GROUP LTD,id:12745665 ,1026.28
Department of Health,Guys and St Thomas NHS Foundation Trust,03/01/2020,(84657) Establishment,(id:590418) Evelina Community Services,IRON MOUNTAIN (UK) LTD,id:12658576  , 806.89
Department of Health,Guys and St Thomas NHS Foundation Trust,17/01/2020,(50562) Qualified Nursing Staff,(id:590542) Evelina Community Services,ARTHUR RAI MEDICAL SERVICES LTD,id:12750971   ,1040.70
Department of Health,Guys and St Thomas NHS Foundation Trust,03/01/2020,(81225) Medical Surgical Supplies & Equipment,(id:590444) Evelina Community Services,NHS SUPPLY CHAIN (MAIDSTONE),id:12706389  , 592.40
Department of Health,Guys and St Thomas NHS Foundation Trust,03/01/2020,(81225) Medical Surgical Supplies & Equipment,(id:590444) Evelina Community Services,NHS SUPPLY CHAIN (MAIDSTONE),id:12694241  , 582.96
Department of Health,Guys and St Thomas NHS Foundation Trust,10/01/2020,(81225) Medical Surgical Supplies & Equipment,(id:590444) Evelina Community Services,ARLINGTON LABORATORIES LTD,id:12706259    ,2332.25
Department of Health,Guys and St Thomas NHS Foundation Trust,30/01/2020,(81200) Medical Surgical Supplies & Equipment,(id:590444) Evelina Community Services,NHS SUPPLY CHAIN (MAIDSTONE),id:12732483  ,  60.00
Department of Health,Guys and St Thomas NHS Foundation Trust,27/01/2020,(51462) Occupational Therapists,(id:590549) Evelina Community Services,PRICEWATERHOUSECOOPERS LLP,id:12775755   ,2564.49
Department of Health,Guys and St Thomas NHS Foundation Trust,30/01/2020,(89000) Other - Training courses and conferences,(id:590451) Evelina Community Services,MAKATON CHARITY,id:12765473  ,1737.90
Department of Health,Guys and St Thomas NHS Foundation Trust,27/01/2020,(51262) Dieticians,(id:590412) Evelina Community Services,PRICEWATERHOUSECOOPERS LLP,id:12775803 ,1270.44
Department of Health,Guys and St Thomas NHS Foundation Trust,30/01/2020,(82000) Provisions & Kitchens,(id:590446) Evelina Community Services,NHS SUPPLY CHAIN (MAIDSTONE),id:12732483   ,  22.68
Department of Health,Guys and St Thomas NHS Foundation Trust,03/01/2020,(83400) Office Equipment,(id:590446) Evelina Community Services,NHS SUPPLY CHAIN (MAIDSTONE),id:12694241   ,  11.76
Department of Health,Guys and St Thomas NHS Foundation Trust,30/01/2020,(82600) Uniforms & Clothing,(id:42327) Evelina Medicine & Neonatology,NHS SUPPLY CHAIN (MAIDSTONE),id:12732483  ,  21.39
Department of Health,Guys and St Thomas NHS Foundation Trust,17/01/2020,(81100) Dressings,(id:42327) Evelina Medicine & Neonatology,NHS SUPPLY CHAIN (MAIDSTONE),id:12723603  , 390.87
Department of Health,Guys and St Thomas NHS Foundation Trust,03/01/2020,(81200) Medical Surgical Supplies & Equipment,(id:42327) Evelina Medicine & Neonatology,CENTRAL MEDICAL SUPPLIES LTD,id:12725836    ,1065.60
Department of Health,Guys and St Thomas NHS Foundation Trust,30/01/2020,(81200) Medical Surgical Supplies & Equipment,(id:42327) Evelina Medicine & Neonatology,SQUADRON MEDICAL LTD,id:12747111  , 566.05
Department of Health,Guys and St Thomas NHS Foundation Trust,30/01/2020,(50552) Qualified Nursing Staff,(id:42327) Evelina Medicine & Neonatology,CONTINENTAL NURSE LTD,id:12781048,2093.16
Department of Health,Guys and St Thomas NHS Foundation Trust,03/01/2020,(83400) Office Equipment,(id:42327) Evelina Medicine & Neonatology,NHS SUPPLY CHAIN (MAIDSTONE),id:12694241, 696.36
Department of Health,Guys and St Thomas NHS Foundation Trust,17/01/2020,(81230) Medical Surgical Supplies & Equipment,(id:42327) Evelina Medicine & Neonatology,SQUADRON MEDICAL LTD,id:12720664  , 604.18
Department of Health,Guys and St Thomas NHS Foundation Trust,10/01/2020,(81200) Medical Surgical Supplies & Equipment,(id:2497419) Evelina Medicine & Neonatology,KORN WALL LTD T/A KWICKSCREEN,id:12735736 ,  96.00
Department of Health,Guys and St Thomas NHS Foundation Trust,30/01/2020,(50200) Consultants,(id:42335) Evelina Medicine & Neonatology,KINGS COLLEGE LONDON:03529700,id:12756878    ,   -22083.51
Department of Health,Guys and St Thomas NHS Foundation Trust,17/01/2020,(50200) Consultants,(id:42335) Evelina Medicine & Neonatology,KINGS COLLEGE LONDON:03529700,id:12746859    ,    -2036.92
Department of Health,Guys and St Thomas NHS Foundation Trust,17/01/2020,(50200) Consultants,(id:42335) Evelina Medicine & Neonatology,KINGS COLLEGE LONDON:03529700,id:12746842    ,    -2036.92
Department of Health,Guys and St Thomas NHS Foundation Trust,17/01/2020,(50200) Consultants,(id:42335) Evelina Medicine & Neonatology,KINGS COLLEGE LONDON:03529700,id:12746867    ,    -2267.38
Department of Health,Guys and St Thomas NHS Foundation Trust,17/01/2020,(50200) Consultants,(id:42335) Evelina Medicine & Neonatology,KINGS COLLEGE LONDON:03529700,id:12746870    ,    -2267.38
Department of Health,Guys and St Thomas NHS Foundation Trust,03/01/2020,(81200) Medical Surgical Supplies & Equipment,(id:42335) Evelina Medicine & Neonatology,NHS SUPPLY CHAIN (MAIDSTONE),id:12694241    , 517.19
Department of Health,Guys and St Thomas NHS Foundation Trust,20/01/2020,(81700) Lab Equipment Purchase,(id:42333) Evelina Medicine & Neonatology,GSTT PROCUREMENT CARD,id:12757533 ,  91.27
Department of Health,Guys and St Thomas NHS Foundation Trust,03/01/2020,(81200) Medical Surgical Supplies & Equipment,(id:2499420) Evelina Medicine & Neonatology,NHS SUPPLY CHAIN (MAIDSTONE),id:12694241  , 132.30
Department of Health,Guys and St Thomas NHS Foundation Trust,10/01/2020,(80150) Drug Costs,(id:42350) Evelina Medicine & Neonatology,LINC MEDICAL SYSTEMS  LTD,id:12740494    ,4244.40
Department of Health,Guys and St Thomas NHS Foundation Trust,03/01/2020,(81230) Medical Surgical Supplies & Equipment,(id:42350) Evelina Medicine & Neonatology,MEDTRONIC LTD,id:12712726    , 899.33
Department of Health,Guys and St Thomas NHS Foundation Trust,03/01/2020,(81100) Dressings,(id:42350) Evelina Medicine & Neonatology,NHS SUPPLY CHAIN (MAIDSTONE),id:12694241  , 129.11
Department of Health,Guys and St Thomas NHS Foundation Trust,30/01/2020,(81200) Medical Surgical Supplies & Equipment,(id:42336) Evelina Medicine & Neonatology,NHS SUPPLY CHAIN (MAIDSTONE),id:12732483    ,  17.28
Department of Health,Guys and St Thomas NHS Foundation Trust,30/01/2020,(81200) Medical Surgical Supplies & Equipment,(id:42323) Evelina Medicine & Neonatology,NHS SUPPLY CHAIN (MAIDSTONE),id:12732483    ,  69.68
Department of Health,Guys and St Thomas NHS Foundation Trust,03/01/2020,(82000) Provisions & Kitchens,(id:42315) Evelina Medicine & Neonatology,NHS SUPPLY CHAIN (MAIDSTONE),id:12706389,  26.04
Department of Health,Guys and St Thomas NHS Foundation Trust,03/01/2020,(81200) Medical Surgical Supplies & Equipment,(id:2356419) Evelina Medicine & Neonatology,NHS SUPPLY CHAIN (MAIDSTONE),id:12694241  ,2166.76
Department of Health,Guys and St Thomas NHS Foundation Trust,03/01/2020,(82800) Bedding & Linen,(id:2356419) Evelina Medicine & Neonatology,NHS SUPPLY CHAIN (MAIDSTONE),id:12694241    ,  20.74
Department of Health,Guys and St Thomas NHS Foundation Trust,03/01/2020,(81700) Lab Equipment Purchase,(id:2356419) Evelina Medicine & Neonatology,NHS SUPPLY CHAIN (MAIDSTONE),id:12706389  ,  10.21
Department of Health,Guys and St Thomas NHS Foundation Trust,30/01/2020,(84600) Establishment,(id:1681419) Evelina Medicine & Neonatology,CLARITY TRAVEL MANAGEMENT,id:12776401    ,  51.25
Department of Health,Guys and St Thomas NHS Foundation Trust,17/01/2020,(82600) Uniforms & Clothing,(id:2496419) Evelina Medicine & Neonatology,NHS SUPPLY CHAIN (MAIDSTONE),id:12723603,  50.40
Department of Health,Guys and St Thomas NHS Foundation Trust,17/01/2020,(80010) Drug Costs,(id:1196420) Evelina Medicine & Neonatology,MEDTRONIC LTD,id:12724359    ,1064.40
Department of Health,Guys and St Thomas NHS Foundation Trust,03/01/2020,(83400) Office Equipment,(id:610410) Evelina Medicine & Neonatology,NHS SUPPLY CHAIN (MAIDSTONE),id:12694241    ,  29.67
Department of Health,Guys and St Thomas NHS Foundation Trust,03/01/2020,(83400) Office Equipment,(id:817420) Evelina Medicine & Neonatology,NHS SUPPLY CHAIN (MAIDSTONE),id:12694241    ,  42.42
Department of Health,Guys and St Thomas NHS Foundation Trust,24/01/2020,(50552) Qualified Nursing Staff,(id:41874) Evelina Medicine & Neonatology,HAYS HEALTHCARE LTD,id:12763111  , 822.32
Department of Health,Guys and St Thomas NHS Foundation Trust,03/01/2020,(81200) Medical Surgical Supplies & Equipment,(id:41874) Evelina Medicine & Neonatology,SQUADRON MEDICAL LTD,id:12708358  , 710.94
Department of Health,Guys and St Thomas NHS Foundation Trust,03/01/2020,(82800) Bedding & Linen,(id:2499419) Evelina Surgery & PICU,NHS SUPPLY CHAIN (MAIDSTONE),id:12694241  , 115.20
Department of Health,Guys and St Thomas NHS Foundation Trust,03/01/2020,(81200) Medical Surgical Supplies & Equipment,(id:42312) Evelina Surgery & PICU,WL GORE & ASSOCIATES (UK) LTD,id:12709293 , 594.00
Department of Health,Guys and St Thomas NHS Foundation Trust,30/01/2020,(81200) Medical Surgical Supplies & Equipment,(id:42312) Evelina Surgery & PICU,KIMAL PLC,id:12753096 , 517.96
Department of Health,Guys and St Thomas NHS Foundation Trust,17/01/2020,(81200) Medical Surgical Supplies & Equipment,(id:42312) Evelina Surgery & PICU,MEDTRONIC LTD,id:12720275  ,1440.00
Department of Health,Guys and St Thomas NHS Foundation Trust,03/01/2020,(81400) Medical Surgical Supplies & Equipment,(id:42312) Evelina Surgery & PICU,NHS SUPPLY CHAIN (MAIDSTONE),id:12694241  ,1112.23
Department of Health,Guys and St Thomas NHS Foundation Trust,30/01/2020,(81280) Medical Surgical Supplies & Equipment,(id:42312) Evelina Surgery & PICU,LEMAITRE VASCULAR LTD,id:12764654    ,5358.00
Department of Health,Guys and St Thomas NHS Foundation Trust,03/01/2020,(81230) Medical Surgical Supplies & Equipment,(id:42312) Evelina Surgery & PICU,COOK UK LTD,id:12706196    , 420.00
Department of Health,Guys and St Thomas NHS Foundation Trust,17/01/2020,(84400) Transport,(id:42344) Evelina Surgery & PICU,ST JOHN AMBULANCE ASSOCIATION,id:12704417    ,    50388.00
Department of Health,Guys and St Thomas NHS Foundation Trust,17/01/2020,(82600) Uniforms & Clothing,(id:42339) Evelina Surgery & PICU,NHS SUPPLY CHAIN (MAIDSTONE),id:12723603, 214.98
Department of Health,Guys and St Thomas NHS Foundation Trust,03/01/2020,(82800) Bedding & Linen,(id:42339) Evelina Surgery & PICU,NHS SUPPLY CHAIN (MAIDSTONE),id:12706389    , 262.04
Department of Health,Guys and St Thomas NHS Foundation Trust,30/01/2020,(80100) Drug Costs,(id:42339) Evelina Surgery & PICU,INO THERAPEUTICS UK,id:12694905   ,4407.48
Department of Health,Guys and St Thomas NHS Foundation Trust,30/01/2020,(50552) Qualified Nursing Staff,(id:2495421) Evelina Surgery & PICU,MSI GROUP LTD,id:12781230    , 339.44
Department of Health,Guys and St Thomas NHS Foundation Trust,10/01/2020,(81400) Medical Surgical Supplies & Equipment,(id:42347) Evelina Surgery & PICU,ARDMORE HEALTHCARE LTD,id:12615196   ,1339.74
Department of Health,Guys and St Thomas NHS Foundation Trust,03/01/2020,(81200) Medical Surgical Supplies & Equipment,(id:42347) Evelina Surgery & PICU,FRESENIUS KABI LTD,id:12725879  , 517.10
Department of Health,Guys and St Thomas NHS Foundation Trust,17/01/2020,(81200) Medical Surgical Supplies & Equipment,(id:42347) Evelina Surgery & PICU,SQUADRON MEDICAL LTD,id:12725223,  12.56
Department of Health,Guys and St Thomas NHS Foundation Trust,03/01/2020,(81200) Medical Surgical Supplies & Equipment,(id:42351) Evelina Surgery & PICU,NHS SUPPLY CHAIN (MAIDSTONE),id:12694241  , 117.96
Department of Health,Guys and St Thomas NHS Foundation Trust,17/01/2020,(81200) Medical Surgical Supplies & Equipment,(id:42351) Evelina Surgery & PICU,NHS SUPPLY CHAIN (MAIDSTONE),id:12723603  ,1636.49
Department of Health,Guys and St Thomas NHS Foundation Trust,17/01/2020,(50552) Qualified Nursing Staff,(id:2499421) Evelina Surgery & PICU,GLOBE LOCUMS LTD,id:12745630 , 327.27
Department of Health,Guys and St Thomas NHS Foundation Trust,03/01/2020,(81200) Medical Surgical Supplies & Equipment,(id:468409) Evelina Surgery & PICU,T J SMITH & NEPHEW LTD,id:12719808  ,1499.66
Department of Health,Guys and St Thomas NHS Foundation Trust,03/01/2020,(81200) Medical Surgical Supplies & Equipment,(id:468409) Evelina Surgery & PICU,SQUADRON MEDICAL LTD,id:12708390    , 195.50
Department of Health,Guys and St Thomas NHS Foundation Trust,17/01/2020,(81200) Medical Surgical Supplies & Equipment,(id:468409) Evelina Surgery & PICU,NHS SUPPLY CHAIN (MAIDSTONE),id:12723603 , 182.33
Department of Health,Guys and St Thomas NHS Foundation Trust,24/01/2020,(81200) Medical Surgical Supplies & Equipment,(id:468409) Evelina Surgery & PICU,SQUADRON MEDICAL LTD,id:12739425    , 449.74
Department of Health,Guys and St Thomas NHS Foundation Trust,03/01/2020,(81550) X Ray Equipment Purchase,(id:468409) Evelina Surgery & PICU,NHS SUPPLY CHAIN (MAIDSTONE),id:12706389    , 116.40
Department of Health,Guys and St Thomas NHS Foundation Trust,03/01/2020,(81200) Medical Surgical Supplies & Equipment,(id:431409) Evelina Surgery & PICU,NHS SUPPLY CHAIN (MAIDSTONE),id:12706389 ,1664.10
Department of Health,Guys and St Thomas NHS Foundation Trust,03/01/2020,(81200) Medical Surgical Supplies & Equipment,(id:431409) Evelina Surgery & PICU,STRYKER UK LTD,id:12724973,    10800.00
Department of Health,Guys and St Thomas NHS Foundation Trust,17/01/2020,(81200) Medical Surgical Supplies & Equipment,(id:431409) Evelina Surgery & PICU,SQUADRON MEDICAL LTD,id:12725464    ,  15.09
Department of Health,Guys and St Thomas NHS Foundation Trust,30/01/2020,(81200) Medical Surgical Supplies & Equipment,(id:431409) Evelina Surgery & PICU,ORTHOPEDIATRICS EU LIMITED,id:12778823   ,1216.80
Department of Health,Guys and St Thomas NHS Foundation Trust,30/01/2020,(81200) Medical Surgical Supplies & Equipment,(id:431409) Evelina Surgery & PICU,SQUADRON MEDICAL LTD,id:12745124    ,  14.64
Department of Health,Guys and St Thomas NHS Foundation Trust,30/01/2020,(81200) Medical Surgical Supplies & Equipment,(id:431409) Evelina Surgery & PICU,SQUADRON MEDICAL LTD,id:12747081    ,   6.53
Department of Health,Guys and St Thomas NHS Foundation Trust,03/01/2020,(81000) Surgical Appliances,(id:431409) Evelina Surgery & PICU,JOHN FLORENCE LTD,id:12727691, 653.06
Department of Health,Guys and St Thomas NHS Foundation Trust,03/01/2020,(81000) Surgical Appliances,(id:431409) Evelina Surgery & PICU,JOHN FLORENCE LTD,id:12727677, 656.54
Department of Health,Guys and St Thomas NHS Foundation Trust,03/01/2020,(81000) Surgical Appliances,(id:431409) Evelina Surgery & PICU,NHS SUPPLY CHAIN (MAIDSTONE),id:12694241    , 900.00
Department of Health,Guys and St Thomas NHS Foundation Trust,30/01/2020,(81000) Surgical Appliances,(id:431409) Evelina Surgery & PICU,JOHN FLORENCE LTD,id:12780880, 681.59
Department of Health,Guys and St Thomas NHS Foundation Trust,30/01/2020,(81000) Surgical Appliances,(id:431409) Evelina Surgery & PICU,JOHN FLORENCE LTD,id:12781398, 681.59
Department of Health,Guys and St Thomas NHS Foundation Trust,30/01/2020,(81000) Surgical Appliances,(id:431409) Evelina Surgery & PICU,JOHN FLORENCE LTD,id:12781394, 685.07
Department of Health,Guys and St Thomas NHS Foundation Trust,30/01/2020,(81000) Surgical Appliances,(id:431409) Evelina Surgery & PICU,JOHN FLORENCE LTD,id:12781351, 653.06
Department of Health,Guys and St Thomas NHS Foundation Trust,03/01/2020,(81200) Medical Surgical Supplies & Equipment,(id:1196421) Evelina Surgery & PICU,JOHNSON & JOHNSON MEDICAL LTD,id:12709067    ,1254.24
Department of Health,Guys and St Thomas NHS Foundation Trust,03/01/2020,(81200) Medical Surgical Supplies & Equipment,(id:1196421) Evelina Surgery & PICU,ZIMMER BIOMET UK LTD,id:12722216   ,3124.80
Department of Health,Guys and St Thomas NHS Foundation Trust,10/01/2020,(81200) Medical Surgical Supplies & Equipment,(id:1196421) Evelina Surgery & PICU,NUVASIVE UK LTD,id:12735732   , 587.52
Department of Health,Guys and St Thomas NHS Foundation Trust,17/01/2020,(81200) Medical Surgical Supplies & Equipment,(id:1196421) Evelina Surgery & PICU,NUVASIVE UK LTD,id:12746110   ,    10587.60
Department of Health,Guys and St Thomas NHS Foundation Trust,03/01/2020,(81100) Dressings,(id:1196421) Evelina Surgery & PICU,SQUADRON MEDICAL LTD,id:12695638 ,  12.65
Department of Health,Guys and St Thomas NHS Foundation Trust,03/01/2020,(81100) Dressings,(id:1196421) Evelina Surgery & PICU,SQUADRON MEDICAL LTD,id:12692831 ,  25.30
Department of Health,Guys and St Thomas NHS Foundation Trust,24/01/2020,(81100) Dressings,(id:1196421) Evelina Surgery & PICU,SQUADRON MEDICAL LTD,id:12739425 ,  12.65
Department of Health,Guys and St Thomas NHS Foundation Trust,30/01/2020,(82600) Uniforms & Clothing,(id:41914) Evelina Surgery & PICU,NHS SUPPLY CHAIN (MAIDSTONE),id:12732483,  17.72
Department of Health,Guys and St Thomas NHS Foundation Trust,03/01/2020,(82600) Uniforms & Clothing,(id:41914) Evelina Surgery & PICU,NHS SUPPLY CHAIN (MAIDSTONE),id:12694241, 203.10
Department of Health,Guys and St Thomas NHS Foundation Trust,03/01/2020,(82000) Provisions & Kitchens,(id:41914) Evelina Surgery & PICU,NHS SUPPLY CHAIN (MAIDSTONE),id:12706389   ,  12.05
Department of Health,Guys and St Thomas NHS Foundation Trust,03/01/2020,(83400) Office Equipment,(id:41914) Evelina Surgery & PICU,NHS SUPPLY CHAIN (MAIDSTONE),id:12706389   , 280.99
Department of Health,Guys and St Thomas NHS Foundation Trust,03/01/2020,(81200) Medical Surgical Supplies & Equipment,(id:41914) Evelina Surgery & PICU,NHS SUPPLY CHAIN (MAIDSTONE),id:12694241  ,3111.20
Department of Health,Guys and St Thomas NHS Foundation Trust,03/01/2020,(81200) Medical Surgical Supplies & Equipment,(id:41914) Evelina Surgery & PICU,NHS SUPPLY CHAIN (MAIDSTONE),id:12706389  ,1948.54
Department of Health,Guys and St Thomas NHS Foundation Trust,30/01/2020,(81200) Medical Surgical Supplies & Equipment,(id:41914) Evelina Surgery & PICU,SQUADRON MEDICAL LTD,id:12747521, 210.14
Department of Health,Guys and St Thomas NHS Foundation Trust,03/01/2020,(81215) Medical Surgical Supplies & Equipment,(id:41914) Evelina Surgery & PICU,NHS SUPPLY CHAIN (MAIDSTONE),id:12706389  ,  63.60
Department of Health,Guys and St Thomas NHS Foundation Trust,30/01/2020,(50562) Qualified Nursing Staff,(id:41914) Evelina Surgery & PICU,PULSE HEALTHCARE LIMITED,id:12779170, 902.36
Department of Health,Guys and St Thomas NHS Foundation Trust,03/01/2020,(81100) Dressings,(id:41914) Evelina Surgery & PICU,SQUADRON MEDICAL LTD,id:12702712   ,   9.30
Department of Health,Guys and St Thomas NHS Foundation Trust,10/01/2020,(81100) Dressings,(id:41914) Evelina Surgery & PICU,ELIS UK LIMITED,id:12719088   , 479.20
Department of Health,Guys and St Thomas NHS Foundation Trust,24/01/2020,(81100) Dressings,(id:41914) Evelina Surgery & PICU,ELIS UK LIMITED,id:12543077   , 869.00
Department of Health,Guys and St Thomas NHS Foundation Trust,03/01/2020,(81225) Medical Surgical Supplies & Equipment,(id:41914) Evelina Surgery & PICU,NHS SUPPLY CHAIN (MAIDSTONE),id:12706389  ,  14.68
Department of Health,Guys and St Thomas NHS Foundation Trust,03/01/2020,(81200) Medical Surgical Supplies & Equipment,(id:41910) Evelina Surgery & PICU,SQUADRON MEDICAL LTD,id:12708881, 560.07
Department of Health,Guys and St Thomas NHS Foundation Trust,30/01/2020,(81200) Medical Surgical Supplies & Equipment,(id:41910) Evelina Surgery & PICU,SQUADRON MEDICAL LTD,id:12747015, 270.72
Department of Health,Guys and St Thomas NHS Foundation Trust,17/01/2020,(81200) Medical Surgical Supplies & Equipment,(id:41910) Evelina Surgery & PICU,SQUADRON MEDICAL LTD,id:12725223, 133.01
Department of Health,Guys and St Thomas NHS Foundation Trust,17/01/2020,(81200) Medical Surgical Supplies & Equipment,(id:41910) Evelina Surgery & PICU,MEDTRONIC LTD,id:12724362  , 504.00
Department of Health,Guys and St Thomas NHS Foundation Trust,03/01/2020,(82600) Uniforms & Clothing,(id:41910) Evelina Surgery & PICU,NHS SUPPLY CHAIN (MAIDSTONE),id:12706389,   3.79
Department of Health,Guys and St Thomas NHS Foundation Trust,03/01/2020,(81230) Medical Surgical Supplies & Equipment,(id:41910) Evelina Surgery & PICU,NHS SUPPLY CHAIN (MAIDSTONE),id:12694241  ,  70.99
Department of Health,Guys and St Thomas NHS Foundation Trust,03/01/2020,(82800) Bedding & Linen,(id:41958) Gastrointestinal Medicine & Surgery,NHS SUPPLY CHAIN (MAIDSTONE),id:12706389 ,   6.94
Department of Health,Guys and St Thomas NHS Foundation Trust,03/01/2020,(81200) Medical Surgical Supplies & Equipment,(id:41958) Gastrointestinal Medicine & Surgery,NHS SUPPLY CHAIN (MAIDSTONE),id:12694241    ,1565.03
Department of Health,Guys and St Thomas NHS Foundation Trust,17/01/2020,(81200) Medical Surgical Supplies & Equipment,(id:41958) Gastrointestinal Medicine & Surgery,NHS SUPPLY CHAIN (MAIDSTONE),id:12723603    , 754.33
Department of Health,Guys and St Thomas NHS Foundation Trust,30/01/2020,(83400) Office Equipment,(id:41954) Gastrointestinal Medicine & Surgery,NHS SUPPLY CHAIN (MAIDSTONE),id:12732483, 119.15
Department of Health,Guys and St Thomas NHS Foundation Trust,17/01/2020,(81200) Medical Surgical Supplies & Equipment,(id:41954) Gastrointestinal Medicine & Surgery,NHS SUPPLY CHAIN (MAIDSTONE),id:12723603    ,1070.17
Department of Health,Guys and St Thomas NHS Foundation Trust,03/01/2020,(81255) Medical Surgical Supplies & Equipment,(id:41954) Gastrointestinal Medicine & Surgery,NHS SUPPLY CHAIN (MAIDSTONE),id:12694241    ,   2.60
Department of Health,Guys and St Thomas NHS Foundation Trust,03/01/2020,(81100) Dressings,(id:41951) Gastrointestinal Medicine & Surgery,NHS SUPPLY CHAIN (MAIDSTONE),id:12706389  ,   3.30
Department of Health,Guys and St Thomas NHS Foundation Trust,17/01/2020,(83400) Office Equipment,(id:41949) Gastrointestinal Medicine & Surgery,SQUADRON MEDICAL LTD,id:12725466   , 204.17
Department of Health,Guys and St Thomas NHS Foundation Trust,03/01/2020,(81200) Medical Surgical Supplies & Equipment,(id:41949) Gastrointestinal Medicine & Surgery,SQUADRON MEDICAL LTD,id:12695747  ,1728.17
Department of Health,Guys and St Thomas NHS Foundation Trust,10/01/2020,(81200) Medical Surgical Supplies & Equipment,(id:41949) Gastrointestinal Medicine & Surgery,SQUADRON MEDICAL LTD,id:12715494  , 514.88
Department of Health,Guys and St Thomas NHS Foundation Trust,10/01/2020,(81200) Medical Surgical Supplies & Equipment,(id:41949) Gastrointestinal Medicine & Surgery,SQUADRON MEDICAL LTD,id:12718119  , 703.60
Department of Health,Guys and St Thomas NHS Foundation Trust,10/01/2020,(81200) Medical Surgical Supplies & Equipment,(id:41949) Gastrointestinal Medicine & Surgery,SQUADRON MEDICAL LTD,id:12709371  ,1434.17
Department of Health,Guys and St Thomas NHS Foundation Trust,17/01/2020,(81200) Medical Surgical Supplies & Equipment,(id:41949) Gastrointestinal Medicine & Surgery,SQUADRON MEDICAL LTD,id:12717853  ,2812.02
Department of Health,Guys and St Thomas NHS Foundation Trust,24/01/2020,(81200) Medical Surgical Supplies & Equipment,(id:41949) Gastrointestinal Medicine & Surgery,SQUADRON MEDICAL LTD,id:12735385  ,5155.07
Department of Health,Guys and St Thomas NHS Foundation Trust,30/01/2020,(81200) Medical Surgical Supplies & Equipment,(id:41949) Gastrointestinal Medicine & Surgery,SQUADRON MEDICAL LTD,id:12747194  ,3199.46
Department of Health,Guys and St Thomas NHS Foundation Trust,03/01/2020,(81200) Medical Surgical Supplies & Equipment,(id:41949) Gastrointestinal Medicine & Surgery,BARD LTD,id:12701388    , 526.80
Department of Health,Guys and St Thomas NHS Foundation Trust,03/01/2020,(81200) Medical Surgical Supplies & Equipment,(id:41949) Gastrointestinal Medicine & Surgery,SQUADRON MEDICAL LTD,id:12708496  ,1118.21
Department of Health,Guys and St Thomas NHS Foundation Trust,03/01/2020,(81200) Medical Surgical Supplies & Equipment,(id:41949) Gastrointestinal Medicine & Surgery,SQUADRON MEDICAL LTD,id:12709279  ,3022.80
Department of Health,Guys and St Thomas NHS Foundation Trust,30/01/2020,(82000) Provisions & Kitchens,(id:2367419) Gastrointestinal Medicine & Surgery,NHS SUPPLY CHAIN (MAIDSTONE),id:12732483   ,  12.78
Department of Health,Guys and St Thomas NHS Foundation Trust,03/01/2020,(81200) Medical Surgical Supplies & Equipment,(id:2367419) Gastrointestinal Medicine & Surgery,NHS SUPPLY CHAIN (MAIDSTONE),id:12694241  , 771.84
Department of Health,Guys and St Thomas NHS Foundation Trust,30/01/2020,(81200) Medical Surgical Supplies & Equipment,(id:2367419) Gastrointestinal Medicine & Surgery,NHS SUPPLY CHAIN (MAIDSTONE),id:12732483  , 701.94
Department of Health,Guys and St Thomas NHS Foundation Trust,17/01/2020,(81230) Medical Surgical Supplies & Equipment,(id:2367419) Gastrointestinal Medicine & Surgery,NHS SUPPLY CHAIN (MAIDSTONE),id:12723603  , 113.33
Department of Health,Guys and St Thomas NHS Foundation Trust,03/01/2020,(83400) Office Equipment,(id:41917) Gastrointestinal Medicine & Surgery,NHS SUPPLY CHAIN (MAIDSTONE),id:12706389, 438.07
Department of Health,Guys and St Thomas NHS Foundation Trust,03/01/2020,(82700) Uniforms & Clothing,(id:41917) Gastrointestinal Medicine & Surgery,NHS SUPPLY CHAIN (MAIDSTONE),id:12694241  , 236.88
Department of Health,Guys and St Thomas NHS Foundation Trust,03/01/2020,(81235) Medical Surgical Supplies & Equipment,(id:41917) Gastrointestinal Medicine & Surgery,BOSTON SCIENTIFIC LTD,id:12708715 ,1954.78
Department of Health,Guys and St Thomas NHS Foundation Trust,03/01/2020,(81200) Medical Surgical Supplies & Equipment,(id:41917) Gastrointestinal Medicine & Surgery,BOSTON SCIENTIFIC LTD,id:12712715 ,2519.04
Department of Health,Guys and St Thomas NHS Foundation Trust,03/01/2020,(81200) Medical Surgical Supplies & Equipment,(id:41917) Gastrointestinal Medicine & Surgery,SYNECTICS MEDICAL LTD (SYNMED),id:12727351  ,4557.60
Department of Health,Guys and St Thomas NHS Foundation Trust,24/01/2020,(81200) Medical Surgical Supplies & Equipment,(id:41917) Gastrointestinal Medicine & Surgery,AAH PHARMACEUTICALS LTD,id:12759939    ,1395.36
Department of Health,Guys and St Thomas NHS Foundation Trust,10/01/2020,(81200) Medical Surgical Supplies & Equipment,(id:41917) Gastrointestinal Medicine & Surgery,BOSTON SCIENTIFIC LTD,id:12606324 ,2415.29
Department of Health,Guys and St Thomas NHS Foundation Trust,10/01/2020,(81200) Medical Surgical Supplies & Equipment,(id:41917) Gastrointestinal Medicine & Surgery,BOSTON SCIENTIFIC LTD,id:12717919 ,4200.00
Department of Health,Guys and St Thomas NHS Foundation Trust,10/01/2020,(81200) Medical Surgical Supplies & Equipment,(id:41917) Gastrointestinal Medicine & Surgery,MEDTRONIC LTD,id:12717926    ,4296.00
Department of Health,Guys and St Thomas NHS Foundation Trust,10/01/2020,(81200) Medical Surgical Supplies & Equipment,(id:41917) Gastrointestinal Medicine & Surgery,BOSTON SCIENTIFIC LTD,id:12714743 ,4680.00
Department of Health,Guys and St Thomas NHS Foundation Trust,17/01/2020,(81200) Medical Surgical Supplies & Equipment,(id:41917) Gastrointestinal Medicine & Surgery,BOSTON SCIENTIFIC LTD,id:12724338 ,3060.00
Department of Health,Guys and St Thomas NHS Foundation Trust,17/01/2020,(81200) Medical Surgical Supplies & Equipment,(id:41917) Gastrointestinal Medicine & Surgery,MEDTRONIC LTD,id:12720276    ,4296.00
Department of Health,Guys and St Thomas NHS Foundation Trust,30/01/2020,(81200) Medical Surgical Supplies & Equipment,(id:41917) Gastrointestinal Medicine & Surgery,CANTEL (UK) LTD,id:12773416  ,1092.00
Department of Health,Guys and St Thomas NHS Foundation Trust,30/01/2020,(81200) Medical Surgical Supplies & Equipment,(id:41917) Gastrointestinal Medicine & Surgery,OLYMPUS KEYMED,id:12780486   ,1070.40
Department of Health,Guys and St Thomas NHS Foundation Trust,24/01/2020,(50552) Qualified Nursing Staff,(id:41917) Gastrointestinal Medicine & Surgery,YOUR NURSE LIMITED,id:12759139   , 625.66
Department of Health,Guys and St Thomas NHS Foundation Trust,30/01/2020,(81400) Medical Surgical Supplies & Equipment,(id:3364419) Cancer Strategy,ALLIANCE MEDICAL LTD,id:12600963,9329.00
Department of Health,Guys and St Thomas NHS Foundation Trust,30/01/2020,(81400) Medical Surgical Supplies & Equipment,(id:3364419) Cancer Strategy,ALLIANCE MEDICAL LTD,id:12561426,    18221.00
Department of Health,Guys and St Thomas NHS Foundation Trust,24/01/2020,(83610) IT Costs,(id:42282) Cancer Strategy,SKYE DIRECT LTD,id:12765212 ,1502.40
Department of Health,Guys and St Thomas NHS Foundation Trust,30/01/2020,(84600) Establishment,(id:43038) Cardiovascular Services,CLARITY TRAVEL MANAGEMENT,id:12776401   , 362.40
Department of Health,Guys and St Thomas NHS Foundation Trust,03/01/2020,(81200) Medical Surgical Supplies & Equipment,(id:1127419) Cardiovascular Services,NHS SUPPLY CHAIN (MAIDSTONE),id:12706389    ,  14.22
Department of Health,Guys and St Thomas NHS Foundation Trust,10/01/2020,(81250) Medical Surgical Supplies & Equipment,(id:639421) Cardiovascular Services,BENTLEY INNOMED GMBH,id:12734024   ,2025.00
Department of Health,Guys and St Thomas NHS Foundation Trust,10/01/2020,(81250) Medical Surgical Supplies & Equipment,(id:639421) Cardiovascular Services,BENTLEY INNOMED GMBH,id:12733179   ,    14160.00
Department of Health,Guys and St Thomas NHS Foundation Trust,30/01/2020,(81250) Medical Surgical Supplies & Equipment,(id:639421) Cardiovascular Services,WL GORE & ASSOCIATES (UK) LTD,id:12747649    ,8760.00
Department of Health,Guys and St Thomas NHS Foundation Trust,10/01/2020,(81250) Medical Surgical Supplies & Equipment,(id:639421) Cardiovascular Services,BENTLEY INNOMED GMBH,id:12734037   ,3060.00
Department of Health,Guys and St Thomas NHS Foundation Trust,17/01/2020,(81250) Medical Surgical Supplies & Equipment,(id:639421) Cardiovascular Services,BENTLEY INNOMED GMBH,id:12748609   ,3060.00
Department of Health,Guys and St Thomas NHS Foundation Trust,17/01/2020,(81250) Medical Surgical Supplies & Equipment,(id:639421) Cardiovascular Services,BENTLEY INNOMED GMBH,id:12751111   ,3750.00
Department of Health,Guys and St Thomas NHS Foundation Trust,17/01/2020,(81200) Medical Surgical Supplies & Equipment,(id:639421) Cardiovascular Services,BARD LTD,id:12723657,1440.00
Department of Health,Guys and St Thomas NHS Foundation Trust,17/01/2020,(81200) Medical Surgical Supplies & Equipment,(id:639421) Cardiovascular Services,WL GORE & ASSOCIATES (UK) LTD,id:12725157    ,2353.20
Department of Health,Guys and St Thomas NHS Foundation Trust,24/01/2020,(81200) Medical Surgical Supplies & Equipment,(id:639421) Cardiovascular Services,WL GORE & ASSOCIATES (UK) LTD,id:8835891,2400.00
Department of Health,Guys and St Thomas NHS Foundation Trust,30/01/2020,(81200) Medical Surgical Supplies & Equipment,(id:639421) Cardiovascular Services,WL GORE & ASSOCIATES (UK) LTD,id:12747645    ,2400.00
Department of Health,Guys and St Thomas NHS Foundation Trust,24/01/2020,(81235) Medical Surgical Supplies & Equipment,(id:639421) Cardiovascular Services,WL GORE & ASSOCIATES (UK) LTD,id:12639437    , 878.40
Department of Health,Guys and St Thomas NHS Foundation Trust,24/01/2020,(50522) Unqualified Nursing Staff,(id:41953) Cardiovascular Services,GLOBE LOCUMS LTD,id:12759054, 202.05
Department of Health,Guys and St Thomas NHS Foundation Trust,03/01/2020,(81225) Medical Surgical Supplies & Equipment,(id:41953) Cardiovascular Services,NHS SUPPLY CHAIN (MAIDSTONE),id:12706389 ,  15.12
Department of Health,Guys and St Thomas NHS Foundation Trust,03/01/2020,(82000) Provisions & Kitchens,(id:41952) Cardiovascular Services,NHS SUPPLY CHAIN (MAIDSTONE),id:12706389  ,  83.00
Department of Health,Guys and St Thomas NHS Foundation Trust,30/01/2020,(82600) Uniforms & Clothing,(id:41952) Cardiovascular Services,NHS SUPPLY CHAIN (MAIDSTONE),id:12732483    ,  11.81
Department of Health,Guys and St Thomas NHS Foundation Trust,30/01/2020,(81700) Lab Equipment Purchase,(id:41952) Cardiovascular Services,NHS SUPPLY CHAIN (MAIDSTONE),id:12732483 ,   9.03
Department of Health,Guys and St Thomas NHS Foundation Trust,03/01/2020,(81200) Medical Surgical Supplies & Equipment,(id:41950) Cardiovascular Services,COOK UK LTD,id:12701338   ,2184.00
Department of Health,Guys and St Thomas NHS Foundation Trust,03/01/2020,(81200) Medical Surgical Supplies & Equipment,(id:41950) Cardiovascular Services,COOK UK LTD,id:12693033   ,2508.00
Department of Health,Guys and St Thomas NHS Foundation Trust,30/01/2020,(81200) Medical Surgical Supplies & Equipment,(id:41950) Cardiovascular Services,ABBOTT MEDICAL UK LTD,id:12754125   , 726.00
Department of Health,Guys and St Thomas NHS Foundation Trust,30/01/2020,(81200) Medical Surgical Supplies & Equipment,(id:41950) Cardiovascular Services,ABBOTT MEDICAL UK LTD,id:12775765   , 726.00
Department of Health,Guys and St Thomas NHS Foundation Trust,17/01/2020,(81230) Medical Surgical Supplies & Equipment,(id:41950) Cardiovascular Services,COOK UK LTD,id:12720668   , 714.00
Department of Health,Guys and St Thomas NHS Foundation Trust,30/01/2020,(83400) Office Equipment,(id:41950) Cardiovascular Services,NHS SUPPLY CHAIN (MAIDSTONE),id:12732483  ,  20.28
Department of Health,Guys and St Thomas NHS Foundation Trust,17/01/2020,(83400) Office Equipment,(id:41950) Cardiovascular Services,SQUADRON MEDICAL LTD,id:12724732, 204.16
Department of Health,Guys and St Thomas NHS Foundation Trust,24/01/2020,(81000) Surgical Appliances,(id:41950) Cardiovascular Services,MEDI UK LTD,id:12760467 ,  56.47
Department of Health,Guys and St Thomas NHS Foundation Trust,03/01/2020,(81100) Dressings,(id:41950) Cardiovascular Services,NHS SUPPLY CHAIN (MAIDSTONE),id:12694241    ,  47.51
Department of Health,Guys and St Thomas NHS Foundation Trust,17/01/2020,(81225) Medical Surgical Supplies & Equipment,(id:41950) Cardiovascular Services,NHS SUPPLY CHAIN (MAIDSTONE),id:12723603 ,  20.16
Department of Health,Guys and St Thomas NHS Foundation Trust,10/01/2020,(81100) Dressings,(id:41948) Cardiovascular Services,SQUADRON MEDICAL LTD,id:12714475  , 269.58
Department of Health,Guys and St Thomas NHS Foundation Trust,03/01/2020,(81200) Medical Surgical Supplies & Equipment,(id:41948) Cardiovascular Services,SQUADRON MEDICAL LTD,id:12712942    ,  38.44
Department of Health,Guys and St Thomas NHS Foundation Trust,10/01/2020,(81200) Medical Surgical Supplies & Equipment,(id:41948) Cardiovascular Services,SQUADRON MEDICAL LTD,id:12715478    ,  36.58
Department of Health,Guys and St Thomas NHS Foundation Trust,03/01/2020,(83400) Office Equipment,(id:41947) Cardiovascular Services,NHS SUPPLY CHAIN (MAIDSTONE),id:12706389  ,  37.91
Department of Health,Guys and St Thomas NHS Foundation Trust,10/01/2020,(83630) IT Costs,(id:42305) Cardiovascular Services,DICT8 LIMITED,id:12698040,1023.48
Department of Health,Guys and St Thomas NHS Foundation Trust,17/01/2020,(80010) Drug Costs,(id:42305) Cardiovascular Services,KINGS COLLEGE LONDON:03529700,id:12717316  ,9004.56
Department of Health,Guys and St Thomas NHS Foundation Trust,03/01/2020,(81200) Medical Surgical Supplies & Equipment,(id:3923419) Cardiovascular Services,NHS SUPPLY CHAIN (MAIDSTONE),id:12706389    ,  52.85
Department of Health,Guys and St Thomas NHS Foundation Trust,30/01/2020,(50522) Unqualified Nursing Staff,(id:3923419) Cardiovascular Services,MSI GROUP LTD,id:12780997 , 197.70
Department of Health,Guys and St Thomas NHS Foundation Trust,17/01/2020,(81200) Medical Surgical Supplies & Equipment,(id:1243420) Cardiovascular Services,NHS SUPPLY CHAIN (MAIDSTONE),id:12723603    ,1020.00
Department of Health,Guys and St Thomas NHS Foundation Trust,17/01/2020,(50200) Consultants,(id:42304) Cardiovascular Services,SURREY AND SUSSEX HEALTHCARE NHS TRUST,id:12715056  , 710.57
Department of Health,Guys and St Thomas NHS Foundation Trust,17/01/2020,(50200) Consultants,(id:42304) Cardiovascular Services,MEDWAY NHS FOUNDATION TRUST,id:12714862   ,1661.00
Department of Health,Guys and St Thomas NHS Foundation Trust,27/01/2020,(54062) Technical Officers,(id:42303) Cardiovascular Services,PRICEWATERHOUSECOOPERS LLP,id:12775755  ,1198.48
Department of Health,Guys and St Thomas NHS Foundation Trust,27/01/2020,(54062) Technical Officers,(id:42303) Cardiovascular Services,PRICEWATERHOUSECOOPERS LLP,id:12775803  ,1250.12
Department of Health,Guys and St Thomas NHS Foundation Trust,30/01/2020,(81200) Medical Surgical Supplies & Equipment,(id:42303) Cardiovascular Services,SPACELABS HEALTHCARE LTD,id:12779682, 910.20
Department of Health,Guys and St Thomas NHS Foundation Trust,30/01/2020,(81200) Medical Surgical Supplies & Equipment,(id:42303) Cardiovascular Services,SPACELABS HEALTHCARE LTD,id:12779683, 676.80
Department of Health,Guys and St Thomas NHS Foundation Trust,30/01/2020,(81200) Medical Surgical Supplies & Equipment,(id:42303) Cardiovascular Services,AMBU LIMITED,id:12776303  ,2921.94
Department of Health,Guys and St Thomas NHS Foundation Trust,03/01/2020,(51832) Physiotherapists,(id:42303) Cardiovascular Services,GLOBE LOCUMS LTD,id:12723586    , 511.92
Department of Health,Guys and St Thomas NHS Foundation Trust,10/01/2020,(51832) Physiotherapists,(id:42303) Cardiovascular Services,GLOBE LOCUMS LTD,id:12736588    , 762.26
Department of Health,Guys and St Thomas NHS Foundation Trust,10/01/2020,(51832) Physiotherapists,(id:42303) Cardiovascular Services,GLOBE LOCUMS LTD,id:12736459    , 965.70
Department of Health,Guys and St Thomas NHS Foundation Trust,17/01/2020,(51832) Physiotherapists,(id:42303) Cardiovascular Services,GLOBE LOCUMS LTD,id:12745708    , 523.30
Department of Health,Guys and St Thomas NHS Foundation Trust,30/01/2020,(81280) Medical Surgical Supplies & Equipment,(id:42302) Cardiovascular Services,EDWARDS LIFESCIENCES LTD,id:12775933,    25530.00
Department of Health,Guys and St Thomas NHS Foundation Trust,03/01/2020,(81280) Medical Surgical Supplies & Equipment,(id:42302) Cardiovascular Services,EDWARDS LIFESCIENCES LTD,id:12727687,    25530.00
Department of Health,Guys and St Thomas NHS Foundation Trust,03/01/2020,(81200) Medical Surgical Supplies & Equipment,(id:42302) Cardiovascular Services,NHS SUPPLY CHAIN (MAIDSTONE),id:12694241 ,9241.77
Department of Health,Guys and St Thomas NHS Foundation Trust,10/01/2020,(81200) Medical Surgical Supplies & Equipment,(id:42302) Cardiovascular Services,CARDINAL HEALTH UK 432 LIMITED,id:12734563    , 504.00
Department of Health,Guys and St Thomas NHS Foundation Trust,10/01/2020,(81200) Medical Surgical Supplies & Equipment,(id:42302) Cardiovascular Services,VASCULAR PERSPECTIVES LTD,id:12733921    , 660.00
Department of Health,Guys and St Thomas NHS Foundation Trust,10/01/2020,(81200) Medical Surgical Supplies & Equipment,(id:42302) Cardiovascular Services,BOSTON SCIENTIFIC LTD,id:12717445   ,1008.00
Department of Health,Guys and St Thomas NHS Foundation Trust,10/01/2020,(81200) Medical Surgical Supplies & Equipment,(id:42302) Cardiovascular Services,SQUADRON MEDICAL LTD,id:12717569    ,1153.82
Department of Health,Guys and St Thomas NHS Foundation Trust,30/01/2020,(81200) Medical Surgical Supplies & Equipment,(id:42302) Cardiovascular Services,BOSTON SCIENTIFIC LTD,id:12744999   , 240.00
Department of Health,Guys and St Thomas NHS Foundation Trust,30/01/2020,(81200) Medical Surgical Supplies & Equipment,(id:42302) Cardiovascular Services,VASCULAR PERSPECTIVES LTD,id:12778312    , 960.00
Department of Health,Guys and St Thomas NHS Foundation Trust,17/01/2020,(81200) Medical Surgical Supplies & Equipment,(id:42302) Cardiovascular Services,XAVIOURMED LLP,id:12747376, 510.00
Department of Health,Guys and St Thomas NHS Foundation Trust,17/01/2020,(81200) Medical Surgical Supplies & Equipment,(id:42302) Cardiovascular Services,XAVIOURMED LLP,id:12750859,1020.00
Department of Health,Guys and St Thomas NHS Foundation Trust,24/01/2020,(81200) Medical Surgical Supplies & Equipment,(id:42302) Cardiovascular Services,BOSTON SCIENTIFIC LTD,id:12735164   ,1008.00
Department of Health,Guys and St Thomas NHS Foundation Trust,24/01/2020,(81200) Medical Surgical Supplies & Equipment,(id:42302) Cardiovascular Services,ABBOTT MEDICAL UK LTD,id:12754036   , 900.00
Department of Health,Guys and St Thomas NHS Foundation Trust,24/01/2020,(81200) Medical Surgical Supplies & Equipment,(id:42302) Cardiovascular Services,MEDTRONIC LTD,id:12735190 , 703.20
Department of Health,Guys and St Thomas NHS Foundation Trust,24/01/2020,(81200) Medical Surgical Supplies & Equipment,(id:42302) Cardiovascular Services,ABBOTT MEDICAL UK LTD,id:12736121   ,2175.00
Department of Health,Guys and St Thomas NHS Foundation Trust,03/01/2020,(81225) Medical Surgical Supplies & Equipment,(id:42302) Cardiovascular Services,NHS SUPPLY CHAIN (MAIDSTONE),id:12694241 ,  15.12
Department of Health,Guys and St Thomas NHS Foundation Trust,17/01/2020,(81225) Medical Surgical Supplies & Equipment,(id:42302) Cardiovascular Services,NHS SUPPLY CHAIN (MAIDSTONE),id:12723603 ,  17.28
Department of Health,Guys and St Thomas NHS Foundation Trust,24/01/2020,(81235) Medical Surgical Supplies & Equipment,(id:42302) Cardiovascular Services,BOSTON SCIENTIFIC LTD,id:12730602   , 352.80
Department of Health,Guys and St Thomas NHS Foundation Trust,30/01/2020,(81230) Medical Surgical Supplies & Equipment,(id:42302) Cardiovascular Services,MEDTRONIC LTD,id:12745018 , 720.00
Department of Health,Guys and St Thomas NHS Foundation Trust,17/01/2020,(83400) Office Equipment,(id:42301) Cardiovascular Services,NHS SUPPLY CHAIN (MAIDSTONE),id:12723603  , 165.36
Department of Health,Guys and St Thomas NHS Foundation Trust,03/01/2020,(83400) Office Equipment,(id:42301) Cardiovascular Services,NHS SUPPLY CHAIN (MAIDSTONE),id:12694241  , 231.13
Department of Health,Guys and St Thomas NHS Foundation Trust,03/01/2020,(82700) Uniforms & Clothing,(id:42300) Cardiovascular Services,NHS SUPPLY CHAIN (MAIDSTONE),id:12706389    , 171.40
Department of Health,Guys and St Thomas NHS Foundation Trust,30/01/2020,(81235) Medical Surgical Supplies & Equipment,(id:42298) Cardiovascular Services,AQUILANT LTD,id:12775742  , 504.00
Department of Health,Guys and St Thomas NHS Foundation Trust,03/01/2020,(81200) Medical Surgical Supplies & Equipment,(id:42298) Cardiovascular Services,JOHNSON & JOHNSON MEDICAL LTD,id:12712759,3947.11
Department of Health,Guys and St Thomas NHS Foundation Trust,03/01/2020,(81200) Medical Surgical Supplies & Equipment,(id:42298) Cardiovascular Services,JOHNSON & JOHNSON MEDICAL LTD,id:12702613,    22572.00
Department of Health,Guys and St Thomas NHS Foundation Trust,03/01/2020,(81200) Medical Surgical Supplies & Equipment,(id:42298) Cardiovascular Services,TELEFLEX MEDICAL,id:12712747   , 720.00
Department of Health,Guys and St Thomas NHS Foundation Trust,03/01/2020,(81200) Medical Surgical Supplies & Equipment,(id:42298) Cardiovascular Services,ABBOTT MEDICAL UK LTD,id:12719058   , 600.00
Department of Health,Guys and St Thomas NHS Foundation Trust,03/01/2020,(81200) Medical Surgical Supplies & Equipment,(id:42298) Cardiovascular Services,ABBOTT MEDICAL UK LTD,id:12719784   , 180.00
Department of Health,Guys and St Thomas NHS Foundation Trust,03/01/2020,(81200) Medical Surgical Supplies & Equipment,(id:42298) Cardiovascular Services,JOHNSON & JOHNSON MEDICAL LTD,id:12708746,1194.00
Department of Health,Guys and St Thomas NHS Foundation Trust,17/01/2020,(81200) Medical Surgical Supplies & Equipment,(id:42298) Cardiovascular Services,BOSTON SCIENTIFIC LTD,id:12724343   , 990.00
Department of Health,Guys and St Thomas NHS Foundation Trust,24/01/2020,(81200) Medical Surgical Supplies & Equipment,(id:42298) Cardiovascular Services,TELEFLEX MEDICAL,id:12736947   ,1800.00
Department of Health,Guys and St Thomas NHS Foundation Trust,24/01/2020,(81200) Medical Surgical Supplies & Equipment,(id:42298) Cardiovascular Services,VASCULAR PERSPECTIVES LTD,id:12760017    ,1440.00
Department of Health,Guys and St Thomas NHS Foundation Trust,30/01/2020,(81200) Medical Surgical Supplies & Equipment,(id:42298) Cardiovascular Services,BOSTON SCIENTIFIC LTD,id:12730605   ,1231.64
Department of Health,Guys and St Thomas NHS Foundation Trust,03/01/2020,(81200) Medical Surgical Supplies & Equipment,(id:42298) Cardiovascular Services,JOHNSON & JOHNSON MEDICAL LTD,id:12708749,9000.00
Department of Health,Guys and St Thomas NHS Foundation Trust,10/01/2020,(81230) Medical Surgical Supplies & Equipment,(id:42298) Cardiovascular Services,ABBOTT MEDICAL UK LTD,id:12724280   , 192.00
Department of Health,Guys and St Thomas NHS Foundation Trust,03/01/2020,(81230) Medical Surgical Supplies & Equipment,(id:42298) Cardiovascular Services,ABBOTT MEDICAL UK LTD,id:12719789   ,1530.00
Department of Health,Guys and St Thomas NHS Foundation Trust,30/01/2020,(81230) Medical Surgical Supplies & Equipment,(id:42298) Cardiovascular Services,ABBOTT MEDICAL UK LTD,id:12754027   , 192.00
Department of Health,Guys and St Thomas NHS Foundation Trust,30/01/2020,(81280) Medical Surgical Supplies & Equipment,(id:42298) Cardiovascular Services,ABBOTT MEDICAL UK LTD,id:12777336   , 258.00
Department of Health,Guys and St Thomas NHS Foundation Trust,17/01/2020,(81265) Medical Surgical Supplies & Equipment,(id:42298) Cardiovascular Services,ABBOTT MEDICAL UK LTD,id:12748805   ,    13606.80
Department of Health,Guys and St Thomas NHS Foundation Trust,03/01/2020,(81265) Medical Surgical Supplies & Equipment,(id:42298) Cardiovascular Services,ABBOTT MEDICAL UK LTD,id:12719793   ,    40820.40
Department of Health,Guys and St Thomas NHS Foundation Trust,03/01/2020,(81240) Medical Surgical Supplies & Equipment,(id:42298) Cardiovascular Services,ABBOTT MEDICAL UK LTD,id:12719733   ,3240.00
Department of Health,Guys and St Thomas NHS Foundation Trust,03/01/2020,(81240) Medical Surgical Supplies & Equipment,(id:42298) Cardiovascular Services,ABBOTT MEDICAL UK LTD,id:12719086   ,    10782.00
Department of Health,Guys and St Thomas NHS Foundation Trust,10/01/2020,(81240) Medical Surgical Supplies & Equipment,(id:42298) Cardiovascular Services,MEDTRONIC LTD,id:12602597 , 960.00
Department of Health,Guys and St Thomas NHS Foundation Trust,24/01/2020,(81240) Medical Surgical Supplies & Equipment,(id:42298) Cardiovascular Services,ABBOTT MEDICAL UK LTD,id:12754132   ,    10800.00
Department of Health,Guys and St Thomas NHS Foundation Trust,03/01/2020,(83400) Office Equipment,(id:42291) Cardiovascular Services,NHS SUPPLY CHAIN (MAIDSTONE),id:12694241  ,  90.48
Department of Health,Guys and St Thomas NHS Foundation Trust,03/01/2020,(82700) Uniforms & Clothing,(id:42291) Cardiovascular Services,NHS SUPPLY CHAIN (MAIDSTONE),id:12706389    , 123.58
Department of Health,Guys and St Thomas NHS Foundation Trust,03/01/2020,(82000) Provisions & Kitchens,(id:42291) Cardiovascular Services,NHS SUPPLY CHAIN (MAIDSTONE),id:12706389  ,  84.51
Department of Health,Guys and St Thomas NHS Foundation Trust,03/01/2020,(83400) Office Equipment,(id:42290) Cardiovascular Services,NHS SUPPLY CHAIN (MAIDSTONE),id:12694241  , 129.52
Department of Health,Guys and St Thomas NHS Foundation Trust,03/01/2020,(81100) Dressings,(id:42290) Cardiovascular Services,NHS SUPPLY CHAIN (MAIDSTONE),id:12694241    , 102.54
Department of Health,Guys and St Thomas NHS Foundation Trust,03/01/2020,(81100) Dressings,(id:42290) Cardiovascular Services,NHS SUPPLY CHAIN (MAIDSTONE),id:12706389    , 158.54
Department of Health,Guys and St Thomas NHS Foundation Trust,17/01/2020,(81100) Dressings,(id:42290) Cardiovascular Services,NHS SUPPLY CHAIN (MAIDSTONE),id:12723603    ,  75.73
Department of Health,Guys and St Thomas NHS Foundation Trust,30/01/2020,(81700) Lab Equipment Purchase,(id:42290) Cardiovascular Services,NHS SUPPLY CHAIN (MAIDSTONE),id:12732483 ,  45.65
Department of Health,Guys and St Thomas NHS Foundation Trust,30/01/2020,(82600) Uniforms & Clothing,(id:42293) Cardiovascular Services,NHS SUPPLY CHAIN (MAIDSTONE),id:12732483    ,  22.94
Department of Health,Guys and St Thomas NHS Foundation Trust,03/01/2020,(83400) Office Equipment,(id:42293) Cardiovascular Services,NHS SUPPLY CHAIN (MAIDSTONE),id:12694241  ,  46.57
Department of Health,Guys and St Thomas NHS Foundation Trust,30/01/2020,(81225) Medical Surgical Supplies & Equipment,(id:42293) Cardiovascular Services,NHS SUPPLY CHAIN (MAIDSTONE),id:12732483 ,   5.04
Department of Health,Guys and St Thomas NHS Foundation Trust,03/01/2020,(81200) Medical Surgical Supplies & Equipment,(id:42293) Cardiovascular Services,SQUADRON MEDICAL LTD,id:12708837    , 930.41
Department of Health,Guys and St Thomas NHS Foundation Trust,03/01/2020,(81200) Medical Surgical Supplies & Equipment,(id:42293) Cardiovascular Services,SQUADRON MEDICAL LTD,id:12709126    , 546.71
Department of Health,Guys and St Thomas NHS Foundation Trust,03/01/2020,(81200) Medical Surgical Supplies & Equipment,(id:42293) Cardiovascular Services,CARDIO SOLUTIONS LLP,id:12723550    , 934.80
Department of Health,Guys and St Thomas NHS Foundation Trust,17/01/2020,(81200) Medical Surgical Supplies & Equipment,(id:42293) Cardiovascular Services,AQUILANT LTD,id:12741099  ,1755.60
Department of Health,Guys and St Thomas NHS Foundation Trust,17/01/2020,(81200) Medical Surgical Supplies & Equipment,(id:42293) Cardiovascular Services,JOHNSON & JOHNSON MEDICAL LTD,id:12720292, 608.04
Department of Health,Guys and St Thomas NHS Foundation Trust,30/01/2020,(81200) Medical Surgical Supplies & Equipment,(id:42293) Cardiovascular Services,SQUADRON MEDICAL LTD,id:12741878    , 403.01
Department of Health,Guys and St Thomas NHS Foundation Trust,30/01/2020,(81200) Medical Surgical Supplies & Equipment,(id:42293) Cardiovascular Services,EDWARDS LIFESCIENCES LTD,id:12770196, 566.40
Department of Health,Guys and St Thomas NHS Foundation Trust,30/01/2020,(81200) Medical Surgical Supplies & Equipment,(id:42293) Cardiovascular Services,EDWARDS LIFESCIENCES LTD,id:12775938, 566.40
Department of Health,Guys and St Thomas NHS Foundation Trust,17/01/2020,(81200) Medical Surgical Supplies & Equipment,(id:42293) Cardiovascular Services,SQUADRON MEDICAL LTD,id:12724412    , 353.13
Department of Health,Guys and St Thomas NHS Foundation Trust,10/01/2020,(81100) Dressings,(id:42293) Cardiovascular Services,SQUADRON MEDICAL LTD,id:12715398  ,  37.94
Department of Health,Guys and St Thomas NHS Foundation Trust,17/01/2020,(81100) Dressings,(id:42293) Cardiovascular Services,NHS SUPPLY CHAIN (MAIDSTONE),id:12723603    , 885.14
Department of Health,Guys and St Thomas NHS Foundation Trust,30/01/2020,(81100) Dressings,(id:42293) Cardiovascular Services,SQUADRON MEDICAL LTD,id:12745109  , 245.41
Department of Health,Guys and St Thomas NHS Foundation Trust,03/01/2020,(81280) Medical Surgical Supplies & Equipment,(id:42293) Cardiovascular Services,CRYOLIFE EUROPA LTD,id:12724292,1440.00
Department of Health,Guys and St Thomas NHS Foundation Trust,10/01/2020,(81280) Medical Surgical Supplies & Equipment,(id:42293) Cardiovascular Services,ROYAL BROMPTON AND HAREFIELD NHS FOUNDATION TRUST,id:12729939,3922.00
Department of Health,Guys and St Thomas NHS Foundation Trust,17/01/2020,(81280) Medical Surgical Supplies & Equipment,(id:42293) Cardiovascular Services,EDWARDS LIFESCIENCES LTD,id:12743124,5640.00
Department of Health,Guys and St Thomas NHS Foundation Trust,24/01/2020,(81280) Medical Surgical Supplies & Equipment,(id:42293) Cardiovascular Services,EDWARDS LIFESCIENCES LTD,id:12754276,2880.00
Department of Health,Guys and St Thomas NHS Foundation Trust,24/01/2020,(81280) Medical Surgical Supplies & Equipment,(id:42293) Cardiovascular Services,EDWARDS LIFESCIENCES LTD,id:12754836,3420.00
Department of Health,Guys and St Thomas NHS Foundation Trust,30/01/2020,(81280) Medical Surgical Supplies & Equipment,(id:42293) Cardiovascular Services,EDWARDS LIFESCIENCES LTD,id:12778881,1056.00
Department of Health,Guys and St Thomas NHS Foundation Trust,30/01/2020,(81280) Medical Surgical Supplies & Equipment,(id:42293) Cardiovascular Services,EDWARDS LIFESCIENCES LTD,id:12770136,5640.00
Department of Health,Guys and St Thomas NHS Foundation Trust,10/01/2020,(81200) Medical Surgical Supplies & Equipment,(id:42292) Cardiovascular Services,SIEMENS HEALTHCARE DIAGNOSTICS LTD,id:12732016,2078.38
Department of Health,Guys and St Thomas NHS Foundation Trust,10/01/2020,(81200) Medical Surgical Supplies & Equipment,(id:42292) Cardiovascular Services,LIVANOVA UK LTD,id:12733230    , 553.68
Department of Health,Guys and St Thomas NHS Foundation Trust,10/01/2020,(81200) Medical Surgical Supplies & Equipment,(id:42292) Cardiovascular Services,MAQUET LIMITED,id:12724231, 950.40
Department of Health,Guys and St Thomas NHS Foundation Trust,10/01/2020,(81200) Medical Surgical Supplies & Equipment,(id:42292) Cardiovascular Services,MAQUET LIMITED,id:12724263,1425.60
Department of Health,Guys and St Thomas NHS Foundation Trust,03/01/2020,(81200) Medical Surgical Supplies & Equipment,(id:42292) Cardiovascular Services,TERUMO UK LTD,id:12719736 , 612.00
Department of Health,Guys and St Thomas NHS Foundation Trust,17/01/2020,(81200) Medical Surgical Supplies & Equipment,(id:42292) Cardiovascular Services,LIVANOVA UK LTD,id:12742920    , 541.15
Department of Health,Guys and St Thomas NHS Foundation Trust,24/01/2020,(81200) Medical Surgical Supplies & Equipment,(id:42292) Cardiovascular Services,SIEMENS HEALTHCARE DIAGNOSTICS LTD,id:12746047,2966.46
Department of Health,Guys and St Thomas NHS Foundation Trust,10/01/2020,(81100) Dressings,(id:42292) Cardiovascular Services,MAQUET LIMITED,id:12733677   , 366.00
Department of Health,Guys and St Thomas NHS Foundation Trust,10/01/2020,(81100) Dressings,(id:42292) Cardiovascular Services,LIVANOVA UK LTD,id:12733230  , 396.00
Department of Health,Guys and St Thomas NHS Foundation Trust,10/01/2020,(81100) Dressings,(id:42292) Cardiovascular Services,MAQUET LIMITED,id:12724261   , 732.00
Department of Health,Guys and St Thomas NHS Foundation Trust,30/01/2020,(81100) Dressings,(id:42292) Cardiovascular Services,MAQUET LIMITED,id:12774016   , 366.00
Department of Health,Guys and St Thomas NHS Foundation Trust,10/01/2020,(81270) Medical Surgical Supplies & Equipment,(id:42292) Cardiovascular Services,MAQUET LIMITED,id:12724228, 180.00
Department of Health,Guys and St Thomas NHS Foundation Trust,10/01/2020,(81270) Medical Surgical Supplies & Equipment,(id:42292) Cardiovascular Services,MAQUET LIMITED,id:12732416, 180.00
Department of Health,Guys and St Thomas NHS Foundation Trust,10/01/2020,(81270) Medical Surgical Supplies & Equipment,(id:42292) Cardiovascular Services,MAQUET LIMITED,id:12733679, 360.00
Department of Health,Guys and St Thomas NHS Foundation Trust,10/01/2020,(81270) Medical Surgical Supplies & Equipment,(id:42292) Cardiovascular Services,MAQUET LIMITED,id:12723376,1260.00
Department of Health,Guys and St Thomas NHS Foundation Trust,30/01/2020,(81700) Lab Equipment Purchase,(id:42292) Cardiovascular Services,WERFEN LIMITED,id:12779512,1582.96
Department of Health,Guys and St Thomas NHS Foundation Trust,03/01/2020,(82800) Bedding & Linen,(id:42287) Cardiovascular Services,NHS SUPPLY CHAIN (MAIDSTONE),id:12694241   ,  95.16
Department of Health,Guys and St Thomas NHS Foundation Trust,17/01/2020,(81700) Lab Equipment Purchase,(id:42287) Cardiovascular Services,NHS SUPPLY CHAIN (MAIDSTONE),id:12723603 ,   5.93
Department of Health,Guys and St Thomas NHS Foundation Trust,03/01/2020,(81255) Medical Surgical Supplies & Equipment,(id:42287) Cardiovascular Services,NHS SUPPLY CHAIN (MAIDSTONE),id:12706389 ,   7.79
Department of Health,Guys and St Thomas NHS Foundation Trust,03/01/2020,(82000) Provisions & Kitchens,(id:2046422) Clinical Imaging & Med Physics,NHS SUPPLY CHAIN (MAIDSTONE),id:12694241   ,  28.98
Department of Health,Guys and St Thomas NHS Foundation Trust,30/01/2020,(50200) Consultants,(id:42368) Clinical Imaging & Med Physics,KINGS COLLEGE LONDON:03529700,id:12551769    ,    11600.75
Department of Health,Guys and St Thomas NHS Foundation Trust,27/01/2020,(52072) Radiographers,(id:42368) Clinical Imaging & Med Physics,PRICEWATERHOUSECOOPERS LLP,id:12775803,4005.00
Department of Health,Guys and St Thomas NHS Foundation Trust,30/01/2020,(84600) Establishment,(id:42368) Clinical Imaging & Med Physics,CLARITY TRAVEL MANAGEMENT,id:12776401 , 605.20
Department of Health,Guys and St Thomas NHS Foundation Trust,30/01/2020,(50202) Consultants,(id:42368) Clinical Imaging & Med Physics,MEDITEAM RECRUITMENT LTD,id:12781251    ,7020.00
Department of Health,Guys and St Thomas NHS Foundation Trust,03/01/2020,(83500) Furniture & Fittings,(id:42367) Clinical Imaging & Med Physics,OFFICE DEPOT UK LTD,id:12702824, 924.00
Department of Health,Guys and St Thomas NHS Foundation Trust,03/01/2020,(81100) Dressings,(id:42367) Clinical Imaging & Med Physics,SQUADRON MEDICAL LTD,id:12701102,1215.14
Department of Health,Guys and St Thomas NHS Foundation Trust,03/01/2020,(81255) Medical Surgical Supplies & Equipment,(id:42367) Clinical Imaging & Med Physics,NHS SUPPLY CHAIN (MAIDSTONE),id:12694241    ,   3.12
Department of Health,Guys and St Thomas NHS Foundation Trust,03/01/2020,(81200) Medical Surgical Supplies & Equipment,(id:42367) Clinical Imaging & Med Physics,NHS SUPPLY CHAIN (MAIDSTONE),id:12706389    ,9275.09
Department of Health,Guys and St Thomas NHS Foundation Trust,03/01/2020,(81200) Medical Surgical Supplies & Equipment,(id:42367) Clinical Imaging & Med Physics,SQUADRON MEDICAL LTD,id:12702716  , 661.35
Department of Health,Guys and St Thomas NHS Foundation Trust,03/01/2020,(81200) Medical Surgical Supplies & Equipment,(id:42367) Clinical Imaging & Med Physics,SQUADRON MEDICAL LTD,id:12712810  ,1087.43
Department of Health,Guys and St Thomas NHS Foundation Trust,17/01/2020,(81200) Medical Surgical Supplies & Equipment,(id:42367) Clinical Imaging & Med Physics,SQUADRON MEDICAL LTD,id:12701329  ,1942.48
Department of Health,Guys and St Thomas NHS Foundation Trust,24/01/2020,(81200) Medical Surgical Supplies & Equipment,(id:42367) Clinical Imaging & Med Physics,SQUADRON MEDICAL LTD,id:12730550  , 992.88
Department of Health,Guys and St Thomas NHS Foundation Trust,24/01/2020,(81200) Medical Surgical Supplies & Equipment,(id:42367) Clinical Imaging & Med Physics,SQUADRON MEDICAL LTD,id:12739386  , 216.40
Department of Health,Guys and St Thomas NHS Foundation Trust,30/01/2020,(81200) Medical Surgical Supplies & Equipment,(id:42367) Clinical Imaging & Med Physics,SQUADRON MEDICAL LTD,id:12745264  ,2071.77
Department of Health,Guys and St Thomas NHS Foundation Trust,30/01/2020,(81200) Medical Surgical Supplies & Equipment,(id:42367) Clinical Imaging & Med Physics,NHS SUPPLY CHAIN (MAIDSTONE),id:12732483    ,2093.91
Department of Health,Guys and St Thomas NHS Foundation Trust,30/01/2020,(81200) Medical Surgical Supplies & Equipment,(id:42367) Clinical Imaging & Med Physics,BARD LTD,id:12742351    ,1192.80
Department of Health,Guys and St Thomas NHS Foundation Trust,30/01/2020,(81200) Medical Surgical Supplies & Equipment,(id:42367) Clinical Imaging & Med Physics,ABBOTT MEDICAL UK LTD,id:12780575 ,3240.00
Department of Health,Guys and St Thomas NHS Foundation Trust,30/01/2020,(81200) Medical Surgical Supplies & Equipment,(id:42367) Clinical Imaging & Med Physics,MEDTRONIC LTD,id:12745022    ,2880.00
Department of Health,Guys and St Thomas NHS Foundation Trust,30/01/2020,(81200) Medical Surgical Supplies & Equipment,(id:42367) Clinical Imaging & Med Physics,SQUADRON MEDICAL LTD,id:12745136  , 682.99
Department of Health,Guys and St Thomas NHS Foundation Trust,03/01/2020,(81200) Medical Surgical Supplies & Equipment,(id:42367) Clinical Imaging & Med Physics,ABBOTT MEDICAL UK LTD,id:12719787 ,1080.00
Department of Health,Guys and St Thomas NHS Foundation Trust,10/01/2020,(81200) Medical Surgical Supplies & Equipment,(id:42367) Clinical Imaging & Med Physics,SQUADRON MEDICAL LTD,id:12714357  ,  61.53
Department of Health,Guys and St Thomas NHS Foundation Trust,24/01/2020,(81200) Medical Surgical Supplies & Equipment,(id:42367) Clinical Imaging & Med Physics,ABBOTT MEDICAL UK LTD,id:12754134 ,2088.00
Department of Health,Guys and St Thomas NHS Foundation Trust,03/01/2020,(81230) Medical Surgical Supplies & Equipment,(id:42367) Clinical Imaging & Med Physics,SQUADRON MEDICAL LTD,id:12673635  , 162.66
Department of Health,Guys and St Thomas NHS Foundation Trust,03/01/2020,(81230) Medical Surgical Supplies & Equipment,(id:42367) Clinical Imaging & Med Physics,SQUADRON MEDICAL LTD,id:12712807  , 240.32
Department of Health,Guys and St Thomas NHS Foundation Trust,03/01/2020,(81230) Medical Surgical Supplies & Equipment,(id:42367) Clinical Imaging & Med Physics,SQUADRON MEDICAL LTD,id:12709182  , 667.79
Department of Health,Guys and St Thomas NHS Foundation Trust,24/01/2020,(81230) Medical Surgical Supplies & Equipment,(id:42367) Clinical Imaging & Med Physics,SQUADRON MEDICAL LTD,id:12735267  , 259.24
Department of Health,Guys and St Thomas NHS Foundation Trust,10/01/2020,(81230) Medical Surgical Supplies & Equipment,(id:42367) Clinical Imaging & Med Physics,COOK UK LTD,id:12713077 ,  57.60
Department of Health,Guys and St Thomas NHS Foundation Trust,10/01/2020,(81230) Medical Surgical Supplies & Equipment,(id:42367) Clinical Imaging & Med Physics,SQUADRON MEDICAL LTD,id:12715370  , 254.23
Department of Health,Guys and St Thomas NHS Foundation Trust,17/01/2020,(81230) Medical Surgical Supplies & Equipment,(id:42367) Clinical Imaging & Med Physics,MEDTRONIC LTD,id:12724360    ,1140.00
Department of Health,Guys and St Thomas NHS Foundation Trust,03/01/2020,(81500) X Ray Equipment Purchase,(id:42367) Clinical Imaging & Med Physics,NHS SUPPLY CHAIN (MAIDSTONE),id:12694241  , 310.80
Department of Health,Guys and St Thomas NHS Foundation Trust,03/01/2020,(82800) Bedding & Linen,(id:42366) Clinical Imaging & Med Physics,NHS SUPPLY CHAIN (MAIDSTONE),id:12694241 , 228.16
Department of Health,Guys and St Thomas NHS Foundation Trust,03/01/2020,(81100) Dressings,(id:42366) Clinical Imaging & Med Physics,NHS SUPPLY CHAIN (MAIDSTONE),id:12694241  , 100.95
Department of Health,Guys and St Thomas NHS Foundation Trust,17/01/2020,(81100) Dressings,(id:42366) Clinical Imaging & Med Physics,NHS SUPPLY CHAIN (MAIDSTONE),id:12723603  , 130.10
Department of Health,Guys and St Thomas NHS Foundation Trust,10/01/2020,(81200) Medical Surgical Supplies & Equipment,(id:42366) Clinical Imaging & Med Physics,COOK UK LTD,id:12715562 , 900.00
Department of Health,Guys and St Thomas NHS Foundation Trust,03/01/2020,(81700) Lab Equipment Purchase,(id:42366) Clinical Imaging & Med Physics,NHS SUPPLY CHAIN (MAIDSTONE),id:12694241    ,  68.09
Department of Health,Guys and St Thomas NHS Foundation Trust,17/01/2020,(83400) Office Equipment,(id:4187419) Clinical Imaging & Med Physics,BAYER PLC,id:12743218  ,2112.00
Department of Health,Guys and St Thomas NHS Foundation Trust,10/01/2020,(81200) Medical Surgical Supplies & Equipment,(id:4187419) Clinical Imaging & Med Physics,ADVANCED ACCELERATOR APPLICATIONS (UK & IRELAND) LTD,id:12728796   ,    15658.50
Department of Health,Guys and St Thomas NHS Foundation Trust,10/01/2020,(81200) Medical Surgical Supplies & Equipment,(id:4187419) Clinical Imaging & Med Physics,ADVANCED ACCELERATOR APPLICATIONS (UK & IRELAND) LTD,id:12729947   ,    16690.50
Department of Health,Guys and St Thomas NHS Foundation Trust,10/01/2020,(81200) Medical Surgical Supplies & Equipment,(id:4187419) Clinical Imaging & Med Physics,ADVANCED ACCELERATOR APPLICATIONS (UK & IRELAND) LTD,id:12740499   ,    16690.50
Department of Health,Guys and St Thomas NHS Foundation Trust,03/01/2020,(82000) Provisions & Kitchens,(id:42372) Clinical Imaging & Med Physics,NHS SUPPLY CHAIN (MAIDSTONE),id:12706389,   1.92
Department of Health,Guys and St Thomas NHS Foundation Trust,10/01/2020,(83400) Office Equipment,(id:42372) Clinical Imaging & Med Physics,BAYER PLC,id:12734984    ,2112.00
Department of Health,Guys and St Thomas NHS Foundation Trust,24/01/2020,(50562) Qualified Nursing Staff,(id:42372) Clinical Imaging & Med Physics,CONTINENTAL NURSE LTD,id:12759105,1198.35
Department of Health,Guys and St Thomas NHS Foundation Trust,17/01/2020,(81100) Dressings,(id:42372) Clinical Imaging & Med Physics,NHS SUPPLY CHAIN (MAIDSTONE),id:12723603  ,   8.39
Department of Health,Guys and St Thomas NHS Foundation Trust,03/01/2020,(82800) Bedding & Linen,(id:42372) Clinical Imaging & Med Physics,NHS SUPPLY CHAIN (MAIDSTONE),id:12694241 ,   3.38
Department of Health,Guys and St Thomas NHS Foundation Trust,10/01/2020,(81275) Medical Surgical Supplies & Equipment,(id:42372) Clinical Imaging & Med Physics,GE HEALTHCARE UK LTD:00475800,id:12704032   , 528.00
Department of Health,Guys and St Thomas NHS Foundation Trust,10/01/2020,(81275) Medical Surgical Supplies & Equipment,(id:42372) Clinical Imaging & Med Physics,GE HEALTHCARE UK LTD:00475800,id:12728236   , 630.00
Department of Health,Guys and St Thomas NHS Foundation Trust,30/01/2020,(50200) Consultants,(id:42372) Clinical Imaging & Med Physics,KINGS COLLEGE LONDON:03529700,id:12442391    ,4030.87
Department of Health,Guys and St Thomas NHS Foundation Trust,03/01/2020,(81500) X Ray Equipment Purchase,(id:42380) Clinical Imaging & Med Physics,GE HEALTHCARE (50652318),id:12657709 ,1302.64
Department of Health,Guys and St Thomas NHS Foundation Trust,03/01/2020,(83400) Office Equipment,(id:42379) Clinical Imaging & Med Physics,NHS SUPPLY CHAIN (MAIDSTONE),id:12694241,  26.93
Department of Health,Guys and St Thomas NHS Foundation Trust,30/01/2020,(81400) Medical Surgical Supplies & Equipment,(id:42379) Clinical Imaging & Med Physics,TENACORE UK LTD,id:12677761  ,1205.00
Department of Health,Guys and St Thomas NHS Foundation Trust,30/01/2020,(84600) Establishment,(id:42379) Clinical Imaging & Med Physics,CLARITY TRAVEL MANAGEMENT,id:12776401 ,  64.31
Department of Health,Guys and St Thomas NHS Foundation Trust,17/01/2020,(81200) Medical Surgical Supplies & Equipment,(id:42379) Clinical Imaging & Med Physics,CABLEMED LTD,id:12746876,1205.82
Department of Health,Guys and St Thomas NHS Foundation Trust,17/01/2020,(81200) Medical Surgical Supplies & Equipment,(id:42379) Clinical Imaging & Med Physics,TENACORE UK LTD,id:12750928  ,  24.00
Department of Health,Guys and St Thomas NHS Foundation Trust,30/01/2020,(81250) Medical Surgical Supplies & Equipment,(id:1348419) Clinical Imaging & Med Physics,MACROMED (UK) LTD,id:12779534   ,3210.00
Department of Health,Guys and St Thomas NHS Foundation Trust,30/01/2020,(81250) Medical Surgical Supplies & Equipment,(id:1348419) Clinical Imaging & Med Physics,AQUILANT LTD,id:12778166   ,3132.00
Department of Health,Guys and St Thomas NHS Foundation Trust,24/01/2020,(81200) Medical Surgical Supplies & Equipment,(id:1348419) Clinical Imaging & Med Physics,COOK UK LTD,id:12487918    , 780.00
Department of Health,Guys and St Thomas NHS Foundation Trust,30/01/2020,(84600) Establishment,(id:2625419) Transplant Renal and Urology,CLARITY TRAVEL MANAGEMENT,id:12776401 , 177.52
Department of Health,Guys and St Thomas NHS Foundation Trust,03/01/2020,(81200) Medical Surgical Supplies & Equipment,(id:2625419) Transplant Renal and Urology,SQUADRON MEDICAL LTD,id:12708827  , 626.28
Department of Health,Guys and St Thomas NHS Foundation Trust,03/01/2020,(81225) Medical Surgical Supplies & Equipment,(id:42419) Transplant Renal and Urology,NHS SUPPLY CHAIN (MAIDSTONE),id:12694241 ,  25.20
Department of Health,Guys and St Thomas NHS Foundation Trust,10/01/2020,(81225) Medical Surgical Supplies & Equipment,(id:42419) Transplant Renal and Urology,HOLLISTER LTD,id:12732402 , 508.78
Department of Health,Guys and St Thomas NHS Foundation Trust,30/01/2020,(84600) Establishment,(id:4258422) Transplant Renal and Urology,CLARITY TRAVEL MANAGEMENT,id:12776401 ,  47.91
Department of Health,Guys and St Thomas NHS Foundation Trust,03/01/2020,(81275) Medical Surgical Supplies & Equipment,(id:969419) Transplant Renal and Urology,NHS SUPPLY CHAIN (MAIDSTONE),id:12694241,  21.59
Department of Health,Guys and St Thomas NHS Foundation Trust,17/01/2020,(81200) Medical Surgical Supplies & Equipment,(id:42450) Transplant Renal and Urology,SQUADRON MEDICAL LTD,id:12725220    ,1327.34
Department of Health,Guys and St Thomas NHS Foundation Trust,24/01/2020,(81200) Medical Surgical Supplies & Equipment,(id:42450) Transplant Renal and Urology,SQUADRON MEDICAL LTD,id:12737038    , 673.63
Department of Health,Guys and St Thomas NHS Foundation Trust,24/01/2020,(81200) Medical Surgical Supplies & Equipment,(id:42450) Transplant Renal and Urology,STRYKER UK LTD,id:12759956, 613.87
Department of Health,Guys and St Thomas NHS Foundation Trust,30/01/2020,(81200) Medical Surgical Supplies & Equipment,(id:42450) Transplant Renal and Urology,SQUADRON MEDICAL LTD,id:12747448    ,1198.73
Department of Health,Guys and St Thomas NHS Foundation Trust,30/01/2020,(81200) Medical Surgical Supplies & Equipment,(id:42450) Transplant Renal and Urology,SQUADRON MEDICAL LTD,id:12747029    ,1162.37
Department of Health,Guys and St Thomas NHS Foundation Trust,03/01/2020,(81200) Medical Surgical Supplies & Equipment,(id:42450) Transplant Renal and Urology,STRYKER UK LTD,id:12723545, 613.87
Department of Health,Guys and St Thomas NHS Foundation Trust,10/01/2020,(81200) Medical Surgical Supplies & Equipment,(id:42450) Transplant Renal and Urology,STRYKER UK LTD,id:12721876, 613.87
Department of Health,Guys and St Thomas NHS Foundation Trust,30/01/2020,(83500) Furniture & Fittings,(id:42449) Transplant Renal and Urology,SUNFLOWER MEDICAL LTD,id:12776577,1433.70
Department of Health,Guys and St Thomas NHS Foundation Trust,03/01/2020,(81700) Lab Equipment Purchase,(id:42447) Transplant Renal and Urology,NHS SUPPLY CHAIN (MAIDSTONE),id:12694241 , 226.76
Department of Health,Guys and St Thomas NHS Foundation Trust,03/01/2020,(84656) Establishment,(id:42447) Transplant Renal and Urology,DICT8 LIMITED,id:12698038,6982.32
Department of Health,Guys and St Thomas NHS Foundation Trust,03/01/2020,(81225) Medical Surgical Supplies & Equipment,(id:42447) Transplant Renal and Urology,NHS SUPPLY CHAIN (MAIDSTONE),id:12706389 ,  12.76
Department of Health,Guys and St Thomas NHS Foundation Trust,03/01/2020,(50200) Consultants,(id:42447) Transplant Renal and Urology,KING'S COLLEGE HOSPITAL NHS FOUNDATION TRUST,id:12561806 ,4754.96
Department of Health,Guys and St Thomas NHS Foundation Trust,03/01/2020,(50200) Consultants,(id:42447) Transplant Renal and Urology,KING'S COLLEGE HOSPITAL NHS FOUNDATION TRUST,id:12503685 ,4761.20
Department of Health,Guys and St Thomas NHS Foundation Trust,24/01/2020,(81100) Dressings,(id:42446) Transplant Renal and Urology,SQUADRON MEDICAL LTD,id:12730707  ,  86.26
Department of Health,Guys and St Thomas NHS Foundation Trust,03/01/2020,(81200) Medical Surgical Supplies & Equipment,(id:42446) Transplant Renal and Urology,SQUADRON MEDICAL LTD,id:12695600    , 147.74
Department of Health,Guys and St Thomas NHS Foundation Trust,03/01/2020,(81200) Medical Surgical Supplies & Equipment,(id:42446) Transplant Renal and Urology,BOSTON SCIENTIFIC LTD,id:12717912   ,5839.20
Department of Health,Guys and St Thomas NHS Foundation Trust,03/01/2020,(81200) Medical Surgical Supplies & Equipment,(id:42446) Transplant Renal and Urology,SQUADRON MEDICAL LTD,id:12701360    , 113.69
Department of Health,Guys and St Thomas NHS Foundation Trust,03/01/2020,(81200) Medical Surgical Supplies & Equipment,(id:42446) Transplant Renal and Urology,SIGMACON (UK) LTD,id:12727688  ,1579.20
Department of Health,Guys and St Thomas NHS Foundation Trust,03/01/2020,(81200) Medical Surgical Supplies & Equipment,(id:42446) Transplant Renal and Urology,SQUADRON MEDICAL LTD,id:12692807    ,   6.50
Department of Health,Guys and St Thomas NHS Foundation Trust,24/01/2020,(81200) Medical Surgical Supplies & Equipment,(id:42446) Transplant Renal and Urology,SQUADRON MEDICAL LTD,id:12730707    , 179.96
Department of Health,Guys and St Thomas NHS Foundation Trust,24/01/2020,(81200) Medical Surgical Supplies & Equipment,(id:42446) Transplant Renal and Urology,SQUADRON MEDICAL LTD,id:12735304    ,  13.01
Department of Health,Guys and St Thomas NHS Foundation Trust,30/01/2020,(81200) Medical Surgical Supplies & Equipment,(id:42446) Transplant Renal and Urology,SIGMACON (UK) LTD,id:12778286  ,1999.20
Department of Health,Guys and St Thomas NHS Foundation Trust,30/01/2020,(81200) Medical Surgical Supplies & Equipment,(id:42446) Transplant Renal and Urology,INTUITIVE SURGICAL LTD,id:12765437  ,    -2394.00
Department of Health,Guys and St Thomas NHS Foundation Trust,10/01/2020,(81200) Medical Surgical Supplies & Equipment,(id:42446) Transplant Renal and Urology,SIGMACON (UK) LTD,id:12729954  , 679.20
Department of Health,Guys and St Thomas NHS Foundation Trust,10/01/2020,(81200) Medical Surgical Supplies & Equipment,(id:42446) Transplant Renal and Urology,SQUADRON MEDICAL LTD,id:12709364    ,1093.09
Department of Health,Guys and St Thomas NHS Foundation Trust,17/01/2020,(84520) Establishment,(id:42446) Transplant Renal and Urology,BXTACCELYON LIMITED,id:12746142    ,  54.00
Department of Health,Guys and St Thomas NHS Foundation Trust,30/01/2020,(81400) Medical Surgical Supplies & Equipment,(id:42446) Transplant Renal and Urology,KARL STORZ ENDOSCOPY UK LTD,id:12780464  , 817.70
Department of Health,Guys and St Thomas NHS Foundation Trust,03/01/2020,(81200) Medical Surgical Supplies & Equipment,(id:42444) Transplant Renal and Urology,NHS SUPPLY CHAIN (MAIDSTONE),id:12694241 ,  15.60
Department of Health,Guys and St Thomas NHS Foundation Trust,30/01/2020,(81200) Medical Surgical Supplies & Equipment,(id:42444) Transplant Renal and Urology,BOSTON SCIENTIFIC LTD,id:12712711   , 633.00
Department of Health,Guys and St Thomas NHS Foundation Trust,30/01/2020,(81200) Medical Surgical Supplies & Equipment,(id:42444) Transplant Renal and Urology,BOSTON SCIENTIFIC LTD,id:12746956   , 847.50
Department of Health,Guys and St Thomas NHS Foundation Trust,30/01/2020,(81200) Medical Surgical Supplies & Equipment,(id:42444) Transplant Renal and Urology,BOSTON SCIENTIFIC LTD,id:12717436   ,1115.10
Department of Health,Guys and St Thomas NHS Foundation Trust,03/01/2020,(82700) Uniforms & Clothing,(id:42443) Transplant Renal and Urology,NHS SUPPLY CHAIN (MAIDSTONE),id:12694241    ,  31.68
Department of Health,Guys and St Thomas NHS Foundation Trust,03/01/2020,(81200) Medical Surgical Supplies & Equipment,(id:42443) Transplant Renal and Urology,NHS SUPPLY CHAIN (MAIDSTONE),id:12706389 ,1208.32
Department of Health,Guys and St Thomas NHS Foundation Trust,03/01/2020,(83400) Office Equipment,(id:42443) Transplant Renal and Urology,NHS SUPPLY CHAIN (MAIDSTONE),id:12706389  ,  93.85
Department of Health,Guys and St Thomas NHS Foundation Trust,03/01/2020,(82700) Uniforms & Clothing,(id:42442) Transplant Renal and Urology,NHS SUPPLY CHAIN (MAIDSTONE),id:12694241    ,  31.68
Department of Health,Guys and St Thomas NHS Foundation Trust,03/01/2020,(83400) Office Equipment,(id:42442) Transplant Renal and Urology,NHS SUPPLY CHAIN (MAIDSTONE),id:12694241  ,  96.75
Department of Health,Guys and St Thomas NHS Foundation Trust,30/01/2020,(81225) Medical Surgical Supplies & Equipment,(id:42442) Transplant Renal and Urology,NHS SUPPLY CHAIN (MAIDSTONE),id:12732483 ,   6.60
Department of Health,Guys and St Thomas NHS Foundation Trust,03/01/2020,(81700) Lab Equipment Purchase,(id:42442) Transplant Renal and Urology,NHS SUPPLY CHAIN (MAIDSTONE),id:12706389 ,  60.77
Department of Health,Guys and St Thomas NHS Foundation Trust,30/01/2020,(82600) Uniforms & Clothing,(id:2653419) Transplant Renal and Urology,NHS SUPPLY CHAIN (MAIDSTONE),id:12732483  ,  66.00
Department of Health,Guys and St Thomas NHS Foundation Trust,30/01/2020,(83400) Office Equipment,(id:2653419) Transplant Renal and Urology,NHS SUPPLY CHAIN (MAIDSTONE),id:12732483, 700.08
Department of Health,Guys and St Thomas NHS Foundation Trust,03/01/2020,(82000) Provisions & Kitchens,(id:42435) Transplant Renal and Urology,NHS SUPPLY CHAIN (MAIDSTONE),id:12706389  , 248.17
Department of Health,Guys and St Thomas NHS Foundation Trust,30/01/2020,(82800) Bedding & Linen,(id:42435) Transplant Renal and Urology,NHS SUPPLY CHAIN (MAIDSTONE),id:12732483   , 249.34
Department of Health,Guys and St Thomas NHS Foundation Trust,03/01/2020,(81100) Dressings,(id:42435) Transplant Renal and Urology,NHS SUPPLY CHAIN (MAIDSTONE),id:12694241    , 722.62
Department of Health,Guys and St Thomas NHS Foundation Trust,30/01/2020,(81700) Lab Equipment Purchase,(id:42435) Transplant Renal and Urology,NHS SUPPLY CHAIN (MAIDSTONE),id:12732483 , 152.11
Department of Health,Guys and St Thomas NHS Foundation Trust,10/01/2020,(81200) Medical Surgical Supplies & Equipment,(id:42433) Transplant Renal and Urology,SQUADRON MEDICAL LTD,id:12709364    ,  70.32
Department of Health,Guys and St Thomas NHS Foundation Trust,30/01/2020,(81200) Medical Surgical Supplies & Equipment,(id:42433) Transplant Renal and Urology,SQUADRON MEDICAL LTD,id:12742194    , 466.46
Department of Health,Guys and St Thomas NHS Foundation Trust,03/01/2020,(81200) Medical Surgical Supplies & Equipment,(id:42433) Transplant Renal and Urology,SQUADRON MEDICAL LTD,id:12695655    , 830.64
Department of Health,Guys and St Thomas NHS Foundation Trust,03/01/2020,(81200) Medical Surgical Supplies & Equipment,(id:42433) Transplant Renal and Urology,SQUADRON MEDICAL LTD,id:12692902    ,1661.28
Department of Health,Guys and St Thomas NHS Foundation Trust,24/01/2020,(81200) Medical Surgical Supplies & Equipment,(id:42433) Transplant Renal and Urology,SQUADRON MEDICAL LTD,id:12730731    , 339.44
Department of Health,Guys and St Thomas NHS Foundation Trust,24/01/2020,(81200) Medical Surgical Supplies & Equipment,(id:42433) Transplant Renal and Urology,SQUADRON MEDICAL LTD,id:12739500    , 415.32
Department of Health,Guys and St Thomas NHS Foundation Trust,30/01/2020,(82000) Provisions & Kitchens,(id:42428) Transplant Renal and Urology,NHS SUPPLY CHAIN (MAIDSTONE),id:12732483  ,  10.14
Department of Health,Guys and St Thomas NHS Foundation Trust,03/01/2020,(81100) Dressings,(id:42428) Transplant Renal and Urology,NHS SUPPLY CHAIN (MAIDSTONE),id:12694241    ,  58.01
Department of Health,Guys and St Thomas NHS Foundation Trust,24/01/2020,(84400) Transport,(id:42428) Transplant Renal and Urology,CITYSPRINT (UK) LTD,id:12743316   ,5565.90
Department of Health,Guys and St Thomas NHS Foundation Trust,30/01/2020,(84600) Establishment,(id:42428) Transplant Renal and Urology,CLARITY TRAVEL MANAGEMENT,id:12776401   , 410.46
Department of Health,Guys and St Thomas NHS Foundation Trust,30/01/2020,(83400) Office Equipment,(id:42428) Transplant Renal and Urology,NHS SUPPLY CHAIN (MAIDSTONE),id:12732483  ,  52.87
Department of Health,Guys and St Thomas NHS Foundation Trust,03/01/2020,(81200) Medical Surgical Supplies & Equipment,(id:42420) Transplant Renal and Urology,SQUADRON MEDICAL LTD,id:12701227    ,2800.96
Department of Health,Guys and St Thomas NHS Foundation Trust,03/01/2020,(81200) Medical Surgical Supplies & Equipment,(id:42420) Transplant Renal and Urology,BAXTER HEALTHCARE LTD,id:12723016   , 648.00
Department of Health,Guys and St Thomas NHS Foundation Trust,10/01/2020,(81200) Medical Surgical Supplies & Equipment,(id:42420) Transplant Renal and Urology,HOSPITAL METALCRAFT LTD,id:12728437 ,1286.41
Department of Health,Guys and St Thomas NHS Foundation Trust,30/01/2020,(81200) Medical Surgical Supplies & Equipment,(id:42420) Transplant Renal and Urology,FRESENIUS MEDICAL CARE RENAL SERVICES LT,id:12760301    ,3808.51
Department of Health,Guys and St Thomas NHS Foundation Trust,24/01/2020,(81200) Medical Surgical Supplies & Equipment,(id:42420) Transplant Renal and Urology,SQUADRON MEDICAL LTD,id:12735217    ,1446.42
Department of Health,Guys and St Thomas NHS Foundation Trust,30/01/2020,(83400) Office Equipment,(id:42420) Transplant Renal and Urology,NHS SUPPLY CHAIN (MAIDSTONE),id:12732483  , 667.87
Department of Health,Guys and St Thomas NHS Foundation Trust,17/01/2020,(50522) Unqualified Nursing Staff,(id:42420) Transplant Renal and Urology,GLOBE LOCUMS LTD,id:12746622, 228.47
Department of Health,Guys and St Thomas NHS Foundation Trust,17/01/2020,(81700) Lab Equipment Purchase,(id:42420) Transplant Renal and Urology,NHS SUPPLY CHAIN (MAIDSTONE),id:12723603 ,  39.46
Department of Health,Guys and St Thomas NHS Foundation Trust,03/01/2020,(50562) Qualified Nursing Staff,(id:42438) Transplant Renal and Urology,CROMWELL MEDICAL STAFFING LIMITED,id:12719989, 453.63
Department of Health,Guys and St Thomas NHS Foundation Trust,03/01/2020,(83110) Energy Costs,(id:42432) Transplant Renal and Urology,BRITISH GAS BUSINESS:70299300,id:12723796,2535.86
Department of Health,Guys and St Thomas NHS Foundation Trust,17/01/2020,(81200) Medical Surgical Supplies & Equipment,(id:42425) Transplant Renal and Urology,SQUADRON MEDICAL LTD,id:12681957    ,1136.16
Department of Health,Guys and St Thomas NHS Foundation Trust,10/01/2020,(81200) Medical Surgical Supplies & Equipment,(id:42422) Transplant Renal and Urology,NXSTAGE MEDICAL UK LIMITED,id:12729237   ,1357.80
Department of Health,Guys and St Thomas NHS Foundation Trust,10/01/2020,(81200) Medical Surgical Supplies & Equipment,(id:42422) Transplant Renal and Urology,NXSTAGE MEDICAL UK LIMITED,id:12723504   ,1538.59
Department of Health,Guys and St Thomas NHS Foundation Trust,10/01/2020,(81200) Medical Surgical Supplies & Equipment,(id:42422) Transplant Renal and Urology,NXSTAGE MEDICAL UK LIMITED,id:12729136   ,1629.36
Department of Health,Guys and St Thomas NHS Foundation Trust,17/01/2020,(81200) Medical Surgical Supplies & Equipment,(id:42422) Transplant Renal and Urology,NXSTAGE MEDICAL UK LIMITED,id:12743026   , 893.40
Department of Health,Guys and St Thomas NHS Foundation Trust,24/01/2020,(81200) Medical Surgical Supplies & Equipment,(id:42422) Transplant Renal and Urology,NXSTAGE MEDICAL UK LIMITED,id:12757499   , 590.00
Department of Health,Guys and St Thomas NHS Foundation Trust,30/01/2020,(82800) Bedding & Linen,(id:42422) Transplant Renal and Urology,NHS SUPPLY CHAIN (MAIDSTONE),id:12732483   ,  24.77
Department of Health,Guys and St Thomas NHS Foundation Trust,03/01/2020,(81200) Medical Surgical Supplies & Equipment,(id:42421) Transplant Renal and Urology,BAXTER HEALTHCARE LTD,id:12611824   , 508.03
Department of Health,Guys and St Thomas NHS Foundation Trust,03/01/2020,(81200) Medical Surgical Supplies & Equipment,(id:42421) Transplant Renal and Urology,BAXTER HEALTHCARE LTD,id:12675359   , 717.61
Department of Health,Guys and St Thomas NHS Foundation Trust,03/01/2020,(81200) Medical Surgical Supplies & Equipment,(id:42421) Transplant Renal and Urology,BAXTER HEALTHCARE LTD,id:12611828   , 984.17
Department of Health,Guys and St Thomas NHS Foundation Trust,17/01/2020,(81200) Medical Surgical Supplies & Equipment,(id:42421) Transplant Renal and Urology,NHS SUPPLY CHAIN (MAIDSTONE),id:12723603 ,  79.26
Department of Health,Guys and St Thomas NHS Foundation Trust,20/01/2020,(84600) Establishment,(id:2502419) Womens Services,GSTT PROCUREMENT CARD,id:12757384   ,1082.06
Department of Health,Guys and St Thomas NHS Foundation Trust,03/01/2020,(83400) Office Equipment,(id:42518) Womens Services,NHS SUPPLY CHAIN (MAIDSTONE),id:12694241,   9.44
Department of Health,Guys and St Thomas NHS Foundation Trust,30/01/2020,(50562) Qualified Nursing Staff,(id:42518) Womens Services,GLOBE LOCUMS LTD,id:12779099, 593.40
Department of Health,Guys and St Thomas NHS Foundation Trust,03/01/2020,(81200) Medical Surgical Supplies & Equipment,(id:42518) Womens Services,WELCH ALLYN UK LTD,id:12721376    ,1770.00
Department of Health,Guys and St Thomas NHS Foundation Trust,24/01/2020,(55072) Admin & Clerical,(id:42517) Womens Services,VENN GROUP LTD,id:12759097    ,1316.14
Department of Health,Guys and St Thomas NHS Foundation Trust,17/01/2020,(89270) Establishment,(id:42517) Womens Services,ALTRUI LTD,id:12744225 ,2450.00
Department of Health,Guys and St Thomas NHS Foundation Trust,30/01/2020,(89270) Establishment,(id:42517) Womens Services,YULIYA KOPEIKA,id:12777019  ,4470.00
Department of Health,Guys and St Thomas NHS Foundation Trust,24/01/2020,(81200) Medical Surgical Supplies & Equipment,(id:42517) Womens Services,THERMO ELECTRON MANUFACTURING LTD/THERMO FISHER SCIENTIFIC,id:12717336    , 679.96
Department of Health,Guys and St Thomas NHS Foundation Trust,03/01/2020,(81700) Lab Equipment Purchase,(id:42517) Womens Services,VITROLIFE LTD,id:12723531    , 886.56
Department of Health,Guys and St Thomas NHS Foundation Trust,30/01/2020,(81700) Lab Equipment Purchase,(id:42517) Womens Services,ENBLOC LTD,id:12733301  ,7440.00
Department of Health,Guys and St Thomas NHS Foundation Trust,30/01/2020,(84600) Establishment,(id:42514) Womens Services,CLARITY TRAVEL MANAGEMENT,id:12776401 , 307.98
Department of Health,Guys and St Thomas NHS Foundation Trust,30/01/2020,(81200) Medical Surgical Supplies & Equipment,(id:42513) Womens Services,NHS SUPPLY CHAIN (MAIDSTONE),id:12732483    , 560.38
Department of Health,Guys and St Thomas NHS Foundation Trust,17/01/2020,(82800) Bedding & Linen,(id:42513) Womens Services,NHS SUPPLY CHAIN (MAIDSTONE),id:12723603 ,  44.64
Department of Health,Guys and St Thomas NHS Foundation Trust,30/01/2020,(82800) Bedding & Linen,(id:42513) Womens Services,NHS SUPPLY CHAIN (MAIDSTONE),id:12732483 ,  44.64
Department of Health,Guys and St Thomas NHS Foundation Trust,03/01/2020,(81225) Medical Surgical Supplies & Equipment,(id:42513) Womens Services,NHS SUPPLY CHAIN (MAIDSTONE),id:12706389    ,  22.92
Department of Health,Guys and St Thomas NHS Foundation Trust,17/01/2020,(82800) Bedding & Linen,(id:42510) Womens Services,NHS SUPPLY CHAIN (MAIDSTONE),id:12723603 ,  16.85
Department of Health,Guys and St Thomas NHS Foundation Trust,03/01/2020,(81100) Dressings,(id:42510) Womens Services,NHS SUPPLY CHAIN (MAIDSTONE),id:12694241  ,   4.67
Department of Health,Guys and St Thomas NHS Foundation Trust,17/01/2020,(81200) Medical Surgical Supplies & Equipment,(id:42510) Womens Services,NHS SUPPLY CHAIN (MAIDSTONE),id:12723603    , 140.84
Department of Health,Guys and St Thomas NHS Foundation Trust,30/01/2020,(81200) Medical Surgical Supplies & Equipment,(id:42510) Womens Services,NHS SUPPLY CHAIN (MAIDSTONE),id:12732483    , 227.46
Department of Health,Guys and St Thomas NHS Foundation Trust,30/01/2020,(81700) Lab Equipment Purchase,(id:42510) Womens Services,NHS SUPPLY CHAIN (MAIDSTONE),id:12732483    ,  11.67
Department of Health,Guys and St Thomas NHS Foundation Trust,03/01/2020,(81225) Medical Surgical Supplies & Equipment,(id:42510) Womens Services,NHS SUPPLY CHAIN (MAIDSTONE),id:12694241    ,  13.46
Department of Health,Guys and St Thomas NHS Foundation Trust,10/01/2020,(50522) Unqualified Nursing Staff,(id:42509) Womens Services,GLOBE LOCUMS LTD,id:12736468   , 231.61
Department of Health,Guys and St Thomas NHS Foundation Trust,03/01/2020,(81200) Medical Surgical Supplies & Equipment,(id:42509) Womens Services,SQUADRON MEDICAL LTD,id:12712846  , 119.81
Department of Health,Guys and St Thomas NHS Foundation Trust,17/01/2020,(81200) Medical Surgical Supplies & Equipment,(id:42509) Womens Services,POLAR SPEED DISTRIBUTION LTD,id:12741035    ,8000.00
Department of Health,Guys and St Thomas NHS Foundation Trust,24/01/2020,(81200) Medical Surgical Supplies & Equipment,(id:42509) Womens Services,SQUADRON MEDICAL LTD,id:12737147  , 129.60
Department of Health,Guys and St Thomas NHS Foundation Trust,10/01/2020,(81200) Medical Surgical Supplies & Equipment,(id:42509) Womens Services,SQUADRON MEDICAL LTD,id:12717672  ,  30.00
Department of Health,Guys and St Thomas NHS Foundation Trust,30/01/2020,(81200) Medical Surgical Supplies & Equipment,(id:42509) Womens Services,SQUADRON MEDICAL LTD,id:12742240  , 437.64
Department of Health,Guys and St Thomas NHS Foundation Trust,03/01/2020,(83400) Office Equipment,(id:42508) Womens Services,NHS SUPPLY CHAIN (MAIDSTONE),id:12706389,  12.64
Department of Health,Guys and St Thomas NHS Foundation Trust,17/01/2020,(81400) Medical Surgical Supplies & Equipment,(id:42506) Womens Services,NHS SUPPLY CHAIN (MAIDSTONE),id:12723603    ,  32.40
Department of Health,Guys and St Thomas NHS Foundation Trust,17/01/2020,(83400) Office Equipment,(id:42506) Womens Services,NHS SUPPLY CHAIN (MAIDSTONE),id:12723603, 213.67
Department of Health,Guys and St Thomas NHS Foundation Trust,17/01/2020,(81100) Dressings,(id:42506) Womens Services,NHS SUPPLY CHAIN (MAIDSTONE),id:12723603  ,  68.52
Department of Health,Guys and St Thomas NHS Foundation Trust,17/01/2020,(83400) Office Equipment,(id:42486) Womens Services,NHS SUPPLY CHAIN (MAIDSTONE),id:12723603,  44.04
Department of Health,Guys and St Thomas NHS Foundation Trust,10/01/2020,(81900) Lab Equipment Purchase,(id:42486) Womens Services,VIAPATH SERVICES LLP,id:12724301  ,2433.32
Department of Health,Guys and St Thomas NHS Foundation Trust,03/01/2020,(83400) Office Equipment,(id:42488) Womens Services,NHS SUPPLY CHAIN (MAIDSTONE),id:12694241,  34.06
Department of Health,Guys and St Thomas NHS Foundation Trust,10/01/2020,(50562) Qualified Nursing Staff,(id:42503) Womens Services,CARE PROVIDERS HEALTHCARE,id:12736425 , 421.20
Department of Health,Guys and St Thomas NHS Foundation Trust,30/01/2020,(82000) Provisions & Kitchens,(id:42497) Womens Services,NHS SUPPLY CHAIN (MAIDSTONE),id:12732483,   9.22
Department of Health,Guys and St Thomas NHS Foundation Trust,03/01/2020,(83400) Office Equipment,(id:42496) Womens Services,NHS SUPPLY CHAIN (MAIDSTONE),id:12694241,  51.07
Department of Health,Guys and St Thomas NHS Foundation Trust,03/01/2020,(82800) Bedding & Linen,(id:42496) Womens Services,NHS SUPPLY CHAIN (MAIDSTONE),id:12706389 ,  10.66
Department of Health,Guys and St Thomas NHS Foundation Trust,03/01/2020,(81100) Dressings,(id:42496) Womens Services,NHS SUPPLY CHAIN (MAIDSTONE),id:12706389  ,   5.42
Department of Health,Guys and St Thomas NHS Foundation Trust,30/01/2020,(81100) Dressings,(id:42496) Womens Services,NHS SUPPLY CHAIN (MAIDSTONE),id:12732483  ,  11.12
Department of Health,Guys and St Thomas NHS Foundation Trust,24/01/2020,(81000) Surgical Appliances,(id:42495) Womens Services,MEDI UK LTD,id:12760277    ,  52.67
Department of Health,Guys and St Thomas NHS Foundation Trust,24/01/2020,(81000) Surgical Appliances,(id:42495) Womens Services,MEDI UK LTD,id:12760399    , 172.62
Department of Health,Guys and St Thomas NHS Foundation Trust,24/01/2020,(81000) Surgical Appliances,(id:42495) Womens Services,TALAR MADE ORTHOTICS LTD,id:12757309 ,1176.00
Department of Health,Guys and St Thomas NHS Foundation Trust,17/01/2020,(83400) Office Equipment,(id:42493) Womens Services,NHS SUPPLY CHAIN (MAIDSTONE),id:12723603, 105.75
Department of Health,Guys and St Thomas NHS Foundation Trust,17/01/2020,(50562) Qualified Nursing Staff,(id:42493) Womens Services,MSI GROUP LTD,id:12749279   , 421.02
Department of Health,Guys and St Thomas NHS Foundation Trust,03/01/2020,(82600) Uniforms & Clothing,(id:42492) Womens Services,NHS SUPPLY CHAIN (MAIDSTONE),id:12694241  , 140.19
Department of Health,Guys and St Thomas NHS Foundation Trust,03/01/2020,(83400) Office Equipment,(id:42492) Womens Services,NHS SUPPLY CHAIN (MAIDSTONE),id:12694241,1126.84
Department of Health,Guys and St Thomas NHS Foundation Trust,17/01/2020,(81100) Dressings,(id:42492) Womens Services,NHS SUPPLY CHAIN (MAIDSTONE),id:12723603  ,1024.02
Department of Health,Guys and St Thomas NHS Foundation Trust,03/01/2020,(81200) Medical Surgical Supplies & Equipment,(id:42492) Womens Services,COOK UK LTD,id:12712984 ,1622.88
Department of Health,Guys and St Thomas NHS Foundation Trust,03/01/2020,(81275) Medical Surgical Supplies & Equipment,(id:42492) Womens Services,NHS SUPPLY CHAIN (MAIDSTONE),id:12694241    ,  11.86
Department of Health,Guys and St Thomas NHS Foundation Trust,17/01/2020,(82600) Uniforms & Clothing,(id:42491) Womens Services,NHS SUPPLY CHAIN (MAIDSTONE),id:12723603  ,   4.63
Department of Health,Guys and St Thomas NHS Foundation Trust,03/01/2020,(83400) Office Equipment,(id:42491) Womens Services,NHS SUPPLY CHAIN (MAIDSTONE),id:12706389, 168.13
Department of Health,Guys and St Thomas NHS Foundation Trust,17/01/2020,(81200) Medical Surgical Supplies & Equipment,(id:42491) Womens Services,NHS SUPPLY CHAIN (MAIDSTONE),id:12723603    , 679.99
Department of Health,Guys and St Thomas NHS Foundation Trust,24/01/2020,(89640) Non-Healthcare from NHS Trusts,(id:42504) Womens Services,MAIDSTONE AND TUNBRIDGE WELLS NHS TRUST,id:11687813, 938.39
Department of Health,Guys and St Thomas NHS Foundation Trust,30/01/2020,(89640) Non-Healthcare from NHS Trusts,(id:42504) Womens Services,HOUNSLOW AND RICHMOND COMMUNITY HEALTHCARE NHS TRUST,id:10505291  ,4136.00
Department of Health,Guys and St Thomas NHS Foundation Trust,03/01/2020,(81200) Medical Surgical Supplies & Equipment,(id:42037) Dental Services,NHS SUPPLY CHAIN (MAIDSTONE),id:12694241    , 827.88
Department of Health,Guys and St Thomas NHS Foundation Trust,03/01/2020,(81200) Medical Surgical Supplies & Equipment,(id:42037) Dental Services,HENRY SCHEIN,id:12724235, 751.01
Department of Health,Guys and St Thomas NHS Foundation Trust,03/01/2020,(81200) Medical Surgical Supplies & Equipment,(id:42037) Dental Services,NHS SUPPLY CHAIN (MAIDSTONE),id:12706389    , 843.01
Department of Health,Guys and St Thomas NHS Foundation Trust,03/01/2020,(81200) Medical Surgical Supplies & Equipment,(id:42037) Dental Services,HENRY SCHEIN,id:12719106, 889.69
Department of Health,Guys and St Thomas NHS Foundation Trust,03/01/2020,(81200) Medical Surgical Supplies & Equipment,(id:42037) Dental Services,QED - QUALITY ENDODONTIC DISTRIBUTORS LTD,id:12727676 , 802.92
Department of Health,Guys and St Thomas NHS Foundation Trust,10/01/2020,(81200) Medical Surgical Supplies & Equipment,(id:42037) Dental Services,HENRY SCHEIN,id:12735959, 863.12
Department of Health,Guys and St Thomas NHS Foundation Trust,10/01/2020,(81200) Medical Surgical Supplies & Equipment,(id:42037) Dental Services,DENTSPLY IH LTD,id:12732740  ,2028.97
Department of Health,Guys and St Thomas NHS Foundation Trust,30/01/2020,(81200) Medical Surgical Supplies & Equipment,(id:42037) Dental Services,3M UNITEK,id:12733696   , 988.68
Department of Health,Guys and St Thomas NHS Foundation Trust,03/01/2020,(82600) Uniforms & Clothing,(id:42037) Dental Services,NHS SUPPLY CHAIN (MAIDSTONE),id:12706389  ,  41.04
Department of Health,Guys and St Thomas NHS Foundation Trust,03/01/2020,(82600) Uniforms & Clothing,(id:42037) Dental Services,NHS SUPPLY CHAIN (MAIDSTONE),id:12694241  ,  61.56
Department of Health,Guys and St Thomas NHS Foundation Trust,03/01/2020,(83400) Office Equipment,(id:42037) Dental Services,NHS SUPPLY CHAIN (MAIDSTONE),id:12694241, 203.11
Department of Health,Guys and St Thomas NHS Foundation Trust,17/01/2020,(81200) Medical Surgical Supplies & Equipment,(id:42007) Dental Services,NHS SUPPLY CHAIN (MAIDSTONE),id:12723603    ,1045.56
Department of Health,Guys and St Thomas NHS Foundation Trust,30/01/2020,(81200) Medical Surgical Supplies & Equipment,(id:42007) Dental Services,HENRY SCHEIN,id:12775866, 941.06
Department of Health,Guys and St Thomas NHS Foundation Trust,03/01/2020,(81200) Medical Surgical Supplies & Equipment,(id:42007) Dental Services,NHS SUPPLY CHAIN (MAIDSTONE),id:12706389    ,3939.35
Department of Health,Guys and St Thomas NHS Foundation Trust,17/01/2020,(81200) Medical Surgical Supplies & Equipment,(id:42005) Dental Services,NHS SUPPLY CHAIN (MAIDSTONE),id:12723603    , 316.44
Department of Health,Guys and St Thomas NHS Foundation Trust,03/01/2020,(81200) Medical Surgical Supplies & Equipment,(id:42027) Dental Services,NHS SUPPLY CHAIN (MAIDSTONE),id:12694241    ,  54.00
Department of Health,Guys and St Thomas NHS Foundation Trust,03/01/2020,(81200) Medical Surgical Supplies & Equipment,(id:42028) Dental Services,HENRY SCHEIN,id:12703715, 511.81
Department of Health,Guys and St Thomas NHS Foundation Trust,10/01/2020,(81200) Medical Surgical Supplies & Equipment,(id:42028) Dental Services,HENRY SCHEIN,id:12723457, 716.06
Department of Health,Guys and St Thomas NHS Foundation Trust,10/01/2020,(81200) Medical Surgical Supplies & Equipment,(id:42016) Dental Services,DENTSPLY IH LTD,id:12732676  , 585.90
Department of Health,Guys and St Thomas NHS Foundation Trust,17/01/2020,(81200) Medical Surgical Supplies & Equipment,(id:42016) Dental Services,DENTSPLY IH LTD,id:12750863  ,1569.61
Department of Health,Guys and St Thomas NHS Foundation Trust,03/01/2020,(81200) Medical Surgical Supplies & Equipment,(id:42016) Dental Services,NOBEL BIOCARE UK LTD,id:12703677  ,1776.84
Department of Health,Guys and St Thomas NHS Foundation Trust,24/01/2020,(81200) Medical Surgical Supplies & Equipment,(id:42016) Dental Services,DENTSPLY IH LTD,id:12764268  ,1207.80
Department of Health,Guys and St Thomas NHS Foundation Trust,24/01/2020,(81200) Medical Surgical Supplies & Equipment,(id:42016) Dental Services,DENTSPLY IH LTD,id:12764277  ,1305.00
Department of Health,Guys and St Thomas NHS Foundation Trust,24/01/2020,(81200) Medical Surgical Supplies & Equipment,(id:42016) Dental Services,DENTSPLY IH LTD,id:12764275  ,9289.40
Department of Health,Guys and St Thomas NHS Foundation Trust,30/01/2020,(50343) Other Medical Grades,(id:42022) Dental Services,KINGS COLLEGE LONDON:03529700,id:12442095, 191.58
Department of Health,Guys and St Thomas NHS Foundation Trust,30/01/2020,(50200) Consultants,(id:42022) Dental Services,KINGS COLLEGE LONDON:03529700,id:12442095    ,2748.86
Department of Health,Guys and St Thomas NHS Foundation Trust,17/01/2020,(50542) Unqualified Nursing Staff,(id:1885419) Dental Services,GENEVA HEALTH INTERNATIONAL LIMITED,id:12746599  , 462.40
Department of Health,Guys and St Thomas NHS Foundation Trust,24/01/2020,(50542) Unqualified Nursing Staff,(id:1885419) Dental Services,HAYS HEALTHCARE LTD,id:12765235   , 466.65
Department of Health,Guys and St Thomas NHS Foundation Trust,24/01/2020,(50542) Unqualified Nursing Staff,(id:1885419) Dental Services,MSI GROUP LTD,id:12763511    , 489.15
Department of Health,Guys and St Thomas NHS Foundation Trust,03/01/2020,(82600) Uniforms & Clothing,(id:42014) Dental Services,NHS SUPPLY CHAIN (MAIDSTONE),id:12694241  ,  18.53
Department of Health,Guys and St Thomas NHS Foundation Trust,30/01/2020,(50203) Consultants,(id:42014) Dental Services,KINGS COLLEGE LONDON:03529700,id:12442095    ,4075.56
Department of Health,Guys and St Thomas NHS Foundation Trust,03/01/2020,(81700) Lab Equipment Purchase,(id:42014) Dental Services,NHS SUPPLY CHAIN (MAIDSTONE),id:12694241    ,   3.10
Department of Health,Guys and St Thomas NHS Foundation Trust,30/01/2020,(84600) Establishment,(id:42014) Dental Services,PLANMECA UK LTD (FORMERLY PLANDENT LTD),id:12780590  , 552.04
Department of Health,Guys and St Thomas NHS Foundation Trust,10/01/2020,(81200) Medical Surgical Supplies & Equipment,(id:41994) Dental Services,HENRY SCHEIN,id:12735768,2887.20
Department of Health,Guys and St Thomas NHS Foundation Trust,30/01/2020,(50200) Consultants,(id:42035) Dental Services,KINGS COLLEGE LONDON:03529700,id:12442095    ,7477.87
Department of Health,Guys and St Thomas NHS Foundation Trust,03/01/2020,(81200) Medical Surgical Supplies & Equipment,(id:1634433) Dental Services,HENRY SCHEIN,id:12724871   , 832.55
Department of Health,Guys and St Thomas NHS Foundation Trust,03/01/2020,(81100) Dressings,(id:1634433) Dental Services,NHS SUPPLY CHAIN (MAIDSTONE),id:12706389,  44.99
Department of Health,Guys and St Thomas NHS Foundation Trust,03/01/2020,(83400) Office Equipment,(id:1634432) Dental Services,NHS SUPPLY CHAIN (MAIDSTONE),id:12694241   , 131.00
Department of Health,Guys and St Thomas NHS Foundation Trust,10/01/2020,(81200) Medical Surgical Supplies & Equipment,(id:1634432) Dental Services,HENRY SCHEIN,id:12732545   , 652.08
Department of Health,Guys and St Thomas NHS Foundation Trust,17/01/2020,(81200) Medical Surgical Supplies & Equipment,(id:1634432) Dental Services,HENRY SCHEIN,id:12742984   , 835.40
Department of Health,Guys and St Thomas NHS Foundation Trust,03/01/2020,(81200) Medical Surgical Supplies & Equipment,(id:1634432) Dental Services,HENRY SCHEIN,id:12705091   , 669.46
Department of Health,Guys and St Thomas NHS Foundation Trust,03/01/2020,(83400) Office Equipment,(id:1634429) Dental Services,NHS SUPPLY CHAIN (MAIDSTONE),id:12706389   , 255.36
Department of Health,Guys and St Thomas NHS Foundation Trust,03/01/2020,(81200) Medical Surgical Supplies & Equipment,(id:1634429) Dental Services,HENRY SCHEIN,id:12724919   , 961.20
Department of Health,Guys and St Thomas NHS Foundation Trust,03/01/2020,(81200) Medical Surgical Supplies & Equipment,(id:1634429) Dental Services,HENRY SCHEIN,id:12724298   , 902.34
Department of Health,Guys and St Thomas NHS Foundation Trust,03/01/2020,(81200) Medical Surgical Supplies & Equipment,(id:1634429) Dental Services,HENRY SCHEIN,id:12724909   , 937.15
Department of Health,Guys and St Thomas NHS Foundation Trust,03/01/2020,(81200) Medical Surgical Supplies & Equipment,(id:1634429) Dental Services,HENRY SCHEIN,id:12711561   ,2457.77
Department of Health,Guys and St Thomas NHS Foundation Trust,17/01/2020,(81200) Medical Surgical Supplies & Equipment,(id:1634429) Dental Services,HENRY SCHEIN,id:12743356   , 900.88
Department of Health,Guys and St Thomas NHS Foundation Trust,03/01/2020,(81200) Medical Surgical Supplies & Equipment,(id:42011) Dental Services,PLANMECA UK LTD (FORMERLY PLANDENT LTD),id:12723227   ,1914.53
Department of Health,Guys and St Thomas NHS Foundation Trust,10/01/2020,(81400) Medical Surgical Supplies & Equipment,(id:42011) Dental Services,KAVO DENTAL LTD,id:9617331   , 716.16
Department of Health,Guys and St Thomas NHS Foundation Trust,24/01/2020,(81700) Lab Equipment Purchase,(id:641456) Specialist Ambulatory Services,CHECKIT UK LTD T/A TUTELA MONITORING SYSTEMS,id:12667933  ,4617.60
Department of Health,Guys and St Thomas NHS Foundation Trust,17/01/2020,(81225) Medical Surgical Supplies & Equipment,(id:42193) Specialist Ambulatory Services,TALAR MADE ORTHOTICS LTD,id:12742641   , 593.04
Department of Health,Guys and St Thomas NHS Foundation Trust,24/01/2020,(81000) Surgical Appliances,(id:42193) Specialist Ambulatory Services,TALAR MADE ORTHOTICS LTD,id:12757246 ,  46.50
Department of Health,Guys and St Thomas NHS Foundation Trust,24/01/2020,(81000) Surgical Appliances,(id:42193) Specialist Ambulatory Services,TALAR MADE ORTHOTICS LTD,id:12757276 ,  49.20
Department of Health,Guys and St Thomas NHS Foundation Trust,03/01/2020,(82600) Uniforms & Clothing,(id:3989419) Specialist Ambulatory Services,TOFFELN (BRISTOL),id:12719357 ,1570.39
Department of Health,Guys and St Thomas NHS Foundation Trust,17/01/2020,(81200) Medical Surgical Supplies & Equipment,(id:3989419) Specialist Ambulatory Services,NHS SUPPLY CHAIN (MAIDSTONE),id:12723603  ,  57.60
Department of Health,Guys and St Thomas NHS Foundation Trust,03/01/2020,(81200) Medical Surgical Supplies & Equipment,(id:42684) Specialist Ambulatory Services,NHS SUPPLY CHAIN (MAIDSTONE),id:12706389    , 475.79
Department of Health,Guys and St Thomas NHS Foundation Trust,03/01/2020,(81200) Medical Surgical Supplies & Equipment,(id:42684) Specialist Ambulatory Services,TELEFLEX MEDICAL,id:12674992 ,3000.00
Department of Health,Guys and St Thomas NHS Foundation Trust,10/01/2020,(81275) Medical Surgical Supplies & Equipment,(id:42682) Specialist Ambulatory Services,OXOID LTD,id:12556626   , 542.40
Department of Health,Guys and St Thomas NHS Foundation Trust,30/01/2020,(89280) Other - Consultancy costs,(id:42682) Specialist Ambulatory Services,PUBLIC HEALTH ENGLAND,id:12777937   ,    10108.49
Department of Health,Guys and St Thomas NHS Foundation Trust,24/01/2020,(89595) Non-Healthcare from Foundation Trusts,(id:42354) Specialist Ambulatory Services,GREAT ORMOND STREET HOSPITAL FOR CHILDREN NHS FOUNDATION TRUST,id:12570078, 710.00
Department of Health,Guys and St Thomas NHS Foundation Trust,24/01/2020,(89595) Non-Healthcare from Foundation Trusts,(id:42354) Specialist Ambulatory Services,GREAT ORMOND STREET HOSPITAL FOR CHILDREN NHS FOUNDATION TRUST,id:12736822, 880.00
Department of Health,Guys and St Thomas NHS Foundation Trust,24/01/2020,(89595) Non-Healthcare from Foundation Trusts,(id:42354) Specialist Ambulatory Services,MANCHESTER UNIVERSITY NHS FOUNDATION TRUST,id:12736811, 921.00
Department of Health,Guys and St Thomas NHS Foundation Trust,24/01/2020,(89595) Non-Healthcare from Foundation Trusts,(id:42354) Specialist Ambulatory Services,OXFORD UNIVERSITY HOSPITALS NHS FOUNDATION TRUST,id:12761517    ,1020.00
Department of Health,Guys and St Thomas NHS Foundation Trust,30/01/2020,(83400) Office Equipment,(id:42091) Specialist Ambulatory Services,NHS SUPPLY CHAIN (MAIDSTONE),id:12732483,  28.82
Department of Health,Guys and St Thomas NHS Foundation Trust,17/01/2020,(81100) Dressings,(id:42097) Specialist Ambulatory Services,NHS SUPPLY CHAIN (MAIDSTONE),id:12723603  , 303.13
Department of Health,Guys and St Thomas NHS Foundation Trust,03/01/2020,(84500) Establishment,(id:42097) Specialist Ambulatory Services,CDP  PRINT MANAGEMENT,id:12718802, 462.00
Department of Health,Guys and St Thomas NHS Foundation Trust,03/01/2020,(81200) Medical Surgical Supplies & Equipment,(id:42097) Specialist Ambulatory Services,NHS SUPPLY CHAIN (MAIDSTONE),id:12694241    , 410.19
Department of Health,Guys and St Thomas NHS Foundation Trust,03/01/2020,(81200) Medical Surgical Supplies & Equipment,(id:42097) Specialist Ambulatory Services,NHS SUPPLY CHAIN (MAIDSTONE),id:12706389    , 235.98
Department of Health,Guys and St Thomas NHS Foundation Trust,17/01/2020,(81200) Medical Surgical Supplies & Equipment,(id:42097) Specialist Ambulatory Services,NHS SUPPLY CHAIN (MAIDSTONE),id:12723603    , 207.14
Department of Health,Guys and St Thomas NHS Foundation Trust,30/01/2020,(81200) Medical Surgical Supplies & Equipment,(id:42097) Specialist Ambulatory Services,SCHUCO INTERNATIONAL LTD,id:12765179   , 868.68
Department of Health,Guys and St Thomas NHS Foundation Trust,03/01/2020,(82000) Provisions & Kitchens,(id:42097) Specialist Ambulatory Services,NHS SUPPLY CHAIN (MAIDSTONE),id:12706389,   7.80
Department of Health,Guys and St Thomas NHS Foundation Trust,30/01/2020,(81100) Dressings,(id:42079) Specialist Ambulatory Services,NHS SUPPLY CHAIN (MAIDSTONE),id:12732483  ,  66.52
Department of Health,Guys and St Thomas NHS Foundation Trust,10/01/2020,(81275) Medical Surgical Supplies & Equipment,(id:42079) Specialist Ambulatory Services,THERAKOS (UK) LIMITED,id:12733222 ,    -1248.00
Department of Health,Guys and St Thomas NHS Foundation Trust,03/01/2020,(81275) Medical Surgical Supplies & Equipment,(id:42079) Specialist Ambulatory Services,THERAKOS (UK) LIMITED,id:12723445 ,    22464.00
Department of Health,Guys and St Thomas NHS Foundation Trust,17/01/2020,(83500) Furniture & Fittings,(id:42089) Specialist Ambulatory Services,NHS SUPPLY CHAIN (MAIDSTONE),id:12723603 , 237.60
Department of Health,Guys and St Thomas NHS Foundation Trust,03/01/2020,(81200) Medical Surgical Supplies & Equipment,(id:391417) Specialist Ambulatory Services,NHS SUPPLY CHAIN (MAIDSTONE),id:12706389   ,   9.62
Department of Health,Guys and St Thomas NHS Foundation Trust,17/01/2020,(81200) Medical Surgical Supplies & Equipment,(id:391417) Specialist Ambulatory Services,NHS SUPPLY CHAIN (MAIDSTONE),id:12723603   ,   9.62
Department of Health,Guys and St Thomas NHS Foundation Trust,03/01/2020,(82600) Uniforms & Clothing,(id:42064) Specialist Ambulatory Services,NHS SUPPLY CHAIN (MAIDSTONE),id:12694241  ,  20.77
Department of Health,Guys and St Thomas NHS Foundation Trust,20/01/2020,(81700) Lab Equipment Purchase,(id:42061) Specialist Ambulatory Services,GSTT PROCUREMENT CARD,id:12757384 , 222.85
Department of Health,Guys and St Thomas NHS Foundation Trust,03/01/2020,(82800) Bedding & Linen,(id:42050) Specialist Ambulatory Services,NHS SUPPLY CHAIN (MAIDSTONE),id:12694241 ,  19.25
Department of Health,Guys and St Thomas NHS Foundation Trust,24/01/2020,(81900) Lab Equipment Purchase,(id:111406) Pathology SDU,VIAPATH SERVICES LLP,id:12480353   ,    13750.00
Department of Health,Guys and St Thomas NHS Foundation Trust,30/01/2020,(81900) Lab Equipment Purchase,(id:111406) Pathology SDU,VIAPATH ANALYTICS LLP,id:12229311  ,    11084.00
Department of Health,Guys and St Thomas NHS Foundation Trust,17/01/2020,(89600) Non-Healthcare from other NHS bodies,(id:42134) Pathology SDU,NHS BLOOD AND TRANSPLANT,id:12716940 ,1518.05
Department of Health,Guys and St Thomas NHS Foundation Trust,17/01/2020,(89600) Non-Healthcare from other NHS bodies,(id:42134) Pathology SDU,NHS BLOOD AND TRANSPLANT,id:12716946 ,1761.77
Department of Health,Guys and St Thomas NHS Foundation Trust,30/01/2020,(89600) Non-Healthcare from other NHS bodies,(id:42134) Pathology SDU,NHS BLOOD AND TRANSPLANT,id:12761983 ,2154.85
Department of Health,Guys and St Thomas NHS Foundation Trust,30/01/2020,(89600) Non-Healthcare from other NHS bodies,(id:42134) Pathology SDU,NHS BLOOD AND TRANSPLANT,id:12761978 ,    31549.96
Department of Health,Guys and St Thomas NHS Foundation Trust,03/01/2020,(81200) Medical Surgical Supplies & Equipment,(id:581409) Pharmacy,NHS SUPPLY CHAIN (MAIDSTONE),id:12694241,1173.55
Department of Health,Guys and St Thomas NHS Foundation Trust,03/01/2020,(81200) Medical Surgical Supplies & Equipment,(id:581409) Pharmacy,NHS SUPPLY CHAIN (MAIDSTONE),id:12706389, 520.72
Department of Health,Guys and St Thomas NHS Foundation Trust,30/01/2020,(83400) Office Equipment,(id:581409) Pharmacy,AQUILANT DISTRIBUTION,id:12761657   , 922.04
Department of Health,Guys and St Thomas NHS Foundation Trust,03/01/2020,(83400) Office Equipment,(id:581409) Pharmacy,AQUILANT DISTRIBUTION,id:12724927   ,1070.64
Department of Health,Guys and St Thomas NHS Foundation Trust,27/01/2020,(54052) Technical Officers,(id:581409) Pharmacy,PRICEWATERHOUSECOOPERS LLP,id:12775803 ,2334.33
Department of Health,Guys and St Thomas NHS Foundation Trust,10/01/2020,(54052) Technical Officers,(id:581409) Pharmacy,TFS HEALTHCARE,id:12736628   , 800.86
Department of Health,Guys and St Thomas NHS Foundation Trust,10/01/2020,(53682) Pharmacists,(id:581409) Pharmacy,TFS HEALTHCARE,id:12736417,1146.29
Department of Health,Guys and St Thomas NHS Foundation Trust,10/01/2020,(53682) Pharmacists,(id:581409) Pharmacy,TFS HEALTHCARE,id:12736311,1953.90
Department of Health,Guys and St Thomas NHS Foundation Trust,24/01/2020,(80010) Drug Costs,(id:42159) Pharmacy,UK PACKAGING SUPPLIES LTD,id:12758948 ,1332.79
Department of Health,Guys and St Thomas NHS Foundation Trust,17/01/2020,(81200) Medical Surgical Supplies & Equipment,(id:42159) Pharmacy,SAM CASES LTD,id:12748598 ,2531.40
Department of Health,Guys and St Thomas NHS Foundation Trust,03/01/2020,(81200) Medical Surgical Supplies & Equipment,(id:42159) Pharmacy,NHS SUPPLY CHAIN (MAIDSTONE),id:12706389 , 175.07
Department of Health,Guys and St Thomas NHS Foundation Trust,10/01/2020,(81200) Medical Surgical Supplies & Equipment,(id:42159) Pharmacy,ADELPHI (TUBES) LTD,id:12723513,4901.70
Department of Health,Guys and St Thomas NHS Foundation Trust,10/01/2020,(81200) Medical Surgical Supplies & Equipment,(id:42159) Pharmacy,DENNY BROS LTD,id:12698299,1423.32
Department of Health,Guys and St Thomas NHS Foundation Trust,10/01/2020,(81200) Medical Surgical Supplies & Equipment,(id:42159) Pharmacy,DENNY BROS LTD,id:12696844,1499.60
Department of Health,Guys and St Thomas NHS Foundation Trust,30/01/2020,(89000) Other - Training courses and conferences,(id:42159) Pharmacy,MHRA,id:12775985  , 595.00
Department of Health,Guys and St Thomas NHS Foundation Trust,30/01/2020,(81700) Lab Equipment Purchase,(id:42159) Pharmacy,NHS SUPPLY CHAIN (MAIDSTONE),id:12732483 , 321.30
Department of Health,Guys and St Thomas NHS Foundation Trust,30/01/2020,(84655) Establishment,(id:42178) Medical Specialties,LANGUAGE CONNECT,id:12765329 ,    41863.13
Department of Health,Guys and St Thomas NHS Foundation Trust,24/01/2020,(81000) Surgical Appliances,(id:42171) Medical Specialties,TALAR MADE ORTHOTICS LTD,id:12757083  ,  46.50
Department of Health,Guys and St Thomas NHS Foundation Trust,17/01/2020,(83400) Office Equipment,(id:42217) Medical Specialties,NHS SUPPLY CHAIN (MAIDSTONE),id:12723603 ,  28.20
Department of Health,Guys and St Thomas NHS Foundation Trust,03/01/2020,(81100) Dressings,(id:42217) Medical Specialties,NHS SUPPLY CHAIN (MAIDSTONE),id:12694241   , 293.34
Department of Health,Guys and St Thomas NHS Foundation Trust,03/01/2020,(81200) Medical Surgical Supplies & Equipment,(id:42217) Medical Specialties,NHS SUPPLY CHAIN (MAIDSTONE),id:12706389, 992.46
Department of Health,Guys and St Thomas NHS Foundation Trust,03/01/2020,(83400) Office Equipment,(id:42251) Medical Specialties,NHS SUPPLY CHAIN (MAIDSTONE),id:12694241 ,   4.85
Department of Health,Guys and St Thomas NHS Foundation Trust,24/01/2020,(86300) Healthcare from non-NHS bodies,(id:42224) Medical Specialties,L DOLLAY OPTOMETRIST LTD,id:12761878 ,3042.00
Department of Health,Guys and St Thomas NHS Foundation Trust,17/01/2020,(50200) Consultants,(id:42223) Medical Specialties,KINGS COLLEGE LONDON:03529700,id:12593539,7440.67
Department of Health,Guys and St Thomas NHS Foundation Trust,03/01/2020,(81200) Medical Surgical Supplies & Equipment,(id:42223) Medical Specialties,NHS SUPPLY CHAIN (MAIDSTONE),id:12694241, 616.86
Department of Health,Guys and St Thomas NHS Foundation Trust,30/01/2020,(81200) Medical Surgical Supplies & Equipment,(id:42223) Medical Specialties,CARL ZEISS LTD,id:12775784    ,1392.97
Department of Health,Guys and St Thomas NHS Foundation Trust,03/01/2020,(83400) Office Equipment,(id:42223) Medical Specialties,NHS SUPPLY CHAIN (MAIDSTONE),id:12694241 ,   7.20
Department of Health,Guys and St Thomas NHS Foundation Trust,03/01/2020,(83640) IT Costs,(id:42223) Medical Specialties,AB EHR DIGITAL LTD,id:12673241    ,5000.00
Department of Health,Guys and St Thomas NHS Foundation Trust,10/01/2020,(89600) Non-Healthcare from other NHS bodies,(id:42223) Medical Specialties,NHS BLOOD AND TRANSPLANT,id:12729822, 685.27
Department of Health,Guys and St Thomas NHS Foundation Trust,30/01/2020,(89600) Non-Healthcare from other NHS bodies,(id:42223) Medical Specialties,NHS BLOOD AND TRANSPLANT,id:12762006,1130.75
Department of Health,Guys and St Thomas NHS Foundation Trust,30/01/2020,(89600) Non-Healthcare from other NHS bodies,(id:42223) Medical Specialties,NHS BLOOD AND TRANSPLANT,id:12762001,1155.87
Department of Health,Guys and St Thomas NHS Foundation Trust,30/01/2020,(89600) Non-Healthcare from other NHS bodies,(id:42223) Medical Specialties,NHS BLOOD AND TRANSPLANT,id:12762004,1277.85
Department of Health,Guys and St Thomas NHS Foundation Trust,03/01/2020,(82700) Uniforms & Clothing,(id:42223) Medical Specialties,NHS SUPPLY CHAIN (MAIDSTONE),id:12706389   , 297.00
Department of Health,Guys and St Thomas NHS Foundation Trust,17/01/2020,(81200) Medical Surgical Supplies & Equipment,(id:42222) Medical Specialties,BEAVER-VISITEC INTERNATIONAL (SALES) LTD,id:12744116   ,1728.00
Department of Health,Guys and St Thomas NHS Foundation Trust,03/01/2020,(81200) Medical Surgical Supplies & Equipment,(id:42221) Medical Specialties,GLAUKOS UK LTD,id:12708204    ,4747.20
Department of Health,Guys and St Thomas NHS Foundation Trust,03/01/2020,(81200) Medical Surgical Supplies & Equipment,(id:42221) Medical Specialties,ALTOMED LTD,id:12702149  ,1319.40
Department of Health,Guys and St Thomas NHS Foundation Trust,24/01/2020,(81200) Medical Surgical Supplies & Equipment,(id:42221) Medical Specialties,JOHNSON & JOHNSON MEDICAL LTD,id:12736957    ,1962.09
Department of Health,Guys and St Thomas NHS Foundation Trust,24/01/2020,(81200) Medical Surgical Supplies & Equipment,(id:42221) Medical Specialties,SQUADRON MEDICAL LTD,id:12730549   ,3796.99
Department of Health,Guys and St Thomas NHS Foundation Trust,03/01/2020,(89270) Establishment,(id:590478) Medical Specialties,CROWN DALE MEDICAL CENTRE,id:12717021 ,1935.00
Department of Health,Guys and St Thomas NHS Foundation Trust,17/01/2020,(81100) Dressings,(id:42213) Medical Specialties,NHS SUPPLY CHAIN (MAIDSTONE),id:12723603   , 769.42
Department of Health,Guys and St Thomas NHS Foundation Trust,27/01/2020,(51062) Chiropodists,(id:42213) Medical Specialties,PRICEWATERHOUSECOOPERS LLP,id:12775803  ,1217.37
Department of Health,Guys and St Thomas NHS Foundation Trust,17/01/2020,(81200) Medical Surgical Supplies & Equipment,(id:42209) Medical Specialties,MEDTRONIC LTD,id:12704783, 173.52
Department of Health,Guys and St Thomas NHS Foundation Trust,17/01/2020,(81225) Medical Surgical Supplies & Equipment,(id:42209) Medical Specialties,TALAR MADE ORTHOTICS LTD,id:12742654    ,  20.40
Department of Health,Guys and St Thomas NHS Foundation Trust,24/01/2020,(81000) Surgical Appliances,(id:42209) Medical Specialties,TALAR MADE ORTHOTICS LTD,id:12756992  ,  22.90
Department of Health,Guys and St Thomas NHS Foundation Trust,24/01/2020,(81000) Surgical Appliances,(id:42209) Medical Specialties,TALAR MADE ORTHOTICS LTD,id:12757617  , 228.00
Department of Health,Guys and St Thomas NHS Foundation Trust,30/01/2020,(81000) Surgical Appliances,(id:42209) Medical Specialties,TALAR MADE ORTHOTICS LTD,id:12775215  , 570.00
Department of Health,Guys and St Thomas NHS Foundation Trust,10/01/2020,(81200) Medical Surgical Supplies & Equipment,(id:42208) Medical Specialties,DEXCOM UK,id:12729676    ,1044.00
Department of Health,Guys and St Thomas NHS Foundation Trust,17/01/2020,(81200) Medical Surgical Supplies & Equipment,(id:42208) Medical Specialties,MEDTRONIC LTD,id:12705032,1191.16
Department of Health,Guys and St Thomas NHS Foundation Trust,17/01/2020,(81200) Medical Surgical Supplies & Equipment,(id:42208) Medical Specialties,MEDTRONIC LTD,id:12704560, 506.40
Department of Health,Guys and St Thomas NHS Foundation Trust,24/01/2020,(81200) Medical Surgical Supplies & Equipment,(id:42208) Medical Specialties,MEDTRONIC LTD,id:12744027, 520.80
Department of Health,Guys and St Thomas NHS Foundation Trust,03/01/2020,(81200) Medical Surgical Supplies & Equipment,(id:42208) Medical Specialties,DEXCOM UK,id:12725062    , 793.50
Department of Health,Guys and St Thomas NHS Foundation Trust,03/01/2020,(81200) Medical Surgical Supplies & Equipment,(id:42208) Medical Specialties,MEDTRONIC LTD,id:12723916, 630.00
Department of Health,Guys and St Thomas NHS Foundation Trust,03/01/2020,(81200) Medical Surgical Supplies & Equipment,(id:42208) Medical Specialties,DEXCOM UK,id:12725079    ,2122.50
Department of Health,Guys and St Thomas NHS Foundation Trust,17/01/2020,(81200) Medical Surgical Supplies & Equipment,(id:42208) Medical Specialties,INSULET INTERNATIONAL LTD,id:12728516   , 712.08
Department of Health,Guys and St Thomas NHS Foundation Trust,17/01/2020,(81200) Medical Surgical Supplies & Equipment,(id:42208) Medical Specialties,INSULET INTERNATIONAL LTD,id:12734477   , 712.08
Department of Health,Guys and St Thomas NHS Foundation Trust,17/01/2020,(81200) Medical Surgical Supplies & Equipment,(id:42208) Medical Specialties,MEDTRONIC LTD,id:12700898, 847.40
Department of Health,Guys and St Thomas NHS Foundation Trust,17/01/2020,(81200) Medical Surgical Supplies & Equipment,(id:42208) Medical Specialties,ROCHE DIAGNOSTICS LTD,id:12698397  , 534.04
Department of Health,Guys and St Thomas NHS Foundation Trust,17/01/2020,(81200) Medical Surgical Supplies & Equipment,(id:42208) Medical Specialties,ROCHE DIAGNOSTICS LTD,id:12711420  , 536.11
Department of Health,Guys and St Thomas NHS Foundation Trust,17/01/2020,(81200) Medical Surgical Supplies & Equipment,(id:42208) Medical Specialties,MEDTRONIC LTD,id:12719321, 572.40
Department of Health,Guys and St Thomas NHS Foundation Trust,17/01/2020,(81200) Medical Surgical Supplies & Equipment,(id:42208) Medical Specialties,MEDTRONIC LTD,id:12704555, 630.00
Department of Health,Guys and St Thomas NHS Foundation Trust,17/01/2020,(81200) Medical Surgical Supplies & Equipment,(id:42208) Medical Specialties,MEDTRONIC LTD,id:12742993, 702.00
Department of Health,Guys and St Thomas NHS Foundation Trust,17/01/2020,(81200) Medical Surgical Supplies & Equipment,(id:42208) Medical Specialties,INSULET INTERNATIONAL LTD,id:12708046   , 712.08
Department of Health,Guys and St Thomas NHS Foundation Trust,17/01/2020,(81200) Medical Surgical Supplies & Equipment,(id:42208) Medical Specialties,INSULET INTERNATIONAL LTD,id:12708164   , 712.08
Department of Health,Guys and St Thomas NHS Foundation Trust,17/01/2020,(81200) Medical Surgical Supplies & Equipment,(id:42208) Medical Specialties,INSULET INTERNATIONAL LTD,id:12734937   , 712.08
Department of Health,Guys and St Thomas NHS Foundation Trust,17/01/2020,(81200) Medical Surgical Supplies & Equipment,(id:42208) Medical Specialties,INSULET INTERNATIONAL LTD,id:12724768   , 712.08
Department of Health,Guys and St Thomas NHS Foundation Trust,03/01/2020,(81700) Lab Equipment Purchase,(id:42208) Medical Specialties,NHS SUPPLY CHAIN (MAIDSTONE),id:12706389,  98.64
Department of Health,Guys and St Thomas NHS Foundation Trust,30/01/2020,(81200) Medical Surgical Supplies & Equipment,(id:42206) Medical Specialties,NHS SUPPLY CHAIN (MAIDSTONE),id:12732483,1800.00
Department of Health,Guys and St Thomas NHS Foundation Trust,24/01/2020,(80010) Drug Costs,(id:42204) Medical Specialties,UME DIAGNOSTICS,id:12732550, 750.00
Department of Health,Guys and St Thomas NHS Foundation Trust,17/01/2020,(81200) Medical Surgical Supplies & Equipment,(id:42204) Medical Specialties,NHS SUPPLY CHAIN (MAIDSTONE),id:12723603, 139.92
Department of Health,Guys and St Thomas NHS Foundation Trust,17/01/2020,(89640) Non-Healthcare from NHS Trusts,(id:42202) Medical Specialties,BRIGHTON AND SUSSEX UNIVERSITY HOSPITALS NHS TRUST,id:12471686, 840.61
Department of Health,Guys and St Thomas NHS Foundation Trust,17/01/2020,(50552) Qualified Nursing Staff,(id:302405) Medical Specialties,CONTINENTAL NURSE LTD,id:12750981,1527.44
Department of Health,Guys and St Thomas NHS Foundation Trust,03/01/2020,(81200) Medical Surgical Supplies & Equipment,(id:42205) Medical Specialties,UNIMED ELECTRODE SUPPLIES,id:12723614   ,3869.40
Department of Health,Guys and St Thomas NHS Foundation Trust,03/01/2020,(89000) Other - Training courses and conferences,(id:42205) Medical Specialties,OPTIMA MEDICAL LTD,id:12711516  , 980.00
Department of Health,Guys and St Thomas NHS Foundation Trust,17/01/2020,(89000) Other - Training courses and conferences,(id:4440419) Medical Specialties,KINGS COLLEGE LONDON:03529700,id:12638008    ,5000.00
Department of Health,Guys and St Thomas NHS Foundation Trust,24/01/2020,(89270) Establishment,(id:508410) Medical Specialties,IMPERIAL COLLEGE CONSULTANTS LTD,id:12762904    ,    10541.50
Department of Health,Guys and St Thomas NHS Foundation Trust,03/01/2020,(50200) Consultants,(id:3235419) Medical Specialties,LEWISHAM AND GREENWICH NHS TRUST,id:12714957,1325.25
Department of Health,Guys and St Thomas NHS Foundation Trust,10/01/2020,(81200) Medical Surgical Supplies & Equipment,(id:41937) Medical Specialties,MEDTRONIC LTD,id:12732096, 668.40
Department of Health,Guys and St Thomas NHS Foundation Trust,10/01/2020,(81200) Medical Surgical Supplies & Equipment,(id:41937) Medical Specialties,ABBOTT MEDICAL UK LTD,id:12724822  ,    17700.00
Department of Health,Guys and St Thomas NHS Foundation Trust,30/01/2020,(81200) Medical Surgical Supplies & Equipment,(id:41937) Medical Specialties,ABBOTT MEDICAL UK LTD,id:12777354  ,   -11998.80
Department of Health,Guys and St Thomas NHS Foundation Trust,03/01/2020,(82800) Bedding & Linen,(id:41937) Medical Specialties,NHS SUPPLY CHAIN (MAIDSTONE),id:12694241  , 489.82
Department of Health,Guys and St Thomas NHS Foundation Trust,30/01/2020,(81225) Medical Surgical Supplies & Equipment,(id:41937) Medical Specialties,ENEURA (UK) LTD,id:12778865   ,1612.00
Department of Health,Guys and St Thomas NHS Foundation Trust,03/01/2020,(82000) Provisions & Kitchens,(id:41937) Medical Specialties,NHS SUPPLY CHAIN (MAIDSTONE),id:12694241 ,  51.29
Department of Health,Guys and St Thomas NHS Foundation Trust,03/01/2020,(81200) Medical Surgical Supplies & Equipment,(id:850419) TAP,SQUADRON MEDICAL LTD,id:12708629   , 534.53
Department of Health,Guys and St Thomas NHS Foundation Trust,30/01/2020,(81200) Medical Surgical Supplies & Equipment,(id:850419) TAP,NHS SUPPLY CHAIN (MAIDSTONE),id:12732483, 659.17
Department of Health,Guys and St Thomas NHS Foundation Trust,17/01/2020,(50562) Qualified Nursing Staff,(id:850419) TAP,PULSE HEALTHCARE LIMITED,id:12745663   , 250.66
Department of Health,Guys and St Thomas NHS Foundation Trust,17/01/2020,(81100) Dressings,(id:850419) TAP,NHS SUPPLY CHAIN (MAIDSTONE),id:12723603   ,  81.90
Department of Health,Guys and St Thomas NHS Foundation Trust,03/01/2020,(81100) Dressings,(id:850419) TAP,NHS SUPPLY CHAIN (MAIDSTONE),id:12694241   , 165.46
Department of Health,Guys and St Thomas NHS Foundation Trust,03/01/2020,(82600) Uniforms & Clothing,(id:850419) TAP,NHS SUPPLY CHAIN (MAIDSTONE),id:12694241   ,   4.53
Department of Health,Guys and St Thomas NHS Foundation Trust,10/01/2020,(81200) Medical Surgical Supplies & Equipment,(id:41897) TAP,SQUADRON MEDICAL LTD,id:12715483    , 357.79
Department of Health,Guys and St Thomas NHS Foundation Trust,10/01/2020,(81200) Medical Surgical Supplies & Equipment,(id:41897) TAP,ELIS UK LIMITED,id:12732521    ,  45.45
Department of Health,Guys and St Thomas NHS Foundation Trust,10/01/2020,(81200) Medical Surgical Supplies & Equipment,(id:41897) TAP,MEDTRONIC LTD,id:12491696 ,5319.60
Department of Health,Guys and St Thomas NHS Foundation Trust,17/01/2020,(81200) Medical Surgical Supplies & Equipment,(id:41897) TAP,NHS SUPPLY CHAIN (MAIDSTONE),id:12723603 , 690.52
Department of Health,Guys and St Thomas NHS Foundation Trust,30/01/2020,(81200) Medical Surgical Supplies & Equipment,(id:41897) TAP,SQUADRON MEDICAL LTD,id:12742276    , 552.62
Department of Health,Guys and St Thomas NHS Foundation Trust,03/01/2020,(81100) Dressings,(id:41897) TAP,NHS SUPPLY CHAIN (MAIDSTONE),id:12706389    , 679.13
Department of Health,Guys and St Thomas NHS Foundation Trust,17/01/2020,(81100) Dressings,(id:41897) TAP,NHS SUPPLY CHAIN (MAIDSTONE),id:12723603    , 406.52
Department of Health,Guys and St Thomas NHS Foundation Trust,03/01/2020,(81100) Dressings,(id:41897) TAP,ELIS UK LIMITED,id:12719726  , 654.51
Department of Health,Guys and St Thomas NHS Foundation Trust,30/01/2020,(81230) Medical Surgical Supplies & Equipment,(id:41897) TAP,NHS SUPPLY CHAIN (MAIDSTONE),id:12732483 ,  26.40
Department of Health,Guys and St Thomas NHS Foundation Trust,30/01/2020,(81225) Medical Surgical Supplies & Equipment,(id:41897) TAP,NHS SUPPLY CHAIN (MAIDSTONE),id:12732483 ,  77.26
Department of Health,Guys and St Thomas NHS Foundation Trust,03/01/2020,(81225) Medical Surgical Supplies & Equipment,(id:41897) TAP,NHS SUPPLY CHAIN (MAIDSTONE),id:12706389 , 181.44
Department of Health,Guys and St Thomas NHS Foundation Trust,03/01/2020,(82000) Provisions & Kitchens,(id:41897) TAP,NHS SUPPLY CHAIN (MAIDSTONE),id:12694241  ,  58.21
Department of Health,Guys and St Thomas NHS Foundation Trust,17/01/2020,(81100) Dressings,(id:41894) TAP,SQUADRON MEDICAL LTD,id:12725469  ,  58.39
Department of Health,Guys and St Thomas NHS Foundation Trust,03/01/2020,(82600) Uniforms & Clothing,(id:41894) TAP,SQUADRON MEDICAL LTD,id:12712844  ,  43.80
Department of Health,Guys and St Thomas NHS Foundation Trust,17/01/2020,(82600) Uniforms & Clothing,(id:41894) TAP,NHS SUPPLY CHAIN (MAIDSTONE),id:12723603    ,  30.08
Department of Health,Guys and St Thomas NHS Foundation Trust,10/01/2020,(82600) Uniforms & Clothing,(id:41894) TAP,SQUADRON MEDICAL LTD,id:12714364  ,  21.90
Department of Health,Guys and St Thomas NHS Foundation Trust,30/01/2020,(84600) Establishment,(id:41894) TAP,CLARITY TRAVEL MANAGEMENT,id:12776401   , 249.69
Department of Health,Guys and St Thomas NHS Foundation Trust,17/01/2020,(81200) Medical Surgical Supplies & Equipment,(id:41892) TAP,SQUADRON MEDICAL LTD,id:12717807    ,   2.09
Department of Health,Guys and St Thomas NHS Foundation Trust,03/01/2020,(83400) Office Equipment,(id:41892) TAP,NHS SUPPLY CHAIN (MAIDSTONE),id:12694241  ,   9.22
Department of Health,Guys and St Thomas NHS Foundation Trust,03/01/2020,(82800) Bedding & Linen,(id:41883) TAP,SQUADRON MEDICAL LTD,id:12702736 ,   8.38
Department of Health,Guys and St Thomas NHS Foundation Trust,03/01/2020,(81225) Medical Surgical Supplies & Equipment,(id:41883) TAP,NHS SUPPLY CHAIN (MAIDSTONE),id:12694241 , 153.65
Department of Health,Guys and St Thomas NHS Foundation Trust,03/01/2020,(81100) Dressings,(id:41883) TAP,SQUADRON MEDICAL LTD,id:12701358  , 111.40
Department of Health,Guys and St Thomas NHS Foundation Trust,10/01/2020,(81100) Dressings,(id:41883) TAP,SQUADRON MEDICAL LTD,id:12714327  ,  72.50
Department of Health,Guys and St Thomas NHS Foundation Trust,30/01/2020,(81100) Dressings,(id:41883) TAP,SQUADRON MEDICAL LTD,id:12745063  ,   2.49
Department of Health,Guys and St Thomas NHS Foundation Trust,03/01/2020,(81200) Medical Surgical Supplies & Equipment,(id:41883) TAP,SQUADRON MEDICAL LTD,id:12701358    , 245.77
Department of Health,Guys and St Thomas NHS Foundation Trust,03/01/2020,(81200) Medical Surgical Supplies & Equipment,(id:41883) TAP,SQUADRON MEDICAL LTD,id:12692902    ,  93.53
Department of Health,Guys and St Thomas NHS Foundation Trust,03/01/2020,(81200) Medical Surgical Supplies & Equipment,(id:41883) TAP,SQUADRON MEDICAL LTD,id:12712819    , 661.07
Department of Health,Guys and St Thomas NHS Foundation Trust,10/01/2020,(81200) Medical Surgical Supplies & Equipment,(id:41883) TAP,SQUADRON MEDICAL LTD,id:12714327    ,  41.86
Department of Health,Guys and St Thomas NHS Foundation Trust,24/01/2020,(81200) Medical Surgical Supplies & Equipment,(id:41883) TAP,SQUADRON MEDICAL LTD,id:12730766    , 216.71
Department of Health,Guys and St Thomas NHS Foundation Trust,10/01/2020,(81200) Medical Surgical Supplies & Equipment,(id:41883) TAP,SQUADRON MEDICAL LTD,id:12715460    , 372.04
Department of Health,Guys and St Thomas NHS Foundation Trust,30/01/2020,(50552) Qualified Nursing Staff,(id:41883) TAP,CONTINENTAL NURSE LTD,id:12781321  ,1405.00
Department of Health,Guys and St Thomas NHS Foundation Trust,03/01/2020,(81255) Medical Surgical Supplies & Equipment,(id:41883) TAP,NHS SUPPLY CHAIN (MAIDSTONE),id:12706389 ,  26.90
Department of Health,Guys and St Thomas NHS Foundation Trust,24/01/2020,(50542) Unqualified Nursing Staff,(id:41883) TAP,CONTINENTAL NURSE LTD,id:12763192,1842.73
Department of Health,Guys and St Thomas NHS Foundation Trust,03/01/2020,(83400) Office Equipment,(id:41883) TAP,SQUADRON MEDICAL LTD,id:12701358, 204.19
Department of Health,Guys and St Thomas NHS Foundation Trust,17/01/2020,(83400) Office Equipment,(id:41883) TAP,NHS SUPPLY CHAIN (MAIDSTONE),id:12723603  , 366.34
Department of Health,Guys and St Thomas NHS Foundation Trust,10/01/2020,(50562) Qualified Nursing Staff,(id:41883) TAP,PULSE HEALTHCARE LIMITED,id:12736752    , 334.20
Department of Health,Guys and St Thomas NHS Foundation Trust,28/01/2020,(50202) Consultants,(id:41909) TAP,PRICEWATERHOUSECOOPERS LLP,id:12777253    ,6520.85
Department of Health,Guys and St Thomas NHS Foundation Trust,27/01/2020,(50202) Consultants,(id:41909) TAP,PRICEWATERHOUSECOOPERS LLP,id:12775803    ,6730.17
Department of Health,Guys and St Thomas NHS Foundation Trust,17/01/2020,(82800) Bedding & Linen,(id:41907) TAP,NHS SUPPLY CHAIN (MAIDSTONE),id:12723603   , 181.30
Department of Health,Guys and St Thomas NHS Foundation Trust,30/01/2020,(82800) Bedding & Linen,(id:41907) TAP,NHS SUPPLY CHAIN (MAIDSTONE),id:12732483   ,   3.72
Department of Health,Guys and St Thomas NHS Foundation Trust,17/01/2020,(81200) Medical Surgical Supplies & Equipment,(id:41907) TAP,MEDTRONIC LTD,id:12751228 ,2244.00
Department of Health,Guys and St Thomas NHS Foundation Trust,03/01/2020,(82800) Bedding & Linen,(id:41906) TAP,NHS SUPPLY CHAIN (MAIDSTONE),id:12706389   , 106.51
Department of Health,Guys and St Thomas NHS Foundation Trust,03/01/2020,(82800) Bedding & Linen,(id:41906) TAP,NHS SUPPLY CHAIN (MAIDSTONE),id:12694241   ,  69.09
Department of Health,Guys and St Thomas NHS Foundation Trust,03/01/2020,(81200) Medical Surgical Supplies & Equipment,(id:41906) TAP,ALCON EYE CARE UK LIMITED,id:12717096    ,1008.00
Department of Health,Guys and St Thomas NHS Foundation Trust,30/01/2020,(81200) Medical Surgical Supplies & Equipment,(id:41906) TAP,ALCON EYE CARE UK LIMITED,id:12765474    ,2016.00
Department of Health,Guys and St Thomas NHS Foundation Trust,30/01/2020,(81200) Medical Surgical Supplies & Equipment,(id:41906) TAP,SQUADRON MEDICAL LTD,id:12747036    , 411.84
Department of Health,Guys and St Thomas NHS Foundation Trust,03/01/2020,(81100) Dressings,(id:41906) TAP,NHS SUPPLY CHAIN (MAIDSTONE),id:12694241    , 108.32
Department of Health,Guys and St Thomas NHS Foundation Trust,03/01/2020,(81200) Medical Surgical Supplies & Equipment,(id:41905) TAP,SQUADRON MEDICAL LTD,id:12692899    , 740.99
Department of Health,Guys and St Thomas NHS Foundation Trust,10/01/2020,(81200) Medical Surgical Supplies & Equipment,(id:41905) TAP,MEDTRONIC LTD,id:12717461 , 648.00
Department of Health,Guys and St Thomas NHS Foundation Trust,17/01/2020,(81200) Medical Surgical Supplies & Equipment,(id:41905) TAP,SQUADRON MEDICAL LTD,id:12724534    , 547.10
Department of Health,Guys and St Thomas NHS Foundation Trust,30/01/2020,(81200) Medical Surgical Supplies & Equipment,(id:41905) TAP,SQUADRON MEDICAL LTD,id:12742203    , 129.37
Department of Health,Guys and St Thomas NHS Foundation Trust,03/01/2020,(82600) Uniforms & Clothing,(id:41905) TAP,NHS SUPPLY CHAIN (MAIDSTONE),id:12706389    , 147.47
Department of Health,Guys and St Thomas NHS Foundation Trust,17/01/2020,(81100) Dressings,(id:41905) TAP,NHS SUPPLY CHAIN (MAIDSTONE),id:12723603    , 206.26
Department of Health,Guys and St Thomas NHS Foundation Trust,03/01/2020,(81225) Medical Surgical Supplies & Equipment,(id:41905) TAP,NHS SUPPLY CHAIN (MAIDSTONE),id:12694241 ,  33.62
Department of Health,Guys and St Thomas NHS Foundation Trust,03/01/2020,(81255) Medical Surgical Supplies & Equipment,(id:41913) TAP,NHS SUPPLY CHAIN (MAIDSTONE),id:12706389 ,  24.35
Department of Health,Guys and St Thomas NHS Foundation Trust,30/01/2020,(81255) Medical Surgical Supplies & Equipment,(id:41913) TAP,NHS SUPPLY CHAIN (MAIDSTONE),id:12732483 ,  15.17
Department of Health,Guys and St Thomas NHS Foundation Trust,03/01/2020,(81200) Medical Surgical Supplies & Equipment,(id:41913) TAP,SQUADRON MEDICAL LTD,id:12708829    ,1258.32
Department of Health,Guys and St Thomas NHS Foundation Trust,17/01/2020,(81200) Medical Surgical Supplies & Equipment,(id:41913) TAP,FISHER & PAYKEL HEALTHCARE LTD,id:12750989    , 360.00
Department of Health,Guys and St Thomas NHS Foundation Trust,30/01/2020,(81225) Medical Surgical Supplies & Equipment,(id:41913) TAP,NHS SUPPLY CHAIN (MAIDSTONE),id:12732483 ,  47.52
Department of Health,Guys and St Thomas NHS Foundation Trust,03/01/2020,(81225) Medical Surgical Supplies & Equipment,(id:41913) TAP,NHS SUPPLY CHAIN (MAIDSTONE),id:12694241 ,  65.88
Department of Health,Guys and St Thomas NHS Foundation Trust,03/01/2020,(81225) Medical Surgical Supplies & Equipment,(id:41913) TAP,NHS SUPPLY CHAIN (MAIDSTONE),id:12706389 , 104.22
Department of Health,Guys and St Thomas NHS Foundation Trust,10/01/2020,(81700) Lab Equipment Purchase,(id:41913) TAP,SQUADRON MEDICAL LTD,id:12717527    ,   4.82
Department of Health,Guys and St Thomas NHS Foundation Trust,03/01/2020,(82800) Bedding & Linen,(id:41913) TAP,NHS SUPPLY CHAIN (MAIDSTONE),id:12694241   ,  24.02
Department of Health,Guys and St Thomas NHS Foundation Trust,24/01/2020,(83400) Office Equipment,(id:41913) TAP,SQUADRON MEDICAL LTD,id:12735325, 119.84
Department of Health,Guys and St Thomas NHS Foundation Trust,03/01/2020,(82700) Uniforms & Clothing,(id:41918) TAP,NHS SUPPLY CHAIN (MAIDSTONE),id:12694241    , 168.96
Department of Health,Guys and St Thomas NHS Foundation Trust,30/01/2020,(82000) Provisions & Kitchens,(id:41918) TAP,NHS SUPPLY CHAIN (MAIDSTONE),id:12732483  ,  23.24
Department of Health,Guys and St Thomas NHS Foundation Trust,10/01/2020,(84500) Establishment,(id:41918) TAP,CDP  PRINT MANAGEMENT,id:12729978  , 794.55
Department of Health,Guys and St Thomas NHS Foundation Trust,03/01/2020,(83400) Office Equipment,(id:41918) TAP,NHS SUPPLY CHAIN (MAIDSTONE),id:12694241  ,  99.23
Department of Health,Guys and St Thomas NHS Foundation Trust,17/01/2020,(83400) Office Equipment,(id:41918) TAP,NHS SUPPLY CHAIN (MAIDSTONE),id:12723603  , 114.83
Department of Health,Guys and St Thomas NHS Foundation Trust,24/01/2020,(81200) Medical Surgical Supplies & Equipment,(id:41918) TAP,SQUADRON MEDICAL LTD,id:12737147    , 576.09
Department of Health,Guys and St Thomas NHS Foundation Trust,30/01/2020,(81200) Medical Surgical Supplies & Equipment,(id:41918) TAP,SQUADRON MEDICAL LTD,id:12747036    , 137.24
Department of Health,Guys and St Thomas NHS Foundation Trust,30/01/2020,(81200) Medical Surgical Supplies & Equipment,(id:41918) TAP,OPTIMUS MEDICAL LTD,id:12778247, 660.00
Department of Health,Guys and St Thomas NHS Foundation Trust,24/01/2020,(81100) Dressings,(id:41918) TAP,ELIS UK LIMITED,id:12716252  , 617.14
Department of Health,Guys and St Thomas NHS Foundation Trust,03/01/2020,(81225) Medical Surgical Supplies & Equipment,(id:41918) TAP,NHS SUPPLY CHAIN (MAIDSTONE),id:12706389 ,  40.32
Department of Health,Guys and St Thomas NHS Foundation Trust,03/01/2020,(81700) Lab Equipment Purchase,(id:41918) TAP,NHS SUPPLY CHAIN (MAIDSTONE),id:12694241 ,  81.00
